BODY,BODY NAME,SERVICE CODE,ORGANISATIONAL UNIT,ORGANISATIONAL UNIT CODE,EXPENDITURE CATEGORY,EXPENDITURE CODE,DATE (POSTING DATE),TRANSACTION NUMBER,AMOUNT,SUPPLIER NAME,SUPPLIER ID
WARRINGTON BOROUGH COUNCIL,http://opendatacommunities.org/id/unitary-authority/warrington ,FWB,Care Purchase Central Team,54050,CP-Nursing Care-External,441200,12-Aug-16,1900206639,4136.00,Abbey Lawns Care Home Ltd,101816
WARRINGTON BOROUGH COUNCIL,http://opendatacommunities.org/id/unitary-authority/warrington ,RSC,Coroners Service,11100,Consult.& Prof. Serv,440000,01-Aug-16,1900205507,1575.00,Accent Uk,100435
WARRINGTON BOROUGH COUNCIL,http://opendatacommunities.org/id/unitary-authority/warrington ,FWB,DSG SF Dev Fund,32001,Consult.& Prof. Serv,440000,18-Aug-16,1900206890,3200.00,ADHD Foundation,108229
WARRINGTON BOROUGH COUNCIL,http://opendatacommunities.org/id/unitary-authority/warrington ,RSC,Coroners Service,11100,Consult.& Prof. Serv,440000,03-Aug-16,1900205703,2633.00,Advanced Legal Solutions Limited,113261
WARRINGTON BOROUGH COUNCIL,http://opendatacommunities.org/id/unitary-authority/warrington ,ENO,Housing Projects,82008,Disabled Persons Grant 1996,554000,22-Aug-16,1900206989,1729.00,Affinity Sutton,115532
WARRINGTON BOROUGH COUNCIL,http://opendatacommunities.org/id/unitary-authority/warrington ,CYP,Childrens Other,81004,Specific Work,200200,26-Jul-16,1900205180,2898.00,AJM Painting and Decorator Ltd,114582
WARRINGTON BOROUGH COUNCIL,http://opendatacommunities.org/id/unitary-authority/warrington ,FWB,Care Purchase East Team,54060,CP-LongStayExternal,441150,24-Aug-16,1900207196,2090.00,Alexandra Care Home,100708
WARRINGTON BOROUGH COUNCIL,http://opendatacommunities.org/id/unitary-authority/warrington ,FWB,Care Purchase East Team,54060,CP-LongStayExternal,441150,24-Aug-16,1900207198,550.00,Alexandra Care Home,100708
WARRINGTON BOROUGH COUNCIL,http://opendatacommunities.org/id/unitary-authority/warrington ,FWB,Care Purchase Central Team,54050,CP-Domicil.External,440950,24-Aug-16,1900207027,12239.00,Allied Healthcare Group Ltd,100796
WARRINGTON BOROUGH COUNCIL,http://opendatacommunities.org/id/unitary-authority/warrington ,FWB,Care Purchase South Team,54070,CP-Domicil.External,440950,24-Aug-16,1900207027,11502.00,Allied Healthcare Group Ltd,100796
WARRINGTON BOROUGH COUNCIL,http://opendatacommunities.org/id/unitary-authority/warrington ,FWB,Care Purchase East Team,54060,CP-Domicil.External,440950,24-Aug-16,1900207027,4896.00,Allied Healthcare Group Ltd,100796
WARRINGTON BOROUGH COUNCIL,http://opendatacommunities.org/id/unitary-authority/warrington ,FWB,Care Purchase West Team,54080,CP-Domicil.External,440950,24-Aug-16,1900207025,6746.00,Allied Healthcare Group Ltd,100796
WARRINGTON BOROUGH COUNCIL,http://opendatacommunities.org/id/unitary-authority/warrington ,FWB,Care Purchase West Team,54080,Supporting People - External,441250,24-Aug-16,1900207025,898.00,Allied Healthcare Group Ltd,100796
WARRINGTON BOROUGH COUNCIL,http://opendatacommunities.org/id/unitary-authority/warrington ,FWB,Care Purchase South Team,54070,CP-Domicil.External,440950,28-Jul-16,1900205323,6280.00,Alternative Futures Group,104468
WARRINGTON BOROUGH COUNCIL,http://opendatacommunities.org/id/unitary-authority/warrington ,FWB,Care Purchase South Team,54070,CP-Domicil.External,440950,28-Jul-16,1900205318,3140.00,Alternative Futures Group,104468
WARRINGTON BOROUGH COUNCIL,http://opendatacommunities.org/id/unitary-authority/warrington ,FWB,Care Purchase South Team,54070,CP-Domicil.External,440950,28-Jul-16,1900205327,3140.00,Alternative Futures Group,104468
WARRINGTON BOROUGH COUNCIL,http://opendatacommunities.org/id/unitary-authority/warrington ,FWB,Care Purchase South Team,54070,CP-Domicil.External,440950,28-Jul-16,1900205332,3140.00,Alternative Futures Group,104468
WARRINGTON BOROUGH COUNCIL,http://opendatacommunities.org/id/unitary-authority/warrington ,FWB,Care Purchase South Team,54070,CP-Domicil.External,440950,28-Jul-16,1900205325,3140.00,Alternative Futures Group,104468
WARRINGTON BOROUGH COUNCIL,http://opendatacommunities.org/id/unitary-authority/warrington ,FWB,Care Purchase West Team,54080,CP-Domicil.External,440950,28-Jul-16,1900205209,972.00,Alternative Futures Group,104468
WARRINGTON BOROUGH COUNCIL,http://opendatacommunities.org/id/unitary-authority/warrington ,FWB,Care Purchase Central Team,54050,CP-Domicil.External,440950,28-Jul-16,1900205279,810.00,Alternative Futures Group,104468
WARRINGTON BOROUGH COUNCIL,http://opendatacommunities.org/id/unitary-authority/warrington ,FWB,Care Purchase East Team,54060,CP-Domicil.External,440950,28-Jul-16,1900205329,2119.00,Alternative Futures Group,104468
WARRINGTON BOROUGH COUNCIL,http://opendatacommunities.org/id/unitary-authority/warrington ,FWB,Care Purchase West Team,54080,CP-Domicil.External,440950,28-Jul-16,1900205282,2119.00,Alternative Futures Group,104468
WARRINGTON BOROUGH COUNCIL,http://opendatacommunities.org/id/unitary-authority/warrington ,FWB,Care Purchase South Team,54070,CP-Domicil.External,440950,24-Aug-16,1900207144,3140.00,Alternative Futures Group,104468
WARRINGTON BOROUGH COUNCIL,http://opendatacommunities.org/id/unitary-authority/warrington ,FWB,Care Purchase South Team,54070,CP-Domicil.External,440950,24-Aug-16,1900207111,3140.00,Alternative Futures Group,104468
WARRINGTON BOROUGH COUNCIL,http://opendatacommunities.org/id/unitary-authority/warrington ,FWB,Care Purchase West Team,54080,CP-Domicil.External,440950,24-Aug-16,1900207089,972.00,Alternative Futures Group,104468
WARRINGTON BOROUGH COUNCIL,http://opendatacommunities.org/id/unitary-authority/warrington ,FWB,Care Purchase Central Team,54050,CP-Domicil.External,440950,24-Aug-16,1900207163,810.00,Alternative Futures Group,104468
WARRINGTON BOROUGH COUNCIL,http://opendatacommunities.org/id/unitary-authority/warrington ,FWB,Care Purchase East Team,54060,CP-Domicil.External,440950,24-Aug-16,1900207103,2119.00,Alternative Futures Group,104468
WARRINGTON BOROUGH COUNCIL,http://opendatacommunities.org/id/unitary-authority/warrington ,FWB,Care Purchase East Team,54060,CP-Domicil.External,440950,24-Aug-16,1900207166,2119.00,Alternative Futures Group,104468
WARRINGTON BOROUGH COUNCIL,http://opendatacommunities.org/id/unitary-authority/warrington ,FWB,Care Purchase West Team,54080,CP-Domicil.External,440950,25-Aug-16,1900207277,43079.00,Alternative Futures Group,104468
WARRINGTON BOROUGH COUNCIL,http://opendatacommunities.org/id/unitary-authority/warrington ,FWB,Care Purchase East Team,54060,CP-Domicil.External,440950,25-Aug-16,1900207277,31284.00,Alternative Futures Group,104468
WARRINGTON BOROUGH COUNCIL,http://opendatacommunities.org/id/unitary-authority/warrington ,FWB,Care Purchase South Team,54070,CP-Domicil.External,440950,25-Aug-16,1900207277,1050.00,Alternative Futures Group,104468
WARRINGTON BOROUGH COUNCIL,http://opendatacommunities.org/id/unitary-authority/warrington ,FWB,Care Purchase West Team,54080,Supporting People - External,441250,25-Aug-16,1900207277,4550.00,Alternative Futures Group,104468
WARRINGTON BOROUGH COUNCIL,http://opendatacommunities.org/id/unitary-authority/warrington ,FWB,Care Purchase East Team,54060,Supporting People - External,441250,25-Aug-16,1900207277,1400.00,Alternative Futures Group,104468
WARRINGTON BOROUGH COUNCIL,http://opendatacommunities.org/id/unitary-authority/warrington ,FWB,Care Purchase Budget,54490,Voids,515150,25-Aug-16,1900207277,4245.00,Alternative Futures Group,104468
WARRINGTON BOROUGH COUNCIL,http://opendatacommunities.org/id/unitary-authority/warrington ,FWB,SLA - Grant Account,53920,Payment of Grants,470050,03-Aug-16,1900205704,9389.00,Alzheimers Society,106508
WARRINGTON BOROUGH COUNCIL,http://opendatacommunities.org/id/unitary-authority/warrington ,ENO,Housing Projects,82008,Disabled Persons Grant 1996,554000,21-Jul-16,1900204850,3718.00,AMW Lift & Mobility Services Ltd,112766
WARRINGTON BOROUGH COUNCIL,http://opendatacommunities.org/id/unitary-authority/warrington ,ENO,Housing Projects,82008,Disabled Persons Grant 1996,554000,26-Jul-16,1900205112,3410.00,AMW Lift & Mobility Services Ltd,112766
WARRINGTON BOROUGH COUNCIL,http://opendatacommunities.org/id/unitary-authority/warrington ,ENO,Housing Projects,82008,Disabled Persons Grant 1996,554000,04-Aug-16,1900205751,3325.00,AMW Lift & Mobility Services Ltd,112766
WARRINGTON BOROUGH COUNCIL,http://opendatacommunities.org/id/unitary-authority/warrington ,HOL,Insurance Fund,91100,Insurance Premium,443350,16-Aug-16,1900206724,60225.00,Aon Ltd,102117
WARRINGTON BOROUGH COUNCIL,http://opendatacommunities.org/id/unitary-authority/warrington ,HOL,Insurance Fund,91100,Insurance Premium,443350,04-Aug-16,1900205737,38325.00,Aon Ltd,102117
WARRINGTON BOROUGH COUNCIL,http://opendatacommunities.org/id/unitary-authority/warrington ,HOL,Insurance Fund,91100,Insurance Premium,443350,04-Aug-16,1900205741,4110.00,Aon Ltd,102117
WARRINGTON BOROUGH COUNCIL,http://opendatacommunities.org/id/unitary-authority/warrington ,HOL,Insurance Fund,91100,Insurance Premium,443350,04-Aug-16,1900205738,7018.00,Aon Ltd,102117
WARRINGTON BOROUGH COUNCIL,http://opendatacommunities.org/id/unitary-authority/warrington ,HOL,Insurance Fund,91100,Insurance Premium,443350,04-Aug-16,1900205744,13140.00,Aon Ltd,102117
WARRINGTON BOROUGH COUNCIL,http://opendatacommunities.org/id/unitary-authority/warrington ,HOL,Insurance Fund,91100,Insurance Premium,443350,16-Aug-16,1900206725,219000.00,Aon Ltd,102117
WARRINGTON BOROUGH COUNCIL,http://opendatacommunities.org/id/unitary-authority/warrington ,HOL,Insurance Fund,91100,Insurance Premium,443350,04-Aug-16,1900205735,18615.00,Aon Ltd,102117
WARRINGTON BOROUGH COUNCIL,http://opendatacommunities.org/id/unitary-authority/warrington ,HOL,Insurance Fund,91100,Insurance Premium,443350,04-Aug-16,1900205734,13609.00,Aon Ltd,102117
WARRINGTON BOROUGH COUNCIL,http://opendatacommunities.org/id/unitary-authority/warrington ,HOL,Insurance Fund,91100,Insurance Premium,443350,04-Aug-16,1900205746,7814.00,Aon Ltd,102117
WARRINGTON BOROUGH COUNCIL,http://opendatacommunities.org/id/unitary-authority/warrington ,HOL,Insurance Fund,91100,Insurance Premium,443350,04-Aug-16,1900205742,40241.00,Aon Ltd,102117
WARRINGTON BOROUGH COUNCIL,http://opendatacommunities.org/id/unitary-authority/warrington ,HOL,Insurance Fund,91100,Insurance Premium,443350,04-Aug-16,1900205743,8760.00,Aon Ltd,102117
WARRINGTON BOROUGH COUNCIL,http://opendatacommunities.org/id/unitary-authority/warrington ,HOL,Insurance Fund,91100,Insurance Premium,443350,16-Aug-16,1900206723,96853.00,Aon Ltd,102117
WARRINGTON BOROUGH COUNCIL,http://opendatacommunities.org/id/unitary-authority/warrington ,FWB,Care Purchase Budget,54490,CP ExternalOther Exp,440800,16-Aug-16,1900206778,42000.00,Ashberry Healthcare,101061
WARRINGTON BOROUGH COUNCIL,http://opendatacommunities.org/id/unitary-authority/warrington ,FWB,Care Purchase Budget,54490,CP ExternalOther Exp,440800,12-Aug-16,1900206625,22542.00,Ashberry Healthcare Ltd,104776
WARRINGTON BOROUGH COUNCIL,http://opendatacommunities.org/id/unitary-authority/warrington ,FWB,Care Purchase Budget,54490,CP ExternalOther Exp,440800,16-Aug-16,1900206765,90000.00,Ashberry Healthcare Ltd,104776
WARRINGTON BOROUGH COUNCIL,http://opendatacommunities.org/id/unitary-authority/warrington ,FWB,Care Purchase Central Team,54050,CP-Domicil.External,440950,01-Aug-16,1900205530,1794.00,Autism Initiatives,104503
WARRINGTON BOROUGH COUNCIL,http://opendatacommunities.org/id/unitary-authority/warrington ,FWB,Care Purchase West Team,54080,CP-Day Care-External,441100,08-Aug-16,1900205859,2931.00,Autism Initiatives,104503
WARRINGTON BOROUGH COUNCIL,http://opendatacommunities.org/id/unitary-authority/warrington ,FWB,Care Purchase Central Team,54050,CP-Domicil.External,440950,01-Aug-16,1900205532,1559.00,Autism Initiatives,104503
WARRINGTON BOROUGH COUNCIL,http://opendatacommunities.org/id/unitary-authority/warrington ,FWB,Care Purchase Central Team,54050,CP-Domicil.External,440950,01-Aug-16,1900205531,1874.00,Autism Initiatives,104503
WARRINGTON BOROUGH COUNCIL,http://opendatacommunities.org/id/unitary-authority/warrington ,FWB,Care Purchase Central Team,54050,CP-Domicil.External,440950,01-Aug-16,1900205533,1888.00,Autism Initiatives,104503
WARRINGTON BOROUGH COUNCIL,http://opendatacommunities.org/id/unitary-authority/warrington ,FWB,Care Purchase Central Team,54050,CP-Domicil.External,440950,01-Aug-16,1900205534,1888.00,Autism Initiatives,104503
WARRINGTON BOROUGH COUNCIL,http://opendatacommunities.org/id/unitary-authority/warrington ,FWB,Care Purchase Central Team,54050,CP-Domicil.External,440950,01-Aug-16,1900205540,1801.00,Autism Initiatives,104503
WARRINGTON BOROUGH COUNCIL,http://opendatacommunities.org/id/unitary-authority/warrington ,FWB,Care Purchase Central Team,54050,CP-Day Care-External,441100,08-Aug-16,1900205860,2931.00,Autism Initiatives,104503
WARRINGTON BOROUGH COUNCIL,http://opendatacommunities.org/id/unitary-authority/warrington ,FWB,Care Purchase West Team,54080,CP-Day Care-External,441100,08-Aug-16,1900205861,2931.00,Autism Initiatives,104503
WARRINGTON BOROUGH COUNCIL,http://opendatacommunities.org/id/unitary-authority/warrington ,FWB,Care Purchase Central Team,54050,CP-Domicil.External,440950,01-Aug-16,1900205538,8450.00,Autism Initiatives,104503
WARRINGTON BOROUGH COUNCIL,http://opendatacommunities.org/id/unitary-authority/warrington ,FWB,Care Purchase West Team,54080,CP-Domicil.External,440950,01-Aug-16,1900205536,6926.00,Autism Initiatives,104503
WARRINGTON BOROUGH COUNCIL,http://opendatacommunities.org/id/unitary-authority/warrington ,FWB,Care Purchase West Team,54080,CP-Domicil.External,440950,01-Aug-16,1900205535,7015.00,Autism Initiatives,104503
WARRINGTON BOROUGH COUNCIL,http://opendatacommunities.org/id/unitary-authority/warrington ,FWB,Care Purchase East Team,54060,CP-LongStayExternal,441150,08-Aug-16,1900205845,4496.00,Autism Initiatives,104503
WARRINGTON BOROUGH COUNCIL,http://opendatacommunities.org/id/unitary-authority/warrington ,FWB,Care Purchase Central Team,54050,CP-Domicil.External,440950,01-Aug-16,1900205539,4316.00,Autism Initiatives,104503
WARRINGTON BOROUGH COUNCIL,http://opendatacommunities.org/id/unitary-authority/warrington ,FWB,Care Purchase Central Team,54050,CP-Domicil.External,440950,24-Aug-16,1900207036,2035.00,Autism Initiatives,104503
WARRINGTON BOROUGH COUNCIL,http://opendatacommunities.org/id/unitary-authority/warrington ,FWB,Care Purchase Central Team,54050,CP-Domicil.External,440950,01-Aug-16,1900205537,5685.00,Autism Initiatives,104503
WARRINGTON BOROUGH COUNCIL,http://opendatacommunities.org/id/unitary-authority/warrington ,EE0,Building Control Services,43410,Building Work,200850,05-Aug-16,1900205826,2928.00,B E Building Service,114760
WARRINGTON BOROUGH COUNCIL,http://opendatacommunities.org/id/unitary-authority/warrington ,FWB,M.C.A / Complaints,54650,Agency Supply ,180000,20-Jul-16,1900204788,1326.00,Badenoch & Clark Ltd,113427
WARRINGTON BOROUGH COUNCIL,http://opendatacommunities.org/id/unitary-authority/warrington ,FWB,M.C.A / Complaints,54650,Agency Supply ,180000,16-Aug-16,1900206796,1404.00,Badenoch & Clark Ltd,113427
WARRINGTON BOROUGH COUNCIL,http://opendatacommunities.org/id/unitary-authority/warrington ,FWB,M.C.A / Complaints,54650,Agency Supply ,180000,16-Aug-16,1900206798,1298.00,Badenoch & Clark Ltd,113427
WARRINGTON BOROUGH COUNCIL,http://opendatacommunities.org/id/unitary-authority/warrington ,FWB,M.C.A / Complaints,54650,Agency Supply ,180000,16-Aug-16,1900206799,1443.00,Badenoch & Clark Ltd,113427
WARRINGTON BOROUGH COUNCIL,http://opendatacommunities.org/id/unitary-authority/warrington ,FWB,M.C.A / Complaints,54650,Agency Supply ,180000,16-Aug-16,1900206800,1209.00,Badenoch & Clark Ltd,113427
WARRINGTON BOROUGH COUNCIL,http://opendatacommunities.org/id/unitary-authority/warrington ,FWB,Care Purchase East Team,54060,CP-LongStayExternal,441150,01-Aug-16,1900205543,4229.00,Barchester Healthcare - Sutton Gran,115035
WARRINGTON BOROUGH COUNCIL,http://opendatacommunities.org/id/unitary-authority/warrington ,FWB,Care Purchase East Team,54060,CP-LongStayExternal,441150,24-Aug-16,1900207160,4229.00,Barchester Healthcare - Sutton Gran,115035
WARRINGTON BOROUGH COUNCIL,http://opendatacommunities.org/id/unitary-authority/warrington ,FWB,Care Purchase South Team,54070,CP-LongStayExternal,441150,24-Aug-16,1900207043,1848.00,Barchester Healthcare Brookfield,104548
WARRINGTON BOROUGH COUNCIL,http://opendatacommunities.org/id/unitary-authority/warrington ,FWB,Care Purchase Budget,54490,CP Free Nursing Care External,443500,01-Aug-16,1900205541,736.00,Barchester Healthcare Cheshire Gran,111378
WARRINGTON BOROUGH COUNCIL,http://opendatacommunities.org/id/unitary-authority/warrington ,FWB,Care Purchase South Team,54070,CP-Nursing Care-External,441200,24-Aug-16,1900207052,2088.00,Barchester Healthcare Cheshire Gran,111378
WARRINGTON BOROUGH COUNCIL,http://opendatacommunities.org/id/unitary-authority/warrington ,FWB,Care Purchase South Team,54070,CP-Nursing Care-External,441200,24-Aug-16,1900207085,2088.00,Barchester Healthcare Cheshire Gran,111378
WARRINGTON BOROUGH COUNCIL,http://opendatacommunities.org/id/unitary-authority/warrington ,FWB,Care Purchase South Team,54070,CP-LongStayExternal,441150,24-Aug-16,1900207080,2040.00,Barchester Healthcare Cheshire Gran,111378
WARRINGTON BOROUGH COUNCIL,http://opendatacommunities.org/id/unitary-authority/warrington ,FWB,Care Purchase South Team,54070,CP-Nursing Care-External,441200,24-Aug-16,1900207076,2088.00,Barchester Healthcare Cheshire Gran,111378
WARRINGTON BOROUGH COUNCIL,http://opendatacommunities.org/id/unitary-authority/warrington ,FWB,Care Purchase Budget,54490,CP Free Nursing Care External,443500,24-Aug-16,1900207039,1872.00,Barchester Healthcare Cheshire Gran,111378
WARRINGTON BOROUGH COUNCIL,http://opendatacommunities.org/id/unitary-authority/warrington ,FWB,Care Purchase Budget,54490,CP Free Nursing Care External,443500,16-Aug-16,1900206747,19002.00,Barchester Homes Westvale House,105246
WARRINGTON BOROUGH COUNCIL,http://opendatacommunities.org/id/unitary-authority/warrington ,FWB,Care Purchase West Team,54080,CP-Nursing Care-External,441200,16-Aug-16,1900206745,36352.00,Barchester Homes Westvale House,105246
WARRINGTON BOROUGH COUNCIL,http://opendatacommunities.org/id/unitary-authority/warrington ,FWB,Care Purchase Central Team,54050,CP-Nursing Care-External,441200,16-Aug-16,1900206745,2036.00,Barchester Homes Westvale House,105246
WARRINGTON BOROUGH COUNCIL,http://opendatacommunities.org/id/unitary-authority/warrington ,FWB,Care Purchase Budget,54490,CP Free Nursing Care External,443500,16-Aug-16,1900206744,19509.00,Barchester Homes Westvale House,105246
WARRINGTON BOROUGH COUNCIL,http://opendatacommunities.org/id/unitary-authority/warrington ,FWB,Care Purchase West Team,54080,CP-Nursing Care-External,441200,16-Aug-16,1900206746,618.00,Barchester Homes Westvale House,105246
WARRINGTON BOROUGH COUNCIL,http://opendatacommunities.org/id/unitary-authority/warrington ,FWB,Child Arrangement Orders,31114,Residence Orders,550350,29-Jul-16,1900205455,1048.00,Bell Lamb & Joynson Solicitors,108488
WARRINGTON BOROUGH COUNCIL,http://opendatacommunities.org/id/unitary-authority/warrington ,FWB,Care Purchase Central Team,54050,CP-LongStayExternal,441150,01-Aug-16,1900205564,1700.00,Bellefield Residential Home,113998
WARRINGTON BOROUGH COUNCIL,http://opendatacommunities.org/id/unitary-authority/warrington ,RSC,Legal Services,11200,Consult.& Prof. Serv,440000,05-Aug-16,1900205836,2580.00,Bighand Limited,106275
WARRINGTON BOROUGH COUNCIL,http://opendatacommunities.org/id/unitary-authority/warrington ,RSC,Legal Services,11200,ICT Comms - Equipment Purchase,450100,05-Aug-16,1900205836,1680.00,Bighand Limited,106275
WARRINGTON BOROUGH COUNCIL,http://opendatacommunities.org/id/unitary-authority/warrington ,ENO,Highways LTP,82004,Consult.& Prof. Serv,440000,11-Jul-16,1900203810,800.00,Bikeright,101692
WARRINGTON BOROUGH COUNCIL,http://opendatacommunities.org/id/unitary-authority/warrington ,FWB,Care Purchase West Team,54080,CP-Nursing Care-External,441200,01-Aug-16,1900205584,1600.00,Bowerfield House MMCG,111713
WARRINGTON BOROUGH COUNCIL,http://opendatacommunities.org/id/unitary-authority/warrington ,FWB,Care Purchase West Team,54080,CP-Nursing Care-External,441200,25-Aug-16,1900207245,1600.00,Bowerfield House MMCG,111713
WARRINGTON BOROUGH COUNCIL,http://opendatacommunities.org/id/unitary-authority/warrington ,FWB,Care Purchase Central Team,54050,CP-Domicil.External,440950,01-Aug-16,1900205544,7168.00,Brain Injury Rehabilitation Trust,108472
WARRINGTON BOROUGH COUNCIL,http://opendatacommunities.org/id/unitary-authority/warrington ,FWB,DSG Support for SEN,32013,Childrens Activities,492900,02-Aug-16,1900205642,7491.00,Bridgewater Community Healthcare,108932
WARRINGTON BOROUGH COUNCIL,http://opendatacommunities.org/id/unitary-authority/warrington ,FWB,IC ext allocation,53205,Joint Arrangements,505200,24-Aug-16,1900207185,186445.00,Bridgewater Community Healthcare,108932
WARRINGTON BOROUGH COUNCIL,http://opendatacommunities.org/id/unitary-authority/warrington ,FWB,Academy Adjustments,32419,Payment of Grants,470050,29-Jul-16,1900205435,66616.00,Bridgewater High School Academy,400251
WARRINGTON BOROUGH COUNCIL,http://opendatacommunities.org/id/unitary-authority/warrington ,FWB,Care Purchase South Team,54070,CP-Domicil.External,440950,28-Jul-16,1900205286,9046.00,Bridgewater Home Care,113753
WARRINGTON BOROUGH COUNCIL,http://opendatacommunities.org/id/unitary-authority/warrington ,FWB,Care Purchase West Team,54080,CP-Domicil.External,440950,28-Jul-16,1900205286,5924.00,Bridgewater Home Care,113753
WARRINGTON BOROUGH COUNCIL,http://opendatacommunities.org/id/unitary-authority/warrington ,FWB,Care Purchase East Team,54060,CP-Domicil.External,440950,28-Jul-16,1900205286,2480.00,Bridgewater Home Care,113753
WARRINGTON BOROUGH COUNCIL,http://opendatacommunities.org/id/unitary-authority/warrington ,FWB,Care Purchase South Team,54070,CP-Domicil.External,440950,16-Aug-16,1900206752,10262.00,Bridgewater Home Care,113753
WARRINGTON BOROUGH COUNCIL,http://opendatacommunities.org/id/unitary-authority/warrington ,FWB,Care Purchase West Team,54080,CP-Domicil.External,440950,16-Aug-16,1900206752,8763.00,Bridgewater Home Care,113753
WARRINGTON BOROUGH COUNCIL,http://opendatacommunities.org/id/unitary-authority/warrington ,FWB,Care Purchase East Team,54060,CP-Domicil.External,440950,16-Aug-16,1900206752,2406.00,Bridgewater Home Care,113753
WARRINGTON BOROUGH COUNCIL,http://opendatacommunities.org/id/unitary-authority/warrington ,FWB,Child Disability,32212,CP-Domicil.External,440950,05-Aug-16,1900205825,2224.00,Bright Futures Care Ltd,114579
WARRINGTON BOROUGH COUNCIL,http://opendatacommunities.org/id/unitary-authority/warrington ,FWB,Child Disability,32212,CP-Domicil.External,440950,08-Aug-16,1900205895,1752.00,Bright Futures Care Ltd,114579
WARRINGTON BOROUGH COUNCIL,http://opendatacommunities.org/id/unitary-authority/warrington ,FWB,Care Purchase West Team,54080,CP-LongStayExternal,441150,12-Aug-16,1900206627,10228.00,Bright Futures Care Ltd,114579
WARRINGTON BOROUGH COUNCIL,http://opendatacommunities.org/id/unitary-authority/warrington ,HOL,Single Billing Holding Account,91130,Gas,210050,17-Aug-16,1900206864,8143.00,British Gas Business,104540
WARRINGTON BOROUGH COUNCIL,http://opendatacommunities.org/id/unitary-authority/warrington ,HOL,Single Billing Holding Account,91130,Gas,210050,17-Aug-16,1900206864,7396.00,British Gas Business,104540
WARRINGTON BOROUGH COUNCIL,http://opendatacommunities.org/id/unitary-authority/warrington ,HOL,Single Billing Holding Account,91130,Gas,210050,19-Aug-16,1900206956,111142.00,British Gas Business,104540
WARRINGTON BOROUGH COUNCIL,http://opendatacommunities.org/id/unitary-authority/warrington ,HOL,Single Billing Holding Account,91130,Gas,210050,19-Aug-16,1900206956,24986.00,British Gas Business,104540
WARRINGTON BOROUGH COUNCIL,http://opendatacommunities.org/id/unitary-authority/warrington ,HOL,Single Billing Holding Account,91130,Gas,210050,19-Aug-16,1900206956,10540.00,British Gas Business,104540
WARRINGTON BOROUGH COUNCIL,http://opendatacommunities.org/id/unitary-authority/warrington ,EE0,Urban Traffic Management Control,44370,Signal Management,531600,17-Aug-16,1900206853,5224.00,British Telecommunications Plc,104543
WARRINGTON BOROUGH COUNCIL,http://opendatacommunities.org/id/unitary-authority/warrington ,ENO,Housing Projects,82008,Disabled Persons Grant 1996,554000,03-Aug-16,1900205661,1112.00,Britplas Commericial Windows,110637
WARRINGTON BOROUGH COUNCIL,http://opendatacommunities.org/id/unitary-authority/warrington ,ENO,Housing Projects,82008,Disabled Persons Grant 1996,554000,03-Aug-16,1900205663,1112.00,Britplas Commericial Windows,110637
WARRINGTON BOROUGH COUNCIL,http://opendatacommunities.org/id/unitary-authority/warrington ,FWB,Care Purchase East Team,54060,CP-Nursing Care-External,441200,12-Aug-16,1900206601,1679.00,BUPA - Bedford Res,104569
WARRINGTON BOROUGH COUNCIL,http://opendatacommunities.org/id/unitary-authority/warrington ,FWB,Care Purchase West Team,54080,CP-Nursing Care-External,441200,12-Aug-16,1900206640,1628.00,BUPA - Bedford Res,104569
WARRINGTON BOROUGH COUNCIL,http://opendatacommunities.org/id/unitary-authority/warrington ,FWB,Care Purchase Budget,54490,CP ExternalOther Exp,440800,24-Aug-16,1900207078,42356.00,Bupa Care Homes,104572
WARRINGTON BOROUGH COUNCIL,http://opendatacommunities.org/id/unitary-authority/warrington ,FWB,Care Purchase Budget,54490,CP ExternalOther Exp,440800,16-Aug-16,1900206761,160000.00,Bupa Care Homes,104572
WARRINGTON BOROUGH COUNCIL,http://opendatacommunities.org/id/unitary-authority/warrington ,FWB,Care Purchase South Team,54070,CP-LongStayExternal,441150,12-Aug-16,1900206602,1782.00,Burrswood House Nursing & Residenti,109619
WARRINGTON BOROUGH COUNCIL,http://opendatacommunities.org/id/unitary-authority/warrington ,FWB,DSG Inter Authority Recoupment,32009,Recoupment Charges,490700,03-Aug-16,1900205717,5480.00,C W & C Council - Court Orders,410049
WARRINGTON BOROUGH COUNCIL,http://opendatacommunities.org/id/unitary-authority/warrington ,EE0,Atlantic Gateway,42150,Consult.& Prof. Serv,440000,10-Aug-16,1900206527,5000.00,Calderstones Consulting,113372
WARRINGTON BOROUGH COUNCIL,http://opendatacommunities.org/id/unitary-authority/warrington ,FWB,Safeguarding Team 2,31002,Agency Supply ,180000,29-Jul-16,1900205450,886.00,Capita Resourcing LTD,113201
WARRINGTON BOROUGH COUNCIL,http://opendatacommunities.org/id/unitary-authority/warrington ,FWB,Assessment & Intervention,31000,Agency Supply ,180000,29-Jul-16,1900205466,942.00,Capita Resourcing LTD,113201
WARRINGTON BOROUGH COUNCIL,http://opendatacommunities.org/id/unitary-authority/warrington ,FWB,Safeguarding Team 2,31002,Agency Supply ,180000,29-Jul-16,1900205451,1092.00,Capita Resourcing LTD,113201
WARRINGTON BOROUGH COUNCIL,http://opendatacommunities.org/id/unitary-authority/warrington ,FWB,Safeguarding Team 2,31002,Agency Supply ,180000,29-Jul-16,1900205449,1092.00,Capita Resourcing LTD,113201
WARRINGTON BOROUGH COUNCIL,http://opendatacommunities.org/id/unitary-authority/warrington ,FWB,Permanence Team,31100,Agency Supply ,180000,29-Jul-16,1900205452,1628.00,Capita Resourcing LTD,113201
WARRINGTON BOROUGH COUNCIL,http://opendatacommunities.org/id/unitary-authority/warrington ,FWB,Assessment & Intervention,31000,Agency Supply ,180000,12-Aug-16,1900206594,1161.00,Capita Resourcing LTD,113201
WARRINGTON BOROUGH COUNCIL,http://opendatacommunities.org/id/unitary-authority/warrington ,FWB,Assessment & Intervention,31000,Agency Supply ,180000,29-Jul-16,1900205440,737.00,Capita Resourcing LTD,113201
WARRINGTON BOROUGH COUNCIL,http://opendatacommunities.org/id/unitary-authority/warrington ,FWB,Assessment & Intervention,31000,Agency Supply ,180000,29-Jul-16,1900205443,1332.00,Capita Resourcing LTD,113201
WARRINGTON BOROUGH COUNCIL,http://opendatacommunities.org/id/unitary-authority/warrington ,FWB,Assessment & Intervention,31000,Agency Supply ,180000,29-Jul-16,1900205445,1177.00,Capita Resourcing LTD,113201
WARRINGTON BOROUGH COUNCIL,http://opendatacommunities.org/id/unitary-authority/warrington ,FWB,Assessment & Intervention,31000,Agency Supply ,180000,29-Jul-16,1900205442,1381.00,Capita Resourcing LTD,113201
WARRINGTON BOROUGH COUNCIL,http://opendatacommunities.org/id/unitary-authority/warrington ,FWB,Assessment & Intervention,31000,Agency Supply ,180000,29-Jul-16,1900205441,1332.00,Capita Resourcing LTD,113201
WARRINGTON BOROUGH COUNCIL,http://opendatacommunities.org/id/unitary-authority/warrington ,FWB,Assessment & Intervention,31000,Agency Supply ,180000,29-Jul-16,1900205448,1197.00,Capita Resourcing LTD,113201
WARRINGTON BOROUGH COUNCIL,http://opendatacommunities.org/id/unitary-authority/warrington ,FWB,Assessment & Intervention,31000,Agency Supply ,180000,18-Aug-16,1900206906,1161.00,Capita Resourcing LTD,113201
WARRINGTON BOROUGH COUNCIL,http://opendatacommunities.org/id/unitary-authority/warrington ,FWB,Assessment & Intervention,31000,Agency Supply ,180000,17-Aug-16,1900206872,1381.00,Capita Resourcing LTD,113201
WARRINGTON BOROUGH COUNCIL,http://opendatacommunities.org/id/unitary-authority/warrington ,FWB,Assessment & Intervention,31000,Agency Supply ,180000,17-Aug-16,1900206871,1332.00,Capita Resourcing LTD,113201
WARRINGTON BOROUGH COUNCIL,http://opendatacommunities.org/id/unitary-authority/warrington ,FWB,Assessment & Intervention,31000,Agency Supply ,180000,17-Aug-16,1900206870,1195.00,Capita Resourcing LTD,113201
WARRINGTON BOROUGH COUNCIL,http://opendatacommunities.org/id/unitary-authority/warrington ,FWB,Assessment & Intervention,31000,Agency Supply ,180000,17-Aug-16,1900206866,1177.00,Capita Resourcing LTD,113201
WARRINGTON BOROUGH COUNCIL,http://opendatacommunities.org/id/unitary-authority/warrington ,FWB,Assessment & Intervention,31000,Agency Supply ,180000,17-Aug-16,1900206868,1381.00,Capita Resourcing LTD,113201
WARRINGTON BOROUGH COUNCIL,http://opendatacommunities.org/id/unitary-authority/warrington ,FWB,Assessment & Intervention,31000,Agency Supply ,180000,17-Aug-16,1900206867,1176.00,Capita Resourcing LTD,113201
WARRINGTON BOROUGH COUNCIL,http://opendatacommunities.org/id/unitary-authority/warrington ,FWB,Assessment & Intervention,31000,Agency Supply ,180000,17-Aug-16,1900206881,1161.00,Capita Resourcing LTD,113201
WARRINGTON BOROUGH COUNCIL,http://opendatacommunities.org/id/unitary-authority/warrington ,FWB,Assessment & Intervention,31000,Agency Supply ,180000,17-Aug-16,1900206873,1161.00,Capita Resourcing LTD,113201
WARRINGTON BOROUGH COUNCIL,http://opendatacommunities.org/id/unitary-authority/warrington ,FWB,Assessment & Intervention,31000,Agency Supply ,180000,17-Aug-16,1900206875,1332.00,Capita Resourcing LTD,113201
WARRINGTON BOROUGH COUNCIL,http://opendatacommunities.org/id/unitary-authority/warrington ,FWB,Assessment & Intervention,31000,Agency Supply ,180000,17-Aug-16,1900206876,1178.00,Capita Resourcing LTD,113201
WARRINGTON BOROUGH COUNCIL,http://opendatacommunities.org/id/unitary-authority/warrington ,FWB,Assessment & Intervention,31000,Agency Supply ,180000,17-Aug-16,1900206877,1161.00,Capita Resourcing LTD,113201
WARRINGTON BOROUGH COUNCIL,http://opendatacommunities.org/id/unitary-authority/warrington ,FWB,Assessment & Intervention,31000,Agency Supply ,180000,17-Aug-16,1900206878,1177.00,Capita Resourcing LTD,113201
WARRINGTON BOROUGH COUNCIL,http://opendatacommunities.org/id/unitary-authority/warrington ,FWB,Assessment & Intervention,31000,Agency Supply ,180000,17-Aug-16,1900206880,1161.00,Capita Resourcing LTD,113201
WARRINGTON BOROUGH COUNCIL,http://opendatacommunities.org/id/unitary-authority/warrington ,FWB,Assessment & Intervention,31000,Agency Supply ,180000,17-Aug-16,1900206882,1173.00,Capita Resourcing LTD,113201
WARRINGTON BOROUGH COUNCIL,http://opendatacommunities.org/id/unitary-authority/warrington ,FWB,Assessment & Intervention,31000,Agency Supply ,180000,29-Jul-16,1900205447,1584.00,Capita Resourcing LTD,113201
WARRINGTON BOROUGH COUNCIL,http://opendatacommunities.org/id/unitary-authority/warrington ,FWB,Assessment & Intervention,31000,Agency Supply ,180000,29-Jul-16,1900205446,1194.00,Capita Resourcing LTD,113201
WARRINGTON BOROUGH COUNCIL,http://opendatacommunities.org/id/unitary-authority/warrington ,FWB,Safeguarding Team 2,31002,Agency Supply ,180000,18-Aug-16,1900206907,1092.00,Capita Resourcing LTD,113201
WARRINGTON BOROUGH COUNCIL,http://opendatacommunities.org/id/unitary-authority/warrington ,FWB,Assessment & Intervention,31000,Agency Supply ,180000,10-Aug-16,1900206509,1161.00,Capita Resourcing LTD,113201
WARRINGTON BOROUGH COUNCIL,http://opendatacommunities.org/id/unitary-authority/warrington ,FWB,Assessment & Intervention,31000,Agency Supply ,180000,10-Aug-16,1900206508,1161.00,Capita Resourcing LTD,113201
WARRINGTON BOROUGH COUNCIL,http://opendatacommunities.org/id/unitary-authority/warrington ,FWB,Assessment & Intervention,31000,Agency Supply ,180000,10-Aug-16,1900206507,1332.00,Capita Resourcing LTD,113201
WARRINGTON BOROUGH COUNCIL,http://opendatacommunities.org/id/unitary-authority/warrington ,FWB,Assessment & Intervention,31000,Agency Supply ,180000,10-Aug-16,1900206510,1209.00,Capita Resourcing LTD,113201
WARRINGTON BOROUGH COUNCIL,http://opendatacommunities.org/id/unitary-authority/warrington ,FWB,Assessment & Intervention,31000,Agency Supply ,180000,10-Aug-16,1900206506,1217.00,Capita Resourcing LTD,113201
WARRINGTON BOROUGH COUNCIL,http://opendatacommunities.org/id/unitary-authority/warrington ,FWB,Assessment & Intervention,31000,Agency Supply ,180000,10-Aug-16,1900206504,1161.00,Capita Resourcing LTD,113201
WARRINGTON BOROUGH COUNCIL,http://opendatacommunities.org/id/unitary-authority/warrington ,FWB,Safeguarding Team 2,31002,Agency Supply ,180000,05-Aug-16,1900205786,1092.00,Capita Resourcing LTD,113201
WARRINGTON BOROUGH COUNCIL,http://opendatacommunities.org/id/unitary-authority/warrington ,FWB,Assessment & Intervention,31000,Agency Supply ,180000,05-Aug-16,1900205788,1250.00,Capita Resourcing LTD,113201
WARRINGTON BOROUGH COUNCIL,http://opendatacommunities.org/id/unitary-authority/warrington ,FWB,Assessment & Intervention,31000,Agency Supply ,180000,05-Aug-16,1900205780,1176.00,Capita Resourcing LTD,113201
WARRINGTON BOROUGH COUNCIL,http://opendatacommunities.org/id/unitary-authority/warrington ,FWB,Permanence Team,31100,Agency Supply ,180000,05-Aug-16,1900205782,1758.00,Capita Resourcing LTD,113201
WARRINGTON BOROUGH COUNCIL,http://opendatacommunities.org/id/unitary-authority/warrington ,FWB,Safeguarding Team 3,31003,Agency Supply ,180000,05-Aug-16,1900205775,1168.00,Capita Resourcing LTD,113201
WARRINGTON BOROUGH COUNCIL,http://opendatacommunities.org/id/unitary-authority/warrington ,FWB,Assessment & Intervention,31000,Agency Supply ,180000,10-Aug-16,1900206500,1161.00,Capita Resourcing LTD,113201
WARRINGTON BOROUGH COUNCIL,http://opendatacommunities.org/id/unitary-authority/warrington ,FWB,Assessment & Intervention,31000,Agency Supply ,180000,10-Aug-16,1900206499,1161.00,Capita Resourcing LTD,113201
WARRINGTON BOROUGH COUNCIL,http://opendatacommunities.org/id/unitary-authority/warrington ,FWB,Assessment & Intervention,31000,Agency Supply ,180000,10-Aug-16,1900206498,1332.00,Capita Resourcing LTD,113201
WARRINGTON BOROUGH COUNCIL,http://opendatacommunities.org/id/unitary-authority/warrington ,FWB,Assessment & Intervention,31000,Agency Supply ,180000,10-Aug-16,1900206497,1197.00,Capita Resourcing LTD,113201
WARRINGTON BOROUGH COUNCIL,http://opendatacommunities.org/id/unitary-authority/warrington ,FWB,Assessment & Intervention,31000,Agency Supply ,180000,10-Aug-16,1900206494,1177.00,Capita Resourcing LTD,113201
WARRINGTON BOROUGH COUNCIL,http://opendatacommunities.org/id/unitary-authority/warrington ,FWB,Assessment & Intervention,31000,Agency Supply ,180000,10-Aug-16,1900206503,1161.00,Capita Resourcing LTD,113201
WARRINGTON BOROUGH COUNCIL,http://opendatacommunities.org/id/unitary-authority/warrington ,FWB,Safeguarding Team 2,31002,Agency Supply ,180000,05-Aug-16,1900205784,886.00,Capita Resourcing LTD,113201
WARRINGTON BOROUGH COUNCIL,http://opendatacommunities.org/id/unitary-authority/warrington ,FWB,Assessment & Intervention,31000,Agency Supply ,180000,05-Aug-16,1900205776,1235.00,Capita Resourcing LTD,113201
WARRINGTON BOROUGH COUNCIL,http://opendatacommunities.org/id/unitary-authority/warrington ,FWB,Assessment & Intervention,31000,Agency Supply ,180000,05-Aug-16,1900205783,1173.00,Capita Resourcing LTD,113201
WARRINGTON BOROUGH COUNCIL,http://opendatacommunities.org/id/unitary-authority/warrington ,FWB,Safeguarding Team 2,31002,Agency Supply ,180000,05-Aug-16,1900205785,1758.00,Capita Resourcing LTD,113201
WARRINGTON BOROUGH COUNCIL,http://opendatacommunities.org/id/unitary-authority/warrington ,FWB,Safeguarding Team 3,31003,Agency Supply ,180000,05-Aug-16,1900205774,1164.00,Capita Resourcing LTD,113201
WARRINGTON BOROUGH COUNCIL,http://opendatacommunities.org/id/unitary-authority/warrington ,FWB,Assessment & Intervention,31000,Agency Supply ,180000,10-Aug-16,1900206514,1161.00,Capita Resourcing LTD,113201
WARRINGTON BOROUGH COUNCIL,http://opendatacommunities.org/id/unitary-authority/warrington ,FWB,Assessment & Intervention,31000,Agency Supply ,180000,10-Aug-16,1900206513,1332.00,Capita Resourcing LTD,113201
WARRINGTON BOROUGH COUNCIL,http://opendatacommunities.org/id/unitary-authority/warrington ,FWB,Assessment & Intervention,31000,Agency Supply ,180000,10-Aug-16,1900206511,1177.00,Capita Resourcing LTD,113201
WARRINGTON BOROUGH COUNCIL,http://opendatacommunities.org/id/unitary-authority/warrington ,FWB,Assessment & Intervention,31000,Agency Supply ,180000,10-Aug-16,1900206512,1067.00,Capita Resourcing LTD,113201
WARRINGTON BOROUGH COUNCIL,http://opendatacommunities.org/id/unitary-authority/warrington ,FWB,Assessment & Intervention,31000,Agency Supply ,180000,10-Aug-16,1900206523,1482.00,Capita Resourcing LTD,113201
WARRINGTON BOROUGH COUNCIL,http://opendatacommunities.org/id/unitary-authority/warrington ,FWB,Assessment & Intervention,31000,Agency Supply ,180000,10-Aug-16,1900206505,1161.00,Capita Resourcing LTD,113201
WARRINGTON BOROUGH COUNCIL,http://opendatacommunities.org/id/unitary-authority/warrington ,FWB,Permanence Team,31100,Agency Supply ,180000,10-Aug-16,1900206501,1758.00,Capita Resourcing LTD,113201
WARRINGTON BOROUGH COUNCIL,http://opendatacommunities.org/id/unitary-authority/warrington ,FWB,Safeguarding Team 3,31003,Agency Supply ,180000,10-Aug-16,1900206502,1163.00,Capita Resourcing LTD,113201
WARRINGTON BOROUGH COUNCIL,http://opendatacommunities.org/id/unitary-authority/warrington ,FWB,Assessment & Intervention,31000,Agency Supply ,180000,18-Aug-16,1900206919,1161.00,Capita Resourcing LTD,113201
WARRINGTON BOROUGH COUNCIL,http://opendatacommunities.org/id/unitary-authority/warrington ,FWB,Assessment & Intervention,31000,Agency Supply ,180000,18-Aug-16,1900206920,717.00,Capita Resourcing LTD,113201
WARRINGTON BOROUGH COUNCIL,http://opendatacommunities.org/id/unitary-authority/warrington ,FWB,Assessment & Intervention,31000,Agency Supply ,180000,18-Aug-16,1900206921,1161.00,Capita Resourcing LTD,113201
WARRINGTON BOROUGH COUNCIL,http://opendatacommunities.org/id/unitary-authority/warrington ,FWB,Assessment & Intervention,31000,Agency Supply ,180000,18-Aug-16,1900206922,1332.00,Capita Resourcing LTD,113201
WARRINGTON BOROUGH COUNCIL,http://opendatacommunities.org/id/unitary-authority/warrington ,FWB,Assessment & Intervention,31000,Agency Supply ,180000,18-Aug-16,1900206925,1161.00,Capita Resourcing LTD,113201
WARRINGTON BOROUGH COUNCIL,http://opendatacommunities.org/id/unitary-authority/warrington ,FWB,Assessment & Intervention,31000,Agency Supply ,180000,17-Aug-16,1900206884,1280.00,Capita Resourcing LTD,113201
WARRINGTON BOROUGH COUNCIL,http://opendatacommunities.org/id/unitary-authority/warrington ,FWB,Assessment & Intervention,31000,Agency Supply ,180000,18-Aug-16,1900206923,1170.00,Capita Resourcing LTD,113201
WARRINGTON BOROUGH COUNCIL,http://opendatacommunities.org/id/unitary-authority/warrington ,FWB,Permanence Team,31100,Agency Supply ,180000,17-Aug-16,1900206885,1758.00,Capita Resourcing LTD,113201
WARRINGTON BOROUGH COUNCIL,http://opendatacommunities.org/id/unitary-authority/warrington ,FWB,Assessment & Intervention,31000,Agency Supply ,180000,26-Aug-16,1900207289,1161.00,Capita Resourcing LTD,113201
WARRINGTON BOROUGH COUNCIL,http://opendatacommunities.org/id/unitary-authority/warrington ,FWB,Assessment & Intervention,31000,Agency Supply ,180000,26-Aug-16,1900207283,1332.00,Capita Resourcing LTD,113201
WARRINGTON BOROUGH COUNCIL,http://opendatacommunities.org/id/unitary-authority/warrington ,FWB,Assessment & Intervention,31000,Agency Supply ,180000,26-Aug-16,1900207282,981.00,Capita Resourcing LTD,113201
WARRINGTON BOROUGH COUNCIL,http://opendatacommunities.org/id/unitary-authority/warrington ,FWB,Assessment & Intervention,31000,Agency Supply ,180000,26-Aug-16,1900207287,1215.00,Capita Resourcing LTD,113201
WARRINGTON BOROUGH COUNCIL,http://opendatacommunities.org/id/unitary-authority/warrington ,FWB,Assessment & Intervention,31000,Agency Supply ,180000,26-Aug-16,1900207290,1161.00,Capita Resourcing LTD,113201
WARRINGTON BOROUGH COUNCIL,http://opendatacommunities.org/id/unitary-authority/warrington ,FWB,Safeguarding Team 2,31002,Agency Supply ,180000,24-Aug-16,1900207183,1092.00,Capita Resourcing LTD,113201
WARRINGTON BOROUGH COUNCIL,http://opendatacommunities.org/id/unitary-authority/warrington ,FWB,Assessment & Intervention,31000,Agency Supply ,180000,24-Aug-16,1900207190,1482.00,Capita Resourcing LTD,113201
WARRINGTON BOROUGH COUNCIL,http://opendatacommunities.org/id/unitary-authority/warrington ,FWB,Assessment & Intervention,31000,Agency Supply ,180000,24-Aug-16,1900207178,1173.00,Capita Resourcing LTD,113201
WARRINGTON BOROUGH COUNCIL,http://opendatacommunities.org/id/unitary-authority/warrington ,FWB,Permanence Team,31100,Agency Supply ,180000,24-Aug-16,1900207186,1758.00,Capita Resourcing LTD,113201
WARRINGTON BOROUGH COUNCIL,http://opendatacommunities.org/id/unitary-authority/warrington ,FWB,Safeguarding Team 3,31003,Agency Supply ,180000,24-Aug-16,1900207182,935.00,Capita Resourcing LTD,113201
WARRINGTON BOROUGH COUNCIL,http://opendatacommunities.org/id/unitary-authority/warrington ,FWB,Permanence Team,31100,Agency Supply ,180000,24-Aug-16,1900207180,737.00,Capita Resourcing LTD,113201
WARRINGTON BOROUGH COUNCIL,http://opendatacommunities.org/id/unitary-authority/warrington ,COR,Debt Management Expenses,62080,Consult.& Prof. Serv,440000,11-Aug-16,1900206590,2200.00,Capita Treasury Solutions Ltd,114575
WARRINGTON BOROUGH COUNCIL,http://opendatacommunities.org/id/unitary-authority/warrington ,COR,Debt Management Expenses,62080,Consult.& Prof. Serv,440000,11-Aug-16,1900206591,2250.00,Capita Treasury Solutions Ltd,114575
WARRINGTON BOROUGH COUNCIL,http://opendatacommunities.org/id/unitary-authority/warrington ,COR,Debt Management Expenses,62080,Consult.& Prof. Serv,440000,11-Aug-16,1900206589,2300.00,Capita Treasury Solutions Ltd,114575
WARRINGTON BOROUGH COUNCIL,http://opendatacommunities.org/id/unitary-authority/warrington ,COR,Debt Management Expenses,62080,Consult.& Prof. Serv,440000,11-Aug-16,1900206588,3300.00,Capita Treasury Solutions Ltd,114575
WARRINGTON BOROUGH COUNCIL,http://opendatacommunities.org/id/unitary-authority/warrington ,COR,Debt Management Expenses,62080,Consult.& Prof. Serv,440000,11-Aug-16,1900206587,3450.00,Capita Treasury Solutions Ltd,114575
WARRINGTON BOROUGH COUNCIL,http://opendatacommunities.org/id/unitary-authority/warrington ,COR,Debt Management Expenses,62080,Consult.& Prof. Serv,440000,11-Aug-16,1900206586,3900.00,Capita Treasury Solutions Ltd,114575
WARRINGTON BOROUGH COUNCIL,http://opendatacommunities.org/id/unitary-authority/warrington ,FWB,Care Purchase East Team,54060,CP-Domicil.External,440950,24-Aug-16,1900207079,1459.00,Care and Share Associates know as C,114790
WARRINGTON BOROUGH COUNCIL,http://opendatacommunities.org/id/unitary-authority/warrington ,FWB,Care Purchase Central Team,54050,CP-Domicil.External,440950,24-Aug-16,1900207079,756.00,Care and Share Associates know as C,114790
WARRINGTON BOROUGH COUNCIL,http://opendatacommunities.org/id/unitary-authority/warrington ,FWB,Care Purchase East Team,54060,CP-Domicil.External,440950,12-Aug-16,1900206603,19281.00,Care and Share Associates know as C,114790
WARRINGTON BOROUGH COUNCIL,http://opendatacommunities.org/id/unitary-authority/warrington ,FWB,Care Purchase Central Team,54050,CP-Domicil.External,440950,12-Aug-16,1900206603,12251.00,Care and Share Associates know as C,114790
WARRINGTON BOROUGH COUNCIL,http://opendatacommunities.org/id/unitary-authority/warrington ,FWB,Care Purchase South Team,54070,CP-Domicil.External,440950,12-Aug-16,1900206603,3454.00,Care and Share Associates know as C,114790
WARRINGTON BOROUGH COUNCIL,http://opendatacommunities.org/id/unitary-authority/warrington ,FWB,Intermediate Care at Home,54520,Equipment Purchase & Contract,400000,11-Aug-16,1900206585,2596.00,Care Monitoring 2000 Ltd,112298
WARRINGTON BOROUGH COUNCIL,http://opendatacommunities.org/id/unitary-authority/warrington ,FWB,Care Purchase West Team,54080,CP-Domicil.External,440950,25-Aug-16,1900207213,1427.00,Care Solution Trading as Together C,114526
WARRINGTON BOROUGH COUNCIL,http://opendatacommunities.org/id/unitary-authority/warrington ,FWB,Care Purchase Budget,54490,CP ExternalOther Exp,440800,12-Aug-16,1900206604,29117.00,CareConcepts (Appleton) Ltd,105804
WARRINGTON BOROUGH COUNCIL,http://opendatacommunities.org/id/unitary-authority/warrington ,FWB,Care Purchase Budget,54490,CP ExternalOther Exp,440800,16-Aug-16,1900206751,17640.00,CareConcepts (Appleton) Ltd,105804
WARRINGTON BOROUGH COUNCIL,http://opendatacommunities.org/id/unitary-authority/warrington ,FWB,Care Purchase Budget,54490,CP ExternalOther Exp,440800,16-Aug-16,1900206760,80000.00,CareConcepts (Appleton) Ltd,105804
WARRINGTON BOROUGH COUNCIL,http://opendatacommunities.org/id/unitary-authority/warrington ,FWB,Care Purchase East Team,54060,CP-Domicil.External,440950,11-Aug-16,1900206551,28531.00,Carewatch North Cheshire,104573
WARRINGTON BOROUGH COUNCIL,http://opendatacommunities.org/id/unitary-authority/warrington ,FWB,Care Purchase West Team,54080,CP-Domicil.External,440950,11-Aug-16,1900206551,19430.00,Carewatch North Cheshire,104573
WARRINGTON BOROUGH COUNCIL,http://opendatacommunities.org/id/unitary-authority/warrington ,FWB,Care Purchase South Team,54070,CP-Domicil.External,440950,11-Aug-16,1900206551,16937.00,Carewatch North Cheshire,104573
WARRINGTON BOROUGH COUNCIL,http://opendatacommunities.org/id/unitary-authority/warrington ,FWB,Care Purchase Central Team,54050,CP-Domicil.External,440950,11-Aug-16,1900206551,7379.00,Carewatch North Cheshire,104573
WARRINGTON BOROUGH COUNCIL,http://opendatacommunities.org/id/unitary-authority/warrington ,FWB,Care Purchase Central Team,54050,Supporting People - External,441250,11-Aug-16,1900206551,857.00,Carewatch North Cheshire,104573
WARRINGTON BOROUGH COUNCIL,http://opendatacommunities.org/id/unitary-authority/warrington ,FWB,Care Purchase East Team,54060,CP-Domicil.External,440950,25-Aug-16,1900207276,28108.00,Carewatch North Cheshire,104573
WARRINGTON BOROUGH COUNCIL,http://opendatacommunities.org/id/unitary-authority/warrington ,FWB,Care Purchase West Team,54080,CP-Domicil.External,440950,25-Aug-16,1900207276,19598.00,Carewatch North Cheshire,104573
WARRINGTON BOROUGH COUNCIL,http://opendatacommunities.org/id/unitary-authority/warrington ,FWB,Care Purchase South Team,54070,CP-Domicil.External,440950,25-Aug-16,1900207276,16886.00,Carewatch North Cheshire,104573
WARRINGTON BOROUGH COUNCIL,http://opendatacommunities.org/id/unitary-authority/warrington ,FWB,Care Purchase Central Team,54050,CP-Domicil.External,440950,25-Aug-16,1900207276,5426.00,Carewatch North Cheshire,104573
WARRINGTON BOROUGH COUNCIL,http://opendatacommunities.org/id/unitary-authority/warrington ,FWB,Care Purchase West Team,54080,CP-Domicil.External,440950,12-Aug-16,1900206605,1394.00,Caring Alternatives limited,110164
WARRINGTON BOROUGH COUNCIL,http://opendatacommunities.org/id/unitary-authority/warrington ,FWB,Care Purchase South Team,54070,CP-Domicil.External,440950,12-Aug-16,1900206606,1344.00,Caring Hands,102486
WARRINGTON BOROUGH COUNCIL,http://opendatacommunities.org/id/unitary-authority/warrington ,FWB,Child Disability,32212,CP-Domicil.External,440950,05-Aug-16,1900205815,1655.00,Castlerock Recruitment Group,105279
WARRINGTON BOROUGH COUNCIL,http://opendatacommunities.org/id/unitary-authority/warrington ,FWB,Child Disability,32212,CP-Domicil.External,440950,08-Aug-16,1900205906,1649.00,Castlerock Recruitment Group,105279
WARRINGTON BOROUGH COUNCIL,http://opendatacommunities.org/id/unitary-authority/warrington ,FWB,Contracts - SM Commissioning Team 2,55920,Public Health Contract Payments,540000,08-Aug-16,1900205896,1683.00,Causeway Medical Centre,109278
WARRINGTON BOROUGH COUNCIL,http://opendatacommunities.org/id/unitary-authority/warrington ,FWB,DSG Inter Authority Recoupment,32009,Recoupment Charges,490700,03-Aug-16,1900205722,6068.00,Cavendish High Academy,400226
WARRINGTON BOROUGH COUNCIL,http://opendatacommunities.org/id/unitary-authority/warrington ,FWB,DSG Inter Authority Recoupment,32009,Recoupment Charges,490700,24-Aug-16,1900207110,12136.00,Cavendish High Academy,400226
WARRINGTON BOROUGH COUNCIL,http://opendatacommunities.org/id/unitary-authority/warrington ,EE0,Other Commercial Prop.,43560,Consult.& Prof. Serv,440000,29-Jul-16,1900205501,2500.00,CBRE Limited,113065
WARRINGTON BOROUGH COUNCIL,http://opendatacommunities.org/id/unitary-authority/warrington ,FWB,Care Purchase East Team,54060,CP-Nursing Care-External,441200,01-Aug-16,1900205572,2576.00,Chadderton Total-Care Unit Ltd,100425
WARRINGTON BOROUGH COUNCIL,http://opendatacommunities.org/id/unitary-authority/warrington ,FWB,Halton Music Expenditure,32219,Learning Resources,400100,09-Aug-16,1900205976,4575.00,Charanga,113364
WARRINGTON BOROUGH COUNCIL,http://opendatacommunities.org/id/unitary-authority/warrington ,FWB,Music Education Grant,32220,Learning Resources,400100,09-Aug-16,1900205976,4575.00,Charanga,113364
WARRINGTON BOROUGH COUNCIL,http://opendatacommunities.org/id/unitary-authority/warrington ,FWB,Neighbourhood Co-o West,51307,Payment of Grants,470050,03-Aug-16,1900205659,550.00,Cheeky Cherubs Support & Play Group,400371
WARRINGTON BOROUGH COUNCIL,http://opendatacommunities.org/id/unitary-authority/warrington ,EE0,Environment Services Strategic Director,42130,Subscriptions,470000,10-Aug-16,1900206525,83333.00,Cheshire & Warr Local Enterprise Pa,100748
WARRINGTON BOROUGH COUNCIL,http://opendatacommunities.org/id/unitary-authority/warrington ,RSC,Building Safer Communities,16000,Security Systems,250000,11-Aug-16,1900206540,131098.00,Cheshire Constabulary,115056
WARRINGTON BOROUGH COUNCIL,http://opendatacommunities.org/id/unitary-authority/warrington ,COR,Concessionary Travel,60000,Travelling Allowance,330000,11-Aug-16,1900206592,580.00,Cheshire West And Chester,103357
WARRINGTON BOROUGH COUNCIL,http://opendatacommunities.org/id/unitary-authority/warrington ,RSC,Training & Development,22440,Consult.& Prof. Serv,440000,18-Aug-16,1900206887,16254.00,Cheshire West And Chester,103357
WARRINGTON BOROUGH COUNCIL,http://opendatacommunities.org/id/unitary-authority/warrington ,RSC,Modern Apprentice Programme,21020,Consult.& Prof. Serv,440000,18-Aug-16,1900206891,16823.00,Cheshire West And Chester,103357
WARRINGTON BOROUGH COUNCIL,http://opendatacommunities.org/id/unitary-authority/warrington ,FWB,Care Purchase South Team,54070,CP-Nursing Care-External,441200,17-Aug-16,1900206851,10315.00,Church Walk Health Care Ltd,112505
WARRINGTON BOROUGH COUNCIL,http://opendatacommunities.org/id/unitary-authority/warrington ,FWB,Care Purchase Central Team,54050,CP-LongStayExternal,441150,17-Aug-16,1900206852,6359.00,Church Walk Health Care Ltd,112505
WARRINGTON BOROUGH COUNCIL,http://opendatacommunities.org/id/unitary-authority/warrington ,RSC,Accountancy and Financial Planning,10100,Training,190150,03-Aug-16,1900205698,1397.00,CIPFA,104607
WARRINGTON BOROUGH COUNCIL,http://opendatacommunities.org/id/unitary-authority/warrington ,RSC,Accountancy and Financial Planning,10100,Training,190150,03-Aug-16,1900205700,1397.00,CIPFA,104607
WARRINGTON BOROUGH COUNCIL,http://opendatacommunities.org/id/unitary-authority/warrington ,RSC,Accountancy and Financial Planning,10100,Training,190150,03-Aug-16,1900205701,1397.00,CIPFA,104607
WARRINGTON BOROUGH COUNCIL,http://opendatacommunities.org/id/unitary-authority/warrington ,FWB,Care Purchase South Team,54070,CP-LongStayExternal,441150,08-Aug-16,1900205863,1848.00,Cls Care Services Ltd,104615
WARRINGTON BOROUGH COUNCIL,http://opendatacommunities.org/id/unitary-authority/warrington ,FWB,Care Purchase Central Team,54050,CP-LongStayExternal,441150,24-Aug-16,1900207081,12360.00,Cls Care Services Ltd,104615
WARRINGTON BOROUGH COUNCIL,http://opendatacommunities.org/id/unitary-authority/warrington ,FWB,Care Purchase South Team,54070,CP-LongStayExternal,441150,24-Aug-16,1900207081,7695.00,Cls Care Services Ltd,104615
WARRINGTON BOROUGH COUNCIL,http://opendatacommunities.org/id/unitary-authority/warrington ,FWB,Care Purchase South Team,54070,CP-Nursing Care-External,441200,24-Aug-16,1900207081,3612.00,Cls Care Services Ltd,104615
WARRINGTON BOROUGH COUNCIL,http://opendatacommunities.org/id/unitary-authority/warrington ,FWB,Care Purchase Central Team,54050,CP-Nursing Care-External,441200,24-Aug-16,1900207081,3612.00,Cls Care Services Ltd,104615
WARRINGTON BOROUGH COUNCIL,http://opendatacommunities.org/id/unitary-authority/warrington ,FWB,Care Purchase Budget,54490,CP Free Nursing Care External,443500,24-Aug-16,1900207081,4032.00,Cls Care Services Ltd,104615
WARRINGTON BOROUGH COUNCIL,http://opendatacommunities.org/id/unitary-authority/warrington ,FWB,Care Purchase Budget,54490,CP ExternalOther Exp,440800,08-Aug-16,1900205866,2854.00,Cls Care Services Ltd,104615
WARRINGTON BOROUGH COUNCIL,http://opendatacommunities.org/id/unitary-authority/warrington ,FWB,Care Purchase Budget,54490,CP ExternalOther Exp,440800,16-Aug-16,1900206774,55000.00,Cls Care Services Ltd,104615
WARRINGTON BOROUGH COUNCIL,http://opendatacommunities.org/id/unitary-authority/warrington ,FWB,Care Purchase Central Team,54050,CP-Nursing Care-External,441200,24-Aug-16,1900207087,2976.00,Coed Isaf Nursing Home Ltd,114867
WARRINGTON BOROUGH COUNCIL,http://opendatacommunities.org/id/unitary-authority/warrington ,FWB,Care Purchase Central Team,54050,CP-Nursing Care-External,441200,25-Aug-16,1900207272,2976.00,Coed Isaf Nursing Home Ltd,114867
WARRINGTON BOROUGH COUNCIL,http://opendatacommunities.org/id/unitary-authority/warrington ,FWB,Care Purchase Central Team,54050,CP-Nursing Care-External,441200,24-Aug-16,1900207088,2976.00,Coed Isaf Nursing Home Ltd,114867
WARRINGTON BOROUGH COUNCIL,http://opendatacommunities.org/id/unitary-authority/warrington ,FWB,Care Purchase Central Team,54050,CP-Nursing Care-External,441200,24-Aug-16,1900207093,2976.00,Coed Isaf Nursing Home Ltd,114867
WARRINGTON BOROUGH COUNCIL,http://opendatacommunities.org/id/unitary-authority/warrington ,FWB,Care Purchase East Team,54060,CP-Nursing Care-External,441200,08-Aug-16,1900205849,27620.00,Community Care Matters Limited,102791
WARRINGTON BOROUGH COUNCIL,http://opendatacommunities.org/id/unitary-authority/warrington ,FWB,Care Purchase East Team,54060,CP-LongStayExternal,441150,08-Aug-16,1900205892,8464.00,Community Care Matters Limited,102791
WARRINGTON BOROUGH COUNCIL,http://opendatacommunities.org/id/unitary-authority/warrington ,FWB,Care Purchase West Team,54080,CP-Domicil.External,440950,08-Aug-16,1900205891,8571.00,Community Integrated Care (Cic),100171
WARRINGTON BOROUGH COUNCIL,http://opendatacommunities.org/id/unitary-authority/warrington ,FWB,Care Purchase West Team,54080,CP-Nursing Care-External,441200,24-Aug-16,1900207104,2396.00,Community Integrated Care (Cic),100171
WARRINGTON BOROUGH COUNCIL,http://opendatacommunities.org/id/unitary-authority/warrington ,FWB,Care Purchase South Team,54070,CP-Domicil.External,440950,12-Aug-16,1900206617,2307.00,Community Integrated Care (Cic),100171
WARRINGTON BOROUGH COUNCIL,http://opendatacommunities.org/id/unitary-authority/warrington ,FWB,Care Purchase South Team,54070,CP-Domicil.External,440950,12-Aug-16,1900206611,2307.00,Community Integrated Care (Cic),100171
WARRINGTON BOROUGH COUNCIL,http://opendatacommunities.org/id/unitary-authority/warrington ,FWB,Care Purchase South Team,54070,CP-Domicil.External,440950,12-Aug-16,1900206613,2357.00,Community Integrated Care (Cic),100171
WARRINGTON BOROUGH COUNCIL,http://opendatacommunities.org/id/unitary-authority/warrington ,FWB,Care Purchase South Team,54070,CP-Domicil.External,440950,12-Aug-16,1900206614,2159.00,Community Integrated Care (Cic),100171
WARRINGTON BOROUGH COUNCIL,http://opendatacommunities.org/id/unitary-authority/warrington ,FWB,Care Purchase Central Team,54050,CP-Domicil.External,440950,12-Aug-16,1900206608,1867.00,Community Integrated Care (Cic),100171
WARRINGTON BOROUGH COUNCIL,http://opendatacommunities.org/id/unitary-authority/warrington ,FWB,Care Purchase Central Team,54050,CP-Domicil.External,440950,12-Aug-16,1900206618,1669.00,Community Integrated Care (Cic),100171
WARRINGTON BOROUGH COUNCIL,http://opendatacommunities.org/id/unitary-authority/warrington ,FWB,Care Purchase Central Team,54050,CP-Domicil.External,440950,12-Aug-16,1900206612,1817.00,Community Integrated Care (Cic),100171
WARRINGTON BOROUGH COUNCIL,http://opendatacommunities.org/id/unitary-authority/warrington ,FWB,Care Purchase Central Team,54050,CP-Domicil.External,440950,12-Aug-16,1900206609,1966.00,Community Integrated Care (Cic),100171
WARRINGTON BOROUGH COUNCIL,http://opendatacommunities.org/id/unitary-authority/warrington ,FWB,Care Purchase South Team,54070,CP-Domicil.External,440950,12-Aug-16,1900206619,625.00,Community Integrated Care (Cic),100171
WARRINGTON BOROUGH COUNCIL,http://opendatacommunities.org/id/unitary-authority/warrington ,FWB,Care Purchase South Team,54070,CP-Domicil.External,440950,12-Aug-16,1900206620,628.00,Community Integrated Care (Cic),100171
WARRINGTON BOROUGH COUNCIL,http://opendatacommunities.org/id/unitary-authority/warrington ,FWB,Care Purchase Central Team,54050,CP-Domicil.External,440950,08-Aug-16,1900205890,5796.00,Continuum Support Ltd,112065
WARRINGTON BOROUGH COUNCIL,http://opendatacommunities.org/id/unitary-authority/warrington ,FWB,Care Purchase Central Team,54050,CP-Domicil.External,440950,08-Aug-16,1900205847,5796.00,Continuum Support Ltd,112065
WARRINGTON BOROUGH COUNCIL,http://opendatacommunities.org/id/unitary-authority/warrington ,FWB,Care Purchase East Team,54060,CP-Domicil.External,440950,24-Aug-16,1900207150,11932.00,Continuum Support Ltd,112065
WARRINGTON BOROUGH COUNCIL,http://opendatacommunities.org/id/unitary-authority/warrington ,FWB,Care Purchase Central Team,54050,CP-Domicil.External,440950,24-Aug-16,1900207154,9468.00,Continuum Support Ltd,112065
WARRINGTON BOROUGH COUNCIL,http://opendatacommunities.org/id/unitary-authority/warrington ,FWB,Care Purchase Central Team,54050,CP-Domicil.External,440950,24-Aug-16,1900207115,9608.00,Continuum Support Ltd,112065
WARRINGTON BOROUGH COUNCIL,http://opendatacommunities.org/id/unitary-authority/warrington ,FWB,Care Purchase Central Team,54050,CP-Domicil.External,440950,24-Aug-16,1900207132,11932.00,Continuum Support Ltd,112065
WARRINGTON BOROUGH COUNCIL,http://opendatacommunities.org/id/unitary-authority/warrington ,FWB,Care Purchase Central Team,54050,CP-Domicil.External,440950,24-Aug-16,1900207107,5796.00,Continuum Support Ltd,112065
WARRINGTON BOROUGH COUNCIL,http://opendatacommunities.org/id/unitary-authority/warrington ,RSC,Coroners Service,11100,Removal Bodies & Exc,440350,26-Aug-16,1900207285,521.00,Co-Operative Funeralcare,104637
WARRINGTON BOROUGH COUNCIL,http://opendatacommunities.org/id/unitary-authority/warrington ,RSC,Coroners Service,11100,Removal Bodies & Exc,440350,26-Aug-16,1900207299,562.00,Co-Operative Funeralcare,104637
WARRINGTON BOROUGH COUNCIL,http://opendatacommunities.org/id/unitary-authority/warrington ,RSC,Coroners Service,11100,Removal Bodies & Exc,440350,22-Aug-16,1900206964,1480.00,Co-Operative Funeralcare,104637
WARRINGTON BOROUGH COUNCIL,http://opendatacommunities.org/id/unitary-authority/warrington ,RSC,Coroners Service,11100,Removal Bodies & Exc,440350,01-Aug-16,1900205508,1440.00,Co-Operative Funeralcare,104637
WARRINGTON BOROUGH COUNCIL,http://opendatacommunities.org/id/unitary-authority/warrington ,FWB,Care Purchase East Team,54060,CP-LongStayExternal,441150,01-Aug-16,1900205545,22089.00,Craegmoor Oxen Barn Priory,112933
WARRINGTON BOROUGH COUNCIL,http://opendatacommunities.org/id/unitary-authority/warrington ,FWB,Care Purchase Budget,54490,CP - Cont Care - External,441350,01-Aug-16,1900205546,11466.00,Craegmoor Oxen Barn Priory,112933
WARRINGTON BOROUGH COUNCIL,http://opendatacommunities.org/id/unitary-authority/warrington ,FWB,Care Purchase West Team,54080,CP-Domicil.External,440950,08-Aug-16,1900205855,18186.00,Creative Support Ltd,100902
WARRINGTON BOROUGH COUNCIL,http://opendatacommunities.org/id/unitary-authority/warrington ,FWB,Care Purchase Budget,54490,Voids,515150,08-Aug-16,1900205855,3031.00,Creative Support Ltd,100902
WARRINGTON BOROUGH COUNCIL,http://opendatacommunities.org/id/unitary-authority/warrington ,FWB,Care Purchase West Team,54080,Supporting People - External,441250,08-Aug-16,1900205846,4537.00,Creative Support Ltd,100902
WARRINGTON BOROUGH COUNCIL,http://opendatacommunities.org/id/unitary-authority/warrington ,FWB,Care Purchase Budget,54490,Voids,515150,08-Aug-16,1900205846,2494.00,Creative Support Ltd,100902
WARRINGTON BOROUGH COUNCIL,http://opendatacommunities.org/id/unitary-authority/warrington ,FWB,Care Purchase Central Team,54050,CP-Domicil.External,440950,08-Aug-16,1900205854,899.00,Creative Support Ltd,100902
WARRINGTON BOROUGH COUNCIL,http://opendatacommunities.org/id/unitary-authority/warrington ,FWB,Care Purchase Central Team,54050,CP-Domicil.External,440950,08-Aug-16,1900205857,973.00,Creative Support Ltd,100902
WARRINGTON BOROUGH COUNCIL,http://opendatacommunities.org/id/unitary-authority/warrington ,FWB,Care Purchase West Team,54080,CP-Domicil.External,440950,08-Aug-16,1900205873,9426.00,Creative Support Ltd,100902
WARRINGTON BOROUGH COUNCIL,http://opendatacommunities.org/id/unitary-authority/warrington ,FWB,Care Purchase East Team,54060,CP-Domicil.External,440950,08-Aug-16,1900205873,2581.00,Creative Support Ltd,100902
WARRINGTON BOROUGH COUNCIL,http://opendatacommunities.org/id/unitary-authority/warrington ,FWB,Care Purchase Central Team,54050,CP-Domicil.External,440950,08-Aug-16,1900205873,1008.00,Creative Support Ltd,100902
WARRINGTON BOROUGH COUNCIL,http://opendatacommunities.org/id/unitary-authority/warrington ,FWB,Care Purchase Central Team,54050,CP-Domicil.External,440950,16-Aug-16,1900206732,2147.00,Creative Support Ltd,100902
WARRINGTON BOROUGH COUNCIL,http://opendatacommunities.org/id/unitary-authority/warrington ,FWB,Care Purchase Central Team,54050,Supporting People - External,441250,16-Aug-16,1900206732,8058.00,Creative Support Ltd,100902
WARRINGTON BOROUGH COUNCIL,http://opendatacommunities.org/id/unitary-authority/warrington ,FWB,Care Purchase South Team,54070,CP-Domicil.External,440950,16-Aug-16,1900206753,2854.00,Creative Support Ltd,100902
WARRINGTON BOROUGH COUNCIL,http://opendatacommunities.org/id/unitary-authority/warrington ,FWB,Care Purchase South Team,54070,Supporting People - External,441250,16-Aug-16,1900206753,7973.00,Creative Support Ltd,100902
WARRINGTON BOROUGH COUNCIL,http://opendatacommunities.org/id/unitary-authority/warrington ,FWB,Care Purchase Central Team,54050,CP-Domicil.External,440950,16-Aug-16,1900206743,2708.00,Creative Support Ltd,100902
WARRINGTON BOROUGH COUNCIL,http://opendatacommunities.org/id/unitary-authority/warrington ,FWB,Care Purchase Central Team,54050,Supporting People - External,441250,16-Aug-16,1900206743,9556.00,Creative Support Ltd,100902
WARRINGTON BOROUGH COUNCIL,http://opendatacommunities.org/id/unitary-authority/warrington ,FWB,Care Purchase West Team,54080,Supporting People - External,441250,24-Aug-16,1900207134,1458.00,Creative Support Ltd,100902
WARRINGTON BOROUGH COUNCIL,http://opendatacommunities.org/id/unitary-authority/warrington ,FWB,Care Purchase Budget,54490,Voids,515150,24-Aug-16,1900207134,802.00,Creative Support Ltd,100902
WARRINGTON BOROUGH COUNCIL,http://opendatacommunities.org/id/unitary-authority/warrington ,FWB,Care Purchase West Team,54080,CP-Domicil.External,440950,24-Aug-16,1900207152,5846.00,Creative Support Ltd,100902
WARRINGTON BOROUGH COUNCIL,http://opendatacommunities.org/id/unitary-authority/warrington ,FWB,Care Purchase Budget,54490,Voids,515150,24-Aug-16,1900207152,974.00,Creative Support Ltd,100902
WARRINGTON BOROUGH COUNCIL,http://opendatacommunities.org/id/unitary-authority/warrington ,FWB,Care Purchase Central Team,54050,CP-Domicil.External,440950,24-Aug-16,1900207174,537.00,Creative Support Ltd,100902
WARRINGTON BOROUGH COUNCIL,http://opendatacommunities.org/id/unitary-authority/warrington ,FWB,Care Purchase Central Team,54050,Supporting People - External,441250,24-Aug-16,1900207174,2015.00,Creative Support Ltd,100902
WARRINGTON BOROUGH COUNCIL,http://opendatacommunities.org/id/unitary-authority/warrington ,FWB,Care Purchase Central Team,54050,CP-Domicil.External,440950,24-Aug-16,1900207172,1647.00,Creative Support Ltd,100902
WARRINGTON BOROUGH COUNCIL,http://opendatacommunities.org/id/unitary-authority/warrington ,FWB,Care Purchase Central Team,54050,Supporting People - External,441250,24-Aug-16,1900207172,2359.00,Creative Support Ltd,100902
WARRINGTON BOROUGH COUNCIL,http://opendatacommunities.org/id/unitary-authority/warrington ,FWB,Care Purchase South Team,54070,CP-Domicil.External,440950,24-Aug-16,1900207122,2427.00,Creative Support Ltd,100902
WARRINGTON BOROUGH COUNCIL,http://opendatacommunities.org/id/unitary-authority/warrington ,FWB,Care Purchase South Team,54070,Supporting People - External,441250,24-Aug-16,1900207122,7973.00,Creative Support Ltd,100902
WARRINGTON BOROUGH COUNCIL,http://opendatacommunities.org/id/unitary-authority/warrington ,FWB,Care Purchase West Team,54080,CP-Domicil.External,440950,24-Aug-16,1900207127,8812.00,Creative Support Ltd,100902
WARRINGTON BOROUGH COUNCIL,http://opendatacommunities.org/id/unitary-authority/warrington ,FWB,Care Purchase East Team,54060,CP-Domicil.External,440950,24-Aug-16,1900207127,2507.00,Creative Support Ltd,100902
WARRINGTON BOROUGH COUNCIL,http://opendatacommunities.org/id/unitary-authority/warrington ,FWB,Care Purchase Central Team,54050,CP-Domicil.External,440950,24-Aug-16,1900207127,1008.00,Creative Support Ltd,100902
WARRINGTON BOROUGH COUNCIL,http://opendatacommunities.org/id/unitary-authority/warrington ,FWB,Care Purchase Central Team,54050,CP-Domicil.External,440950,24-Aug-16,1900207171,899.00,Creative Support Ltd,100902
WARRINGTON BOROUGH COUNCIL,http://opendatacommunities.org/id/unitary-authority/warrington ,FWB,Care Purchase Central Team,54050,CP-Domicil.External,440950,24-Aug-16,1900207099,973.00,Creative Support Ltd,100902
WARRINGTON BOROUGH COUNCIL,http://opendatacommunities.org/id/unitary-authority/warrington ,FWB,Care Purchase Central Team,54050,CP-Domicil.External,440950,24-Aug-16,1900207118,4175.00,Creative Support Ltd,100902
WARRINGTON BOROUGH COUNCIL,http://opendatacommunities.org/id/unitary-authority/warrington ,FWB,Care Purchase Central Team,54050,Supporting People - External,441250,24-Aug-16,1900207118,3669.00,Creative Support Ltd,100902
WARRINGTON BOROUGH COUNCIL,http://opendatacommunities.org/id/unitary-authority/warrington ,FWB,Care Purchase Central Team,54050,CP-Domicil.External,440950,24-Aug-16,1900207145,1117.00,Creative Support Ltd,100902
WARRINGTON BOROUGH COUNCIL,http://opendatacommunities.org/id/unitary-authority/warrington ,FWB,Care Purchase Central Team,54050,Supporting People - External,441250,24-Aug-16,1900207145,2021.00,Creative Support Ltd,100902
WARRINGTON BOROUGH COUNCIL,http://opendatacommunities.org/id/unitary-authority/warrington ,FWB,Care Purchase South Team,54070,CP-Domicil.External,440950,25-Aug-16,1900207275,26107.00,Creative Support Ltd,100902
WARRINGTON BOROUGH COUNCIL,http://opendatacommunities.org/id/unitary-authority/warrington ,FWB,Care Purchase Central Team,54050,CP-Domicil.External,440950,25-Aug-16,1900207275,21447.00,Creative Support Ltd,100902
WARRINGTON BOROUGH COUNCIL,http://opendatacommunities.org/id/unitary-authority/warrington ,FWB,Care Purchase Central Team,54050,Supporting People - External,441250,25-Aug-16,1900207275,1917.00,Creative Support Ltd,100902
WARRINGTON BOROUGH COUNCIL,http://opendatacommunities.org/id/unitary-authority/warrington ,FWB,Care Purchase South Team,54070,Supporting People - External,441250,25-Aug-16,1900207275,1131.00,Creative Support Ltd,100902
WARRINGTON BOROUGH COUNCIL,http://opendatacommunities.org/id/unitary-authority/warrington ,FWB,Care Purchase South Team,54070,CP-Domicil.External,440950,24-Aug-16,1900207124,24849.00,Creative Support Ltd,100902
WARRINGTON BOROUGH COUNCIL,http://opendatacommunities.org/id/unitary-authority/warrington ,FWB,Care Purchase Central Team,54050,CP-Domicil.External,440950,24-Aug-16,1900207124,21374.00,Creative Support Ltd,100902
WARRINGTON BOROUGH COUNCIL,http://opendatacommunities.org/id/unitary-authority/warrington ,FWB,Care Purchase Central Team,54050,Supporting People - External,441250,24-Aug-16,1900207124,1917.00,Creative Support Ltd,100902
WARRINGTON BOROUGH COUNCIL,http://opendatacommunities.org/id/unitary-authority/warrington ,FWB,Care Purchase South Team,54070,Supporting People - External,441250,24-Aug-16,1900207124,1131.00,Creative Support Ltd,100902
WARRINGTON BOROUGH COUNCIL,http://opendatacommunities.org/id/unitary-authority/warrington ,FWB,Care Purchase Budget,54490,Voids,515150,24-Aug-16,1900207124,1160.00,Creative Support Ltd,100902
WARRINGTON BOROUGH COUNCIL,http://opendatacommunities.org/id/unitary-authority/warrington ,FWB,Care Purchase Central Team,54050,Supporting People - External,441250,24-Aug-16,1900207146,2621.00,Creative Support Ltd,100902
WARRINGTON BOROUGH COUNCIL,http://opendatacommunities.org/id/unitary-authority/warrington ,FWB,Care Purchase Central Team,54050,CP-Domicil.External,440950,24-Aug-16,1900207136,973.00,Creative Support Ltd,100902
WARRINGTON BOROUGH COUNCIL,http://opendatacommunities.org/id/unitary-authority/warrington ,FWB,Care Purchase Central Team,54050,CP-Domicil.External,440950,24-Aug-16,1900207142,899.00,Creative Support Ltd,100902
WARRINGTON BOROUGH COUNCIL,http://opendatacommunities.org/id/unitary-authority/warrington ,FWB,Care Purchase West Team,54080,CP-Domicil.External,440950,24-Aug-16,1900207149,9168.00,Creative Support Ltd,100902
WARRINGTON BOROUGH COUNCIL,http://opendatacommunities.org/id/unitary-authority/warrington ,FWB,Care Purchase East Team,54060,CP-Domicil.External,440950,24-Aug-16,1900207149,2046.00,Creative Support Ltd,100902
WARRINGTON BOROUGH COUNCIL,http://opendatacommunities.org/id/unitary-authority/warrington ,FWB,Care Purchase Central Team,54050,CP-Domicil.External,440950,24-Aug-16,1900207149,940.00,Creative Support Ltd,100902
WARRINGTON BOROUGH COUNCIL,http://opendatacommunities.org/id/unitary-authority/warrington ,FWB,Care Purchase South Team,54070,CP-Domicil.External,440950,24-Aug-16,1900207130,2636.00,Creative Support Ltd,100902
WARRINGTON BOROUGH COUNCIL,http://opendatacommunities.org/id/unitary-authority/warrington ,FWB,Care Purchase South Team,54070,Supporting People - External,441250,24-Aug-16,1900207130,7973.00,Creative Support Ltd,100902
WARRINGTON BOROUGH COUNCIL,http://opendatacommunities.org/id/unitary-authority/warrington ,FWB,DSG Early Years PVI Settings,32417,Private & Voluntary 3 Year Olds,470100,24-Aug-16,1900207023,8074.00,Croft Early Years Centre,105880
WARRINGTON BOROUGH COUNCIL,http://opendatacommunities.org/id/unitary-authority/warrington ,FWB,Neighbourhood Co-o East,51306,Payment of Grants,470050,05-Aug-16,1900205835,580.00,Culcheth and District Horticultural,115314
WARRINGTON BOROUGH COUNCIL,http://opendatacommunities.org/id/unitary-authority/warrington ,FWB,Neighbourhood Co-o East,51306,Payment of Grants,470050,11-Aug-16,1900206543,1000.00,Culcheth Sports Club,100848
WARRINGTON BOROUGH COUNCIL,http://opendatacommunities.org/id/unitary-authority/warrington ,FWB,DSG Independent School Fees,32011,Independent School Fees,490200,26-Jul-16,1900205166,3396.00,Cumberland & Westmorland Schools Lt,102646
WARRINGTON BOROUGH COUNCIL,http://opendatacommunities.org/id/unitary-authority/warrington ,FWB,DSG Independent School Fees,32011,Independent School Fees,490200,17-Aug-16,1900206865,3396.00,Cumberland School,112919
WARRINGTON BOROUGH COUNCIL,http://opendatacommunities.org/id/unitary-authority/warrington ,ENO,Highways Other,82005,Public Survey Costs,440500,16-Aug-16,1900206804,3900.00,Curtins Consulting Limited,114787
WARRINGTON BOROUGH COUNCIL,http://opendatacommunities.org/id/unitary-authority/warrington ,FWB,Music Education Grant,32220,Events Costs,490000,19-Aug-16,1900206961,10426.00,Dbs Solutions,101574
WARRINGTON BOROUGH COUNCIL,http://opendatacommunities.org/id/unitary-authority/warrington ,FWB,Care Purchase Central Team,54050,CP-Day Care-External,441100,12-Aug-16,1900206624,2217.00,Deafness Support Network,104657
WARRINGTON BOROUGH COUNCIL,http://opendatacommunities.org/id/unitary-authority/warrington ,RSC,Corporate PC Replacement Programme,23000,Computer Hardware - Purchase,450700,02-Aug-16,1900205636,638.00,Dell,104659
WARRINGTON BOROUGH COUNCIL,http://opendatacommunities.org/id/unitary-authority/warrington ,RSC,Corporate PC Replacement Programme,23000,Computer Hardware - Purchase,450700,01-Aug-16,1900205621,887.00,Dell,104659
WARRINGTON BOROUGH COUNCIL,http://opendatacommunities.org/id/unitary-authority/warrington ,CYP,Childrens Other,81004,Furniture & Fittings,400150,22-Jul-16,1900204965,1083.00,Devablinds Ltd,115116
WARRINGTON BOROUGH COUNCIL,http://opendatacommunities.org/id/unitary-authority/warrington ,FWB,Care Purchase South Team,54070,CP-Domicil.External,440950,01-Aug-16,1900205554,11803.00,Dh Homecare,101961
WARRINGTON BOROUGH COUNCIL,http://opendatacommunities.org/id/unitary-authority/warrington ,FWB,Care Purchase Central Team,54050,CP-Domicil.External,440950,01-Aug-16,1900205554,8233.00,Dh Homecare,101961
WARRINGTON BOROUGH COUNCIL,http://opendatacommunities.org/id/unitary-authority/warrington ,FWB,Care Purchase East Team,54060,CP-Domicil.External,440950,01-Aug-16,1900205554,662.00,Dh Homecare,101961
WARRINGTON BOROUGH COUNCIL,http://opendatacommunities.org/id/unitary-authority/warrington ,FWB,Care Purchase South Team,54070,CP-Domicil.External,440950,12-Aug-16,1900206622,11586.00,Dh Homecare,101961
WARRINGTON BOROUGH COUNCIL,http://opendatacommunities.org/id/unitary-authority/warrington ,FWB,Care Purchase Central Team,54050,CP-Domicil.External,440950,12-Aug-16,1900206622,7542.00,Dh Homecare,101961
WARRINGTON BOROUGH COUNCIL,http://opendatacommunities.org/id/unitary-authority/warrington ,FWB,Care Purchase East Team,54060,CP-Domicil.External,440950,12-Aug-16,1900206622,966.00,Dh Homecare,101961
WARRINGTON BOROUGH COUNCIL,http://opendatacommunities.org/id/unitary-authority/warrington ,FWB,Children with Disabilities,31005,Transport SLA,300400,04-Aug-16,1900205773,532.00,Direct Taxis,101873
WARRINGTON BOROUGH COUNCIL,http://opendatacommunities.org/id/unitary-authority/warrington ,RSC,Advertising Team,52123,CRB Checks,190050,01-Aug-16,1900205633,15369.00,Disclosure & Barring Service,440085
WARRINGTON BOROUGH COUNCIL,http://opendatacommunities.org/id/unitary-authority/warrington ,RSC,Coroners Service,11100,Post Mortem Fees-Rep,440250,17-Aug-16,1900206863,1548.00,Dr C M Manson,100080
WARRINGTON BOROUGH COUNCIL,http://opendatacommunities.org/id/unitary-authority/warrington ,RSC,Coroners Service,11100,Post Mortem Fees-Rep,440250,16-Aug-16,1900206789,596.00,Dr C P Johnson,104840
WARRINGTON BOROUGH COUNCIL,http://opendatacommunities.org/id/unitary-authority/warrington ,RSC,Coroners Service,11100,Post Mortem Fees-Rep,440250,22-Aug-16,1900206968,2219.00,Dr Cheng Li,107950
WARRINGTON BOROUGH COUNCIL,http://opendatacommunities.org/id/unitary-authority/warrington ,RSC,Coroners Service,11100,Post Mortem Fees-Rep,440250,17-Aug-16,1900206848,3078.00,Dr D Butterworth,100765
WARRINGTON BOROUGH COUNCIL,http://opendatacommunities.org/id/unitary-authority/warrington ,RSC,Coroners Service,11100,Post Mortem Fees-Rep,440250,22-Aug-16,1900206965,1420.00,Dr D S Shareef,105121
WARRINGTON BOROUGH COUNCIL,http://opendatacommunities.org/id/unitary-authority/warrington ,RSC,Coroners Service,11100,Reimbursement for Deputy Coroner,440400,18-Aug-16,1900206897,2625.00,Dr J E Napier,100061
WARRINGTON BOROUGH COUNCIL,http://opendatacommunities.org/id/unitary-authority/warrington ,RSC,Coroners Service,11100,Reimbursement for Deputy Coroner,440400,17-Aug-16,1900206844,2638.00,Dr J E Napier,100061
WARRINGTON BOROUGH COUNCIL,http://opendatacommunities.org/id/unitary-authority/warrington ,RSC,Coroners Service,11100,Reimbursement for Deputy Coroner,440400,16-Aug-16,1900206797,2625.00,Dr J E Napier  - Practice,101238
WARRINGTON BOROUGH COUNCIL,http://opendatacommunities.org/id/unitary-authority/warrington ,RSC,Coroners Service,11100,Post Mortem Fees-Rep,440250,16-Aug-16,1900206809,1533.00,Dr J Krajacevic,100409
WARRINGTON BOROUGH COUNCIL,http://opendatacommunities.org/id/unitary-authority/warrington ,RSC,Coroners Service,11100,Post Mortem Fees-Rep,440250,17-Aug-16,1900206845,2129.00,Dr J.S Stafford,100426
WARRINGTON BOROUGH COUNCIL,http://opendatacommunities.org/id/unitary-authority/warrington ,RSC,Coroners Service,11100,Reimbursement for Deputy Coroner,440400,22-Aug-16,1900206971,600.00,Dr N A Mir,106632
WARRINGTON BOROUGH COUNCIL,http://opendatacommunities.org/id/unitary-authority/warrington ,RSC,Coroners Service,11100,Post Mortem Fees-Rep,440250,22-Aug-16,1900206973,1080.00,Dr N Alash,100579
WARRINGTON BOROUGH COUNCIL,http://opendatacommunities.org/id/unitary-authority/warrington ,RSC,Coroners Service,11100,Post Mortem Fees-Rep,440250,22-Aug-16,1900206974,966.00,Dr Natalie Meara,101727
WARRINGTON BOROUGH COUNCIL,http://opendatacommunities.org/id/unitary-authority/warrington ,RSC,Coroners Service,11100,Post Mortem Fees-Rep,440250,16-Aug-16,1900206801,721.00,Dr S A Hales,100988
WARRINGTON BOROUGH COUNCIL,http://opendatacommunities.org/id/unitary-authority/warrington ,RSC,Coroners Service,11100,Post Mortem Fees-Rep,440250,16-Aug-16,1900206807,912.00,Dr W E Kenyon,104851
WARRINGTON BOROUGH COUNCIL,http://opendatacommunities.org/id/unitary-authority/warrington ,EE0,Other Commercial Prop.,43560,Consult.& Prof. Serv,440000,01-Aug-16,1900205518,1130.00,Dwf LLP,101511
WARRINGTON BOROUGH COUNCIL,http://opendatacommunities.org/id/unitary-authority/warrington ,EE0,Other Commercial Prop.,43560,Consult.& Prof. Serv,440000,01-Aug-16,1900205506,2644.00,Dwf LLP,101511
WARRINGTON BOROUGH COUNCIL,http://opendatacommunities.org/id/unitary-authority/warrington ,FWB,Care Purchase Central Team,54050,CP-Domicil.External,440950,24-Aug-16,1900207176,2000.00,East Cheshire Housing Consortium,110170
WARRINGTON BOROUGH COUNCIL,http://opendatacommunities.org/id/unitary-authority/warrington ,FWB,Care Purchase Central Team,54050,CP-Domicil.External,440950,24-Aug-16,1900207121,4000.00,East Cheshire Housing Consortium,110170
WARRINGTON BOROUGH COUNCIL,http://opendatacommunities.org/id/unitary-authority/warrington ,FWB,Care Purchase Central Team,54050,CP-Domicil.External,440950,24-Aug-16,1900207143,2000.00,East Cheshire Housing Consortium,110170
WARRINGTON BOROUGH COUNCIL,http://opendatacommunities.org/id/unitary-authority/warrington ,FWB,Care Purchase East Team,54060,CP-Domicil.External,440950,24-Aug-16,1900207175,1200.00,East Cheshire Housing Consortium,110170
WARRINGTON BOROUGH COUNCIL,http://opendatacommunities.org/id/unitary-authority/warrington ,RSC,Coroners Service,11100,Post Mortem Fees-Rep,440250,01-Aug-16,1900205510,1144.00,East Cheshire Nhs Trust,440130
WARRINGTON BOROUGH COUNCIL,http://opendatacommunities.org/id/unitary-authority/warrington ,RSC,Coroners Service,11100,Post Mortem Fees-Rep,440250,16-Aug-16,1900206827,1268.00,East Cheshire Nhs Trust,440130
WARRINGTON BOROUGH COUNCIL,http://opendatacommunities.org/id/unitary-authority/warrington ,FWB,Care Purchase South Team,54070,CP-LongStayExternal,441150,12-Aug-16,1900206626,2500.00,EBS Services Ltd (Rodney House),115343
WARRINGTON BOROUGH COUNCIL,http://opendatacommunities.org/id/unitary-authority/warrington ,PIO,People & Improvement Other,85002,Consult.& Prof. Serv,440000,10-Aug-16,1900205990,1910.00,ECS Consultants,114625
WARRINGTON BOROUGH COUNCIL,http://opendatacommunities.org/id/unitary-authority/warrington ,NEO,IT Projects,83003,Consult.& Prof. Serv,440000,10-Aug-16,1900205986,1096.00,ECS Consultants,114625
WARRINGTON BOROUGH COUNCIL,http://opendatacommunities.org/id/unitary-authority/warrington ,PIO,People & Improvement Other,85002,Consult.& Prof. Serv,440000,11-Aug-16,1900206559,1910.00,ECS Consultants,114625
WARRINGTON BOROUGH COUNCIL,http://opendatacommunities.org/id/unitary-authority/warrington ,NEO,IT Projects,83003,Security Guards,441000,10-Aug-16,1900205985,718.00,ECS Consultants,114625
WARRINGTON BOROUGH COUNCIL,http://opendatacommunities.org/id/unitary-authority/warrington ,PIO,People & Improvement Other,85002,Consult.& Prof. Serv,440000,10-Aug-16,1900205987,955.00,ECS Consultants,114625
WARRINGTON BOROUGH COUNCIL,http://opendatacommunities.org/id/unitary-authority/warrington ,NEO,IT Projects,83003,Consult.& Prof. Serv,440000,10-Aug-16,1900205988,718.00,ECS Consultants,114625
WARRINGTON BOROUGH COUNCIL,http://opendatacommunities.org/id/unitary-authority/warrington ,PIO,People & Improvement Other,85002,Security Guards,441000,10-Aug-16,1900205984,955.00,ECS Consultants,114625
WARRINGTON BOROUGH COUNCIL,http://opendatacommunities.org/id/unitary-authority/warrington ,NEO,Neighbourhood & Community Other,83002,Consult.& Prof. Serv,440000,10-Aug-16,1900205991,1435.00,ECS Consultants,114625
WARRINGTON BOROUGH COUNCIL,http://opendatacommunities.org/id/unitary-authority/warrington ,NEO,Neighbourhood & Community Other,83002,Consult.& Prof. Serv,440000,10-Aug-16,1900205989,1435.00,ECS Consultants,114625
WARRINGTON BOROUGH COUNCIL,http://opendatacommunities.org/id/unitary-authority/warrington ,NEO,Neighbourhood & Community Other,83002,Consult.& Prof. Serv,440000,11-Aug-16,1900206555,1435.00,ECS Consultants,114625
WARRINGTON BOROUGH COUNCIL,http://opendatacommunities.org/id/unitary-authority/warrington ,HOL,Single Billing Holding Account,91130,ICT Comms - Line Rental,450200,01-Aug-16,1900205634,18272.00,EE Airtime,104996
WARRINGTON BOROUGH COUNCIL,http://opendatacommunities.org/id/unitary-authority/warrington ,RSC,ICT Networks,23400,ICT Comms - Line Rental,450200,02-Aug-16,1900205639,9408.00,EE Airtime,104996
WARRINGTON BOROUGH COUNCIL,http://opendatacommunities.org/id/unitary-authority/warrington ,FWB,Care Purchase Budget,54490,CP ExternalOther Exp,440800,12-Aug-16,1900206628,23574.00,Embrace Group,109675
WARRINGTON BOROUGH COUNCIL,http://opendatacommunities.org/id/unitary-authority/warrington ,FWB,Care Purchase Budget,54490,CP ExternalOther Exp,440800,16-Aug-16,1900206758,35000.00,Embrace Group,109675
WARRINGTON BOROUGH COUNCIL,http://opendatacommunities.org/id/unitary-authority/warrington ,RSC,HR Advisory,20005,Computer Software - Purchase,450800,26-Aug-16,1900207329,3499.00,Firstcare Ltd Absense Management,115321
WARRINGTON BOROUGH COUNCIL,http://opendatacommunities.org/id/unitary-authority/warrington ,FWB,Care Purchase West Team,54080,CP-Domicil.External,440950,16-Aug-16,1900206737,1570.00,Focus on Care,108343
WARRINGTON BOROUGH COUNCIL,http://opendatacommunities.org/id/unitary-authority/warrington ,FWB,Care Purchase West Team,54080,CP-Domicil.External,440950,16-Aug-16,1900206742,628.00,Focus on Care,108343
WARRINGTON BOROUGH COUNCIL,http://opendatacommunities.org/id/unitary-authority/warrington ,FWB,Care Purchase Budget,54490,CP - Cont Care - External,441350,16-Aug-16,1900206739,879.00,Focus on Care,108343
WARRINGTON BOROUGH COUNCIL,http://opendatacommunities.org/id/unitary-authority/warrington ,RSC,Coroners Service,11100,Analysts Fees,440300,24-Aug-16,1900207042,769.00,Forensics Ltd,105295
WARRINGTON BOROUGH COUNCIL,http://opendatacommunities.org/id/unitary-authority/warrington ,RSC,Coroners Service,11100,Analysts Fees,440300,03-Aug-16,1900205710,1012.00,Forensics Ltd,105295
WARRINGTON BOROUGH COUNCIL,http://opendatacommunities.org/id/unitary-authority/warrington ,RSC,Coroners Service,11100,Analysts Fees,440300,03-Aug-16,1900205711,842.00,Forensics Ltd,105295
WARRINGTON BOROUGH COUNCIL,http://opendatacommunities.org/id/unitary-authority/warrington ,RSC,Coroners Service,11100,Analysts Fees,440300,17-Aug-16,1900206857,1241.00,Forensics Ltd,105295
WARRINGTON BOROUGH COUNCIL,http://opendatacommunities.org/id/unitary-authority/warrington ,RSC,Coroners Service,11100,Analysts Fees,440300,22-Aug-16,1900206986,718.00,Forensics Ltd,105295
WARRINGTON BOROUGH COUNCIL,http://opendatacommunities.org/id/unitary-authority/warrington ,RSC,Coroners Service,11100,Analysts Fees,440300,22-Aug-16,1900206985,812.00,Forensics Ltd,105295
WARRINGTON BOROUGH COUNCIL,http://opendatacommunities.org/id/unitary-authority/warrington ,RSC,Coroners Service,11100,Analysts Fees,440300,22-Aug-16,1900206983,786.00,Forensics Ltd,105295
WARRINGTON BOROUGH COUNCIL,http://opendatacommunities.org/id/unitary-authority/warrington ,FWB,Legal Fees - Safeguarding,30100,Legal Costs Incurred,440200,08-Aug-16,1900205926,1825.00,Foresight Clinical Services,110173
WARRINGTON BOROUGH COUNCIL,http://opendatacommunities.org/id/unitary-authority/warrington ,FWB,Care Purchase South Team,54070,CP-Nursing Care-External,441200,24-Aug-16,1900207184,2510.00,Four Seasons Health Care,100629
WARRINGTON BOROUGH COUNCIL,http://opendatacommunities.org/id/unitary-authority/warrington ,FWB,Care Purchase Budget,54490,CP ExternalOther Exp,440800,12-Aug-16,1900206686,13973.00,Four Seasons ta St Oswalds Care Hom,109422
WARRINGTON BOROUGH COUNCIL,http://opendatacommunities.org/id/unitary-authority/warrington ,FWB,Care Purchase Budget,54490,CP ExternalOther Exp,440800,16-Aug-16,1900206781,30000.00,Four Seasons ta St Oswalds Care Hom,109422
WARRINGTON BOROUGH COUNCIL,http://opendatacommunities.org/id/unitary-authority/warrington ,FWB,Child Disability,32212,CP-Domicil.External,440950,08-Aug-16,1900205921,600.00,Frewco Services Limited,113518
WARRINGTON BOROUGH COUNCIL,http://opendatacommunities.org/id/unitary-authority/warrington ,FWB,Neighbourhood Co-o East,51306,Payment of Grants,470050,04-Aug-16,1900205750,1000.00,Friends of Birchwood Forest park,115508
WARRINGTON BOROUGH COUNCIL,http://opendatacommunities.org/id/unitary-authority/warrington ,FWB,Neighbourhood Co-o Central,51309,Payment of Grants,470050,04-Aug-16,1900205770,2000.00,Friends of St Elphins Park,110405
WARRINGTON BOROUGH COUNCIL,http://opendatacommunities.org/id/unitary-authority/warrington ,FWB,Permanence Team,31100,Agency Supply ,180000,18-Aug-16,1900206918,1355.00,Frontline,108933
WARRINGTON BOROUGH COUNCIL,http://opendatacommunities.org/id/unitary-authority/warrington ,FWB,Care Purchase East Team,54060,CP-Domicil.External,440950,24-Aug-16,1900207106,1554.00,Future Directions Community Interes,111498
WARRINGTON BOROUGH COUNCIL,http://opendatacommunities.org/id/unitary-authority/warrington ,FWB,Care Purchase South Team,54070,CP-Domicil.External,440950,24-Aug-16,1900207109,6614.00,Future Directions Community Interes,111498
WARRINGTON BOROUGH COUNCIL,http://opendatacommunities.org/id/unitary-authority/warrington ,FWB,Care Purchase West Team,54080,CP-Domicil.External,440950,24-Aug-16,1900207109,2052.00,Future Directions Community Interes,111498
WARRINGTON BOROUGH COUNCIL,http://opendatacommunities.org/id/unitary-authority/warrington ,FWB,Care Purchase Budget,54490,CP ExternalOther Exp,440800,16-Aug-16,1900206805,2259.00,GNR Care Limited,114127
WARRINGTON BOROUGH COUNCIL,http://opendatacommunities.org/id/unitary-authority/warrington ,FWB,Care Purchase Budget,54490,CP ExternalOther Exp,440800,16-Aug-16,1900206794,20000.00,GNR Care Limited,114127
WARRINGTON BOROUGH COUNCIL,http://opendatacommunities.org/id/unitary-authority/warrington ,COR,Debt Management Expenses,62080,Consult.& Prof. Serv,440000,22-Aug-16,1900206994,19965.00,Grant Thornton UK LLP,108316
WARRINGTON BOROUGH COUNCIL,http://opendatacommunities.org/id/unitary-authority/warrington ,FWB,Care Purchase West Team,54080,CP-Day Care-External,441100,01-Aug-16,1900205555,720.00,Great Opportunities Together CIC,110076
WARRINGTON BOROUGH COUNCIL,http://opendatacommunities.org/id/unitary-authority/warrington ,RSC,Council Tax & Recovery,10320,Land Registry Fees,441600,24-Aug-16,1900207022,600.00,Greenhalgh Kerr Commercial Lit,115538
WARRINGTON BOROUGH COUNCIL,http://opendatacommunities.org/id/unitary-authority/warrington ,FWB,Contracts - SM Commissioning Team 2,55920,Public Health Contract Payments,540000,31-Aug-16,1900207362,2156.00,Greenhalgh Kerr Commercial Lit,115538
WARRINGTON BOROUGH COUNCIL,http://opendatacommunities.org/id/unitary-authority/warrington ,FWB,Care Purchase South Team,54070,CP-LongStayExternal,441150,01-Aug-16,1900205558,12348.00,Griffin Care Ltd,101672
WARRINGTON BOROUGH COUNCIL,http://opendatacommunities.org/id/unitary-authority/warrington ,FWB,Care Purchase East Team,54060,CP-LongStayExternal,441150,01-Aug-16,1900205557,1348.00,Griffin Care Ltd,101672
WARRINGTON BOROUGH COUNCIL,http://opendatacommunities.org/id/unitary-authority/warrington ,FWB,Care Purchase East Team,54060,CP-LongStayExternal,441150,10-Aug-16,1900206495,12348.00,Griffin Care Ltd,101672
WARRINGTON BOROUGH COUNCIL,http://opendatacommunities.org/id/unitary-authority/warrington ,FWB,Care Purchase South Team,54070,CP-LongStayExternal,441150,24-Aug-16,1900207120,12348.00,Griffin Care Ltd,101672
WARRINGTON BOROUGH COUNCIL,http://opendatacommunities.org/id/unitary-authority/warrington ,FWB,Care Purchase East Team,54060,CP-LongStayExternal,441150,24-Aug-16,1900207199,12348.00,Griffin Care Ltd,101672
WARRINGTON BOROUGH COUNCIL,http://opendatacommunities.org/id/unitary-authority/warrington ,CYP,Childrens Other,81004,ICT Comms - Equipment Purchase,450100,29-Jul-16,1900205427,2575.00,Gwarm Technology,115493
WARRINGTON BOROUGH COUNCIL,http://opendatacommunities.org/id/unitary-authority/warrington ,RSC,Referendum,11600,Consult.& Prof. Serv,440000,26-Jul-16,1900205182,5760.00,Halarose Ltd,115127
WARRINGTON BOROUGH COUNCIL,http://opendatacommunities.org/id/unitary-authority/warrington ,RSC,Referendum,11600,Consult.& Prof. Serv,440000,26-Jul-16,1900205182,1152.00,Halarose Ltd,115127
WARRINGTON BOROUGH COUNCIL,http://opendatacommunities.org/id/unitary-authority/warrington ,FWB,Music Education Grant,32220,Consult.& Prof. Serv,440000,26-Jul-16,1900205183,13519.00,Halton & Warrington Music Support S,114685
WARRINGTON BOROUGH COUNCIL,http://opendatacommunities.org/id/unitary-authority/warrington ,FWB,Halton Music Expenditure,32219,Consult.& Prof. Serv,440000,26-Jul-16,1900205185,21398.00,Halton & Warrington Music Support S,114685
WARRINGTON BOROUGH COUNCIL,http://opendatacommunities.org/id/unitary-authority/warrington ,FWB,Halton Music Expenditure,32219,Consult.& Prof. Serv,440000,19-Aug-16,1900206958,10226.00,Halton & Warrington Music Support S,114685
WARRINGTON BOROUGH COUNCIL,http://opendatacommunities.org/id/unitary-authority/warrington ,FWB,Care Purchase West Team,54080,CP-Domicil.External,440950,01-Aug-16,1900205559,17296.00,Hannahs Homecare Ltd,114443
WARRINGTON BOROUGH COUNCIL,http://opendatacommunities.org/id/unitary-authority/warrington ,FWB,Care Purchase Central Team,54050,CP-Domicil.External,440950,01-Aug-16,1900205559,1419.00,Hannahs Homecare Ltd,114443
WARRINGTON BOROUGH COUNCIL,http://opendatacommunities.org/id/unitary-authority/warrington ,FWB,Care Purchase West Team,54080,CP-Domicil.External,440950,24-Aug-16,1900207192,18956.00,Hannahs Homecare Ltd,114443
WARRINGTON BOROUGH COUNCIL,http://opendatacommunities.org/id/unitary-authority/warrington ,FWB,Care Purchase Central Team,54050,CP-Domicil.External,440950,24-Aug-16,1900207192,2629.00,Hannahs Homecare Ltd,114443
WARRINGTON BOROUGH COUNCIL,http://opendatacommunities.org/id/unitary-authority/warrington ,FWB,Care Purchase Budget,54490,CP ExternalOther Exp,440800,12-Aug-16,1900206641,12716.00,Harbour Healthcare 1 Ltd,110527
WARRINGTON BOROUGH COUNCIL,http://opendatacommunities.org/id/unitary-authority/warrington ,FWB,Care Purchase Budget,54490,CP ExternalOther Exp,440800,16-Aug-16,1900206783,45000.00,Harbour Healthcare 1 Ltd,110527
WARRINGTON BOROUGH COUNCIL,http://opendatacommunities.org/id/unitary-authority/warrington ,HOL,Single Billing Holding Account,91130,Agency Supply ,180000,02-Aug-16,1900205644,35789.00,Hays Specialist Recruitment Ltd,107512
WARRINGTON BOROUGH COUNCIL,http://opendatacommunities.org/id/unitary-authority/warrington ,HOL,Single Billing Holding Account,91130,Agency Supply ,180000,02-Aug-16,1900205643,51700.00,Hays Specialist Recruitment Ltd,107512
WARRINGTON BOROUGH COUNCIL,http://opendatacommunities.org/id/unitary-authority/warrington ,HOL,Single Billing Holding Account,91130,Agency Supply ,180000,29-Jul-16,1900205438,41411.00,Hays Specialist Recruitment Ltd,107512
WARRINGTON BOROUGH COUNCIL,http://opendatacommunities.org/id/unitary-authority/warrington ,HOL,Single Billing Holding Account,91130,Agency Supply ,180000,05-Aug-16,1900205838,28469.00,Hays Specialist Recruitment Ltd,107512
WARRINGTON BOROUGH COUNCIL,http://opendatacommunities.org/id/unitary-authority/warrington ,HOL,Single Billing Holding Account,91130,Agency Supply ,180000,11-Aug-16,1900206542,28186.00,Hays Specialist Recruitment Ltd,107512
WARRINGTON BOROUGH COUNCIL,http://opendatacommunities.org/id/unitary-authority/warrington ,HOL,Single Billing Holding Account,91130,Agency Supply ,180000,23-Aug-16,1900207010,50493.00,Hays Specialist Recruitment Ltd,107512
WARRINGTON BOROUGH COUNCIL,http://opendatacommunities.org/id/unitary-authority/warrington ,FWB,Care Purchase East Team,54060,CP-Nursing Care-External,441200,01-Aug-16,1900205563,1520.00,HC One - Carrington Court,115063
WARRINGTON BOROUGH COUNCIL,http://opendatacommunities.org/id/unitary-authority/warrington ,FWB,Care Purchase Central Team,54050,CP-LongStayExternal,441150,01-Aug-16,1900205566,1842.00,HC One (Hulton Care Nursing Home),115141
WARRINGTON BOROUGH COUNCIL,http://opendatacommunities.org/id/unitary-authority/warrington ,FWB,Care Purchase Budget,54490,CP ExternalOther Exp,440800,16-Aug-16,1900206763,59067.00,HC-One Limited Callands,109640
WARRINGTON BOROUGH COUNCIL,http://opendatacommunities.org/id/unitary-authority/warrington ,FWB,Care Purchase Budget,54490,CP ExternalOther Exp,440800,16-Aug-16,1900206759,150000.00,HC-One Limited Callands,109640
WARRINGTON BOROUGH COUNCIL,http://opendatacommunities.org/id/unitary-authority/warrington ,FWB,Care Purchase Budget,54490,CP ExternalOther Exp,440800,12-Aug-16,1900206642,2616.00,Heathfield Residental Home,100059
WARRINGTON BOROUGH COUNCIL,http://opendatacommunities.org/id/unitary-authority/warrington ,FWB,Care Purchase Budget,54490,CP ExternalOther Exp,440800,16-Aug-16,1900206754,9000.00,Heathfield Residental Home,100059
WARRINGTON BOROUGH COUNCIL,http://opendatacommunities.org/id/unitary-authority/warrington ,FWB,Care Purchase Budget,54490,CP ExternalOther Exp,440800,08-Aug-16,1900205878,9250.00,Heathside Elderly Persons Home,104777
WARRINGTON BOROUGH COUNCIL,http://opendatacommunities.org/id/unitary-authority/warrington ,FWB,Care Purchase Budget,54490,CP ExternalOther Exp,440800,16-Aug-16,1900206756,40000.00,Heathside Elderly Persons Home,104777
WARRINGTON BOROUGH COUNCIL,http://opendatacommunities.org/id/unitary-authority/warrington ,ENO,Housing Projects,82008,Disabled Persons Grant 1996,554000,22-Aug-16,1900206987,3454.00,Helena Partnerships,109566
WARRINGTON BOROUGH COUNCIL,http://opendatacommunities.org/id/unitary-authority/warrington ,RSC,Council Tax & Recovery,10320,Court Costs,460100,15-Aug-16,1900206695,3213.00,Hmcs North Cheshire Collections,102261
WARRINGTON BOROUGH COUNCIL,http://opendatacommunities.org/id/unitary-authority/warrington ,FWB,Care Purchase Central Team,54050,CP-Domicil.External,440950,25-Aug-16,1900207244,2524.00,Homelife Leeds Ltd,101794
WARRINGTON BOROUGH COUNCIL,http://opendatacommunities.org/id/unitary-authority/warrington ,FWB,Care Purchase Budget,54490,CP - Cont Care - External,441350,08-Aug-16,1900205877,8684.00,Hope School,111653
WARRINGTON BOROUGH COUNCIL,http://opendatacommunities.org/id/unitary-authority/warrington ,FWB,DAT Pooled Budget,53860,Drug Action,443600,26-Aug-16,1900207312,534.00,Hub Pharmacy Ltd,104278
WARRINGTON BOROUGH COUNCIL,http://opendatacommunities.org/id/unitary-authority/warrington ,FWB,DSG Support for SEN,32013,Independent School Fees,490200,24-Aug-16,1900207094,626.00,Hughes & Co,115338
WARRINGTON BOROUGH COUNCIL,http://opendatacommunities.org/id/unitary-authority/warrington ,FWB,Care Purchase Central Team,54050,Direct Payments,552000,10-Aug-16,1900206439,806.00,Ignatious Hawkins,461293
WARRINGTON BOROUGH COUNCIL,http://opendatacommunities.org/id/unitary-authority/warrington ,FWB,Care Purchase Central Team,54050,CP-LongStayExternal,441150,12-Aug-16,1900206631,12744.00,Inclusive Lifestyles Ltd,101840
WARRINGTON BOROUGH COUNCIL,http://opendatacommunities.org/id/unitary-authority/warrington ,FWB,Care Purchase West Team,54080,CP-LongStayExternal,441150,12-Aug-16,1900206630,12613.00,Inclusive Lifestyles Ltd,101840
WARRINGTON BOROUGH COUNCIL,http://opendatacommunities.org/id/unitary-authority/warrington ,FWB,Care Purchase Central Team,54050,CP-LongStayExternal,441150,12-Aug-16,1900206643,1482.00,Inclusive Lifestyles Ltd,101840
WARRINGTON BOROUGH COUNCIL,http://opendatacommunities.org/id/unitary-authority/warrington ,ENO,Housing Projects,82008,Disabled Persons Grant 1996,554000,09-Aug-16,1900205958,3355.00,Independent Adaptations,110198
WARRINGTON BOROUGH COUNCIL,http://opendatacommunities.org/id/unitary-authority/warrington ,FWB,Care Purchase Central Team,54050,CP-Domicil.External,440950,24-Aug-16,1900207158,3268.00,Independent Living Alliance,100726
WARRINGTON BOROUGH COUNCIL,http://opendatacommunities.org/id/unitary-authority/warrington ,FWB,Care Purchase South Team,54070,CP-Domicil.External,440950,24-Aug-16,1900207158,751.00,Independent Living Alliance,100726
WARRINGTON BOROUGH COUNCIL,http://opendatacommunities.org/id/unitary-authority/warrington ,FWB,Care Purchase Central Team,54050,CP-Domicil.External,440950,12-Aug-16,1900206645,4538.00,Independent Living Alliance,100726
WARRINGTON BOROUGH COUNCIL,http://opendatacommunities.org/id/unitary-authority/warrington ,FWB,Care Purchase Central Team,54050,CP-Domicil.External,440950,12-Aug-16,1900206646,1843.00,Independent Living Alliance,100726
WARRINGTON BOROUGH COUNCIL,http://opendatacommunities.org/id/unitary-authority/warrington ,FWB,Care Purchase Central Team,54050,CP-Domicil.External,440950,12-Aug-16,1900206651,2698.00,Independent Living Alliance,100726
WARRINGTON BOROUGH COUNCIL,http://opendatacommunities.org/id/unitary-authority/warrington ,FWB,Care Purchase South Team,54070,CP-Domicil.External,440950,12-Aug-16,1900206651,842.00,Independent Living Alliance,100726
WARRINGTON BOROUGH COUNCIL,http://opendatacommunities.org/id/unitary-authority/warrington ,FWB,Care Purchase South Team,54070,CP-Domicil.External,440950,12-Aug-16,1900206648,13934.00,Independent Living Alliance,100726
WARRINGTON BOROUGH COUNCIL,http://opendatacommunities.org/id/unitary-authority/warrington ,FWB,Care Purchase South Team,54070,CP-Domicil.External,440950,12-Aug-16,1900206633,14185.00,Independent Living Alliance,100726
WARRINGTON BOROUGH COUNCIL,http://opendatacommunities.org/id/unitary-authority/warrington ,FWB,Care Purchase South Team,54070,Supporting People - External,441250,12-Aug-16,1900206633,5453.00,Independent Living Alliance,100726
WARRINGTON BOROUGH COUNCIL,http://opendatacommunities.org/id/unitary-authority/warrington ,FWB,Care Purchase Central Team,54050,CP-Domicil.External,440950,12-Aug-16,1900206649,12350.00,Independent Living Alliance,100726
WARRINGTON BOROUGH COUNCIL,http://opendatacommunities.org/id/unitary-authority/warrington ,FWB,Care Purchase Central Team,54050,Supporting People - External,441250,12-Aug-16,1900206649,1853.00,Independent Living Alliance,100726
WARRINGTON BOROUGH COUNCIL,http://opendatacommunities.org/id/unitary-authority/warrington ,FWB,Care Purchase Central Team,54050,CP-Domicil.External,440950,12-Aug-16,1900206644,7436.00,Independent Living Alliance,100726
WARRINGTON BOROUGH COUNCIL,http://opendatacommunities.org/id/unitary-authority/warrington ,FWB,Care Purchase Central Team,54050,Supporting People - External,441250,12-Aug-16,1900206644,4441.00,Independent Living Alliance,100726
WARRINGTON BOROUGH COUNCIL,http://opendatacommunities.org/id/unitary-authority/warrington ,FWB,Care Purchase East Team,54060,CP-Domicil.External,440950,12-Aug-16,1900206650,2357.00,Independent Living Alliance,100726
WARRINGTON BOROUGH COUNCIL,http://opendatacommunities.org/id/unitary-authority/warrington ,FWB,Care Purchase South Team,54070,CP-Domicil.External,440950,12-Aug-16,1900206647,3832.00,Independent Living Alliance,100726
WARRINGTON BOROUGH COUNCIL,http://opendatacommunities.org/id/unitary-authority/warrington ,COR,Oxygen Finance,60260,Corporate Initiative,491000,04-Aug-16,1700014817,750.00,Ingham and Garner Ltd,115304
WARRINGTON BOROUGH COUNCIL,http://opendatacommunities.org/id/unitary-authority/warrington ,RSC,ICT Networks,23400,ICT Comms - Line Rental,450200,24-Aug-16,1900207041,1653.00,Intrinsic Technology Limited,108170
WARRINGTON BOROUGH COUNCIL,http://opendatacommunities.org/id/unitary-authority/warrington ,RSC,ICT Networks,23400,ICT Comms - Line Usage,450300,24-Aug-16,1900207041,3833.00,Intrinsic Technology Limited,108170
WARRINGTON BOROUGH COUNCIL,http://opendatacommunities.org/id/unitary-authority/warrington ,ENO,Housing Projects,82008,Disabled Persons Grant 1996,554000,23-Aug-16,1900207013,25260.00,J ince & Sons,115524
WARRINGTON BOROUGH COUNCIL,http://opendatacommunities.org/id/unitary-authority/warrington ,CYP,Primary,81001,Building Work,200850,11-Aug-16,1900206547,2870.00,James Co Associates Ltd,105375
WARRINGTON BOROUGH COUNCIL,http://opendatacommunities.org/id/unitary-authority/warrington ,CYP,Primary,81001,Building Work,200850,11-Aug-16,1900206546,2210.00,James Co Associates Ltd,105375
WARRINGTON BOROUGH COUNCIL,http://opendatacommunities.org/id/unitary-authority/warrington ,FWB,Legal Fees - Safeguarding,30100,Legal Costs Incurred,440200,21-Jul-16,1900204893,1462.00,Jean Sambrooks LLP,114898
WARRINGTON BOROUGH COUNCIL,http://opendatacommunities.org/id/unitary-authority/warrington ,FWB,Care Purchase Budget,54490,CP ExternalOther Exp,440800,12-Aug-16,1900206638,5855.00,Keate House Residential Home,104849
WARRINGTON BOROUGH COUNCIL,http://opendatacommunities.org/id/unitary-authority/warrington ,FWB,Care Purchase Budget,54490,CP ExternalOther Exp,440800,16-Aug-16,1900206812,24000.00,Keate House Residential Home,104849
WARRINGTON BOROUGH COUNCIL,http://opendatacommunities.org/id/unitary-authority/warrington ,FWB,DSG Inter Authority Recoupment,32009,Recoupment Charges,490700,03-Aug-16,1900205719,4100.00,Lancashire County Council,410062
WARRINGTON BOROUGH COUNCIL,http://opendatacommunities.org/id/unitary-authority/warrington ,FWB,Care Purchase Central Team,54050,CP-LongStayExternal,441150,12-Aug-16,1900206637,1988.00,Lancashire County Council,410062
WARRINGTON BOROUGH COUNCIL,http://opendatacommunities.org/id/unitary-authority/warrington ,FWB,Care Purchase Central Team,54050,CP-LongStayExternal,441150,24-Aug-16,1900207156,1988.00,Lancashire County Council,410062
WARRINGTON BOROUGH COUNCIL,http://opendatacommunities.org/id/unitary-authority/warrington ,EE0,Strategic Transportation,44510,Other Advertising & Publicity,450050,24-Aug-16,1900207193,1350.00,Landor Links Limited,110267
WARRINGTON BOROUGH COUNCIL,http://opendatacommunities.org/id/unitary-authority/warrington ,EE0,"Incubator- WAMEI Dallam Lane,Warrington",43850,Gen. Personal Needs,490850,12-Aug-16,1900206688,54993.00,Langtree Property Partners Ltd,114859
WARRINGTON BOROUGH COUNCIL,http://opendatacommunities.org/id/unitary-authority/warrington ,EE0,"Incubator- WAMEI Dallam Lane,Warrington",43850,Gen. Personal Needs,490850,26-Jul-16,1900205140,6539.00,Langtree Property Partners Ltd,114859
WARRINGTON BOROUGH COUNCIL,http://opendatacommunities.org/id/unitary-authority/warrington ,FWB,Contracts - SM Commissioning Team 2,55920,Public Health Contract Payments,540000,08-Aug-16,1900205925,1198.00,Latchford Medical Centre,104869
WARRINGTON BOROUGH COUNCIL,http://opendatacommunities.org/id/unitary-authority/warrington ,FWB,Contracts - SM Commissioning Team 2,55920,Public Health Contract Payments,540000,08-Aug-16,1900205925,936.00,Latchford Medical Centre,104869
WARRINGTON BOROUGH COUNCIL,http://opendatacommunities.org/id/unitary-authority/warrington ,FWB,Care Purchase Central Team,54050,CP-Nursing Care-External,441200,12-Aug-16,1900206632,2822.00,Leonard Cheshire Disability,100370
WARRINGTON BOROUGH COUNCIL,http://opendatacommunities.org/id/unitary-authority/warrington ,FWB,Care Purchase East Team,54060,CP-Nursing Care-External,441200,12-Aug-16,1900206636,4899.00,Leonard Cheshire Disability,100370
WARRINGTON BOROUGH COUNCIL,http://opendatacommunities.org/id/unitary-authority/warrington ,FWB,Care Purchase Budget,54490,CP ExternalOther Exp,440800,01-Aug-16,1900205571,9010.00,Leyton Healthcare Ltd - In administ,108970
WARRINGTON BOROUGH COUNCIL,http://opendatacommunities.org/id/unitary-authority/warrington ,FWB,Care Purchase Budget,54490,CP ExternalOther Exp,440800,01-Aug-16,1900205573,5790.00,Leyton Healthcare Ltd - In administ,108970
WARRINGTON BOROUGH COUNCIL,http://opendatacommunities.org/id/unitary-authority/warrington ,FWB,Care Purchase Budget,54490,CP ExternalOther Exp,440800,01-Aug-16,1900205570,10891.00,Leyton Healthcare Ltd - In administ,108970
WARRINGTON BOROUGH COUNCIL,http://opendatacommunities.org/id/unitary-authority/warrington ,FWB,Care Purchase Budget,54490,CP ExternalOther Exp,440800,12-Aug-16,1900206635,27922.00,Leyton Healthcare Ltd - In administ,108970
WARRINGTON BOROUGH COUNCIL,http://opendatacommunities.org/id/unitary-authority/warrington ,FWB,Care Purchase Budget,54490,CP ExternalOther Exp,440800,16-Aug-16,1900206766,75000.00,Leyton Healthcare Ltd - In administ,108970
WARRINGTON BOROUGH COUNCIL,http://opendatacommunities.org/id/unitary-authority/warrington ,FWB,Music Education Grant,32220,Events Costs,490000,19-Aug-16,1900206939,6698.00,Liverpool Anglican Cathedral,103605
WARRINGTON BOROUGH COUNCIL,http://opendatacommunities.org/id/unitary-authority/warrington ,FWB,DSG Inter Authority Recoupment,32009,Recoupment Charges,490700,06-Jul-16,1900203378,56694.00,Liverpool City Council,440037
WARRINGTON BOROUGH COUNCIL,http://opendatacommunities.org/id/unitary-authority/warrington ,FWB,Livewire Traded Services,32071,"Campaigns,  Projects and Events",491950,16-Aug-16,1900206730,8700.00,Livewire,110692
WARRINGTON BOROUGH COUNCIL,http://opendatacommunities.org/id/unitary-authority/warrington ,RSC,Postal & Courier Services,52130,Postages,450000,29-Jul-16,1900205428,1500.00,Logistex Express Ltd,100946
WARRINGTON BOROUGH COUNCIL,http://opendatacommunities.org/id/unitary-authority/warrington ,FWB,Care Purchase Budget,54490,CP ExternalOther Exp,440800,12-Aug-16,1900206653,35684.00,London & Manchester Healthcare Ltd,109185
WARRINGTON BOROUGH COUNCIL,http://opendatacommunities.org/id/unitary-authority/warrington ,FWB,Care Purchase Budget,54490,CP ExternalOther Exp,440800,16-Aug-16,1900206768,70000.00,London & Manchester Healthcare Ltd,109185
WARRINGTON BOROUGH COUNCIL,http://opendatacommunities.org/id/unitary-authority/warrington ,FWB,Safeguarding Team 3,31003,Consult.& Prof. Serv,440000,21-Jul-16,1900204874,5950.00,Lord Search & Selection Limited,115428
WARRINGTON BOROUGH COUNCIL,http://opendatacommunities.org/id/unitary-authority/warrington ,EE0,Estates & Valuation,43520,Agency Supply ,180000,19-Aug-16,1900206940,1312.00,Macdonald And Company,100697
WARRINGTON BOROUGH COUNCIL,http://opendatacommunities.org/id/unitary-authority/warrington ,EE0,Estates & Valuation,43520,Agency Supply ,180000,19-Aug-16,1900206949,1444.00,Macdonald And Company,100697
WARRINGTON BOROUGH COUNCIL,http://opendatacommunities.org/id/unitary-authority/warrington ,EE0,Estates & Valuation,43520,Agency Supply ,180000,19-Aug-16,1900206947,1297.00,Macdonald And Company,100697
WARRINGTON BOROUGH COUNCIL,http://opendatacommunities.org/id/unitary-authority/warrington ,EE0,Estates & Valuation,43520,Agency Supply ,180000,29-Jul-16,1900205487,1297.00,Macdonald And Company,100697
WARRINGTON BOROUGH COUNCIL,http://opendatacommunities.org/id/unitary-authority/warrington ,EE0,Estates & Valuation,43520,Agency Supply ,180000,29-Jul-16,1900205486,519.00,Macdonald And Company,100697
WARRINGTON BOROUGH COUNCIL,http://opendatacommunities.org/id/unitary-authority/warrington ,EE0,Estates & Valuation,43520,Agency Supply ,180000,29-Jul-16,1900205485,544.00,Macdonald And Company,100697
WARRINGTON BOROUGH COUNCIL,http://opendatacommunities.org/id/unitary-authority/warrington ,EE0,Estates & Valuation,43520,Agency Supply ,180000,29-Jul-16,1900205488,1297.00,Macdonald And Company,100697
WARRINGTON BOROUGH COUNCIL,http://opendatacommunities.org/id/unitary-authority/warrington ,EE0,Estates & Valuation,43520,Agency Supply ,180000,29-Jul-16,1900205489,506.00,Macdonald And Company,100697
WARRINGTON BOROUGH COUNCIL,http://opendatacommunities.org/id/unitary-authority/warrington ,EE0,Estates & Valuation,43520,Agency Supply ,180000,19-Aug-16,1900206938,1320.00,Macdonald And Company,100697
WARRINGTON BOROUGH COUNCIL,http://opendatacommunities.org/id/unitary-authority/warrington ,EE0,Estates & Valuation,43520,Agency Supply ,180000,19-Aug-16,1900206950,1344.00,Macdonald And Company,100697
WARRINGTON BOROUGH COUNCIL,http://opendatacommunities.org/id/unitary-authority/warrington ,FWB,Care Purchase East Team,54060,CP-Domicil.External,440950,25-Aug-16,1900207243,1502.00,Macintyre Care,104907
WARRINGTON BOROUGH COUNCIL,http://opendatacommunities.org/id/unitary-authority/warrington ,FWB,Care Purchase Central Team,54050,CP Adult Placement,443450,24-Aug-16,1900207126,8690.00,Macintyre Care,104907
WARRINGTON BOROUGH COUNCIL,http://opendatacommunities.org/id/unitary-authority/warrington ,FWB,Care Purchase East Team,54060,CP Adult Placement,443450,24-Aug-16,1900207126,3251.00,Macintyre Care,104907
WARRINGTON BOROUGH COUNCIL,http://opendatacommunities.org/id/unitary-authority/warrington ,FWB,Care Purchase West Team,54080,CP Adult Placement,443450,24-Aug-16,1900207126,2362.00,Macintyre Care,104907
WARRINGTON BOROUGH COUNCIL,http://opendatacommunities.org/id/unitary-authority/warrington ,FWB,Care Purchase South Team,54070,CP Adult Placement,443450,24-Aug-16,1900207126,558.00,Macintyre Care,104907
WARRINGTON BOROUGH COUNCIL,http://opendatacommunities.org/id/unitary-authority/warrington ,FWB,Care Purchase Central Team,54050,CP Adult Placement,443450,24-Aug-16,1900207128,7695.00,Macintyre Care,104907
WARRINGTON BOROUGH COUNCIL,http://opendatacommunities.org/id/unitary-authority/warrington ,FWB,Care Purchase East Team,54060,CP Adult Placement,443450,24-Aug-16,1900207128,3605.00,Macintyre Care,104907
WARRINGTON BOROUGH COUNCIL,http://opendatacommunities.org/id/unitary-authority/warrington ,FWB,Care Purchase West Team,54080,CP Adult Placement,443450,24-Aug-16,1900207128,2362.00,Macintyre Care,104907
WARRINGTON BOROUGH COUNCIL,http://opendatacommunities.org/id/unitary-authority/warrington ,FWB,Care Purchase South Team,54070,CP Adult Placement,443450,24-Aug-16,1900207128,702.00,Macintyre Care,104907
WARRINGTON BOROUGH COUNCIL,http://opendatacommunities.org/id/unitary-authority/warrington ,FWB,Care Purchase East Team,54060,CP-Domicil.External,440950,24-Aug-16,1900207210,1165.00,Macintyre Care,104907
WARRINGTON BOROUGH COUNCIL,http://opendatacommunities.org/id/unitary-authority/warrington ,FWB,Care Purchase Central Team,54050,CP Adult Placement,443450,24-Aug-16,1900207125,8677.00,Macintyre Care,104907
WARRINGTON BOROUGH COUNCIL,http://opendatacommunities.org/id/unitary-authority/warrington ,FWB,Care Purchase East Team,54060,CP Adult Placement,443450,24-Aug-16,1900207125,3180.00,Macintyre Care,104907
WARRINGTON BOROUGH COUNCIL,http://opendatacommunities.org/id/unitary-authority/warrington ,FWB,Care Purchase West Team,54080,CP Adult Placement,443450,24-Aug-16,1900207125,1070.00,Macintyre Care,104907
WARRINGTON BOROUGH COUNCIL,http://opendatacommunities.org/id/unitary-authority/warrington ,FWB,Care Purchase South Team,54070,CP Adult Placement,443450,24-Aug-16,1900207125,517.00,Macintyre Care,104907
WARRINGTON BOROUGH COUNCIL,http://opendatacommunities.org/id/unitary-authority/warrington ,FWB,Care Purchase East Team,54060,CP-Domicil.External,440950,25-Aug-16,1900207274,77909.00,Macintyre Care,104907
WARRINGTON BOROUGH COUNCIL,http://opendatacommunities.org/id/unitary-authority/warrington ,FWB,Care Purchase Central Team,54050,CP-Domicil.External,440950,25-Aug-16,1900207274,23928.00,Macintyre Care,104907
WARRINGTON BOROUGH COUNCIL,http://opendatacommunities.org/id/unitary-authority/warrington ,FWB,Care Purchase West Team,54080,CP-Domicil.External,440950,25-Aug-16,1900207274,9488.00,Macintyre Care,104907
WARRINGTON BOROUGH COUNCIL,http://opendatacommunities.org/id/unitary-authority/warrington ,FWB,Care Purchase East Team,54060,Supporting People - External,441250,25-Aug-16,1900207274,17238.00,Macintyre Care,104907
WARRINGTON BOROUGH COUNCIL,http://opendatacommunities.org/id/unitary-authority/warrington ,FWB,Care Purchase Central Team,54050,Supporting People - External,441250,25-Aug-16,1900207274,4870.00,Macintyre Care,104907
WARRINGTON BOROUGH COUNCIL,http://opendatacommunities.org/id/unitary-authority/warrington ,FWB,Care Purchase West Team,54080,Supporting People - External,441250,25-Aug-16,1900207274,3621.00,Macintyre Care,104907
WARRINGTON BOROUGH COUNCIL,http://opendatacommunities.org/id/unitary-authority/warrington ,FWB,Care Purchase Budget,54490,Voids,515150,25-Aug-16,1900207274,3634.00,Macintyre Care,104907
WARRINGTON BOROUGH COUNCIL,http://opendatacommunities.org/id/unitary-authority/warrington ,FWB,Care Purchase Central Team,54050,CP-Domicil.External,440950,25-Aug-16,1900207214,17782.00,Macintyre Care,104907
WARRINGTON BOROUGH COUNCIL,http://opendatacommunities.org/id/unitary-authority/warrington ,FWB,Care Purchase Budget,54490,CP-Day Care-External,441100,24-Aug-16,1900207188,3375.00,Macintyre Care,104907
WARRINGTON BOROUGH COUNCIL,http://opendatacommunities.org/id/unitary-authority/warrington ,FWB,Care Purchase South Team,54070,CP-Domicil.External,440950,24-Aug-16,1900207167,1001.00,Macintyre Care,104907
WARRINGTON BOROUGH COUNCIL,http://opendatacommunities.org/id/unitary-authority/warrington ,FWB,Care Purchase Central Team,54050,CP-LongStayExternal,441150,24-Aug-16,1900207207,5076.00,Macintyre Care,104907
WARRINGTON BOROUGH COUNCIL,http://opendatacommunities.org/id/unitary-authority/warrington ,FWB,Care Purchase West Team,54080,CP-Domicil.External,440950,24-Aug-16,1900207140,809.00,Macintyre Care,104907
WARRINGTON BOROUGH COUNCIL,http://opendatacommunities.org/id/unitary-authority/warrington ,FWB,Care Purchase East Team,54060,CP-Day Care-External,441100,24-Aug-16,1900207140,3817.00,Macintyre Care,104907
WARRINGTON BOROUGH COUNCIL,http://opendatacommunities.org/id/unitary-authority/warrington ,FWB,Care Purchase West Team,54080,CP-Day Care-External,441100,24-Aug-16,1900207140,3470.00,Macintyre Care,104907
WARRINGTON BOROUGH COUNCIL,http://opendatacommunities.org/id/unitary-authority/warrington ,FWB,Care Purchase South Team,54070,CP-Day Care-External,441100,24-Aug-16,1900207140,2198.00,Macintyre Care,104907
WARRINGTON BOROUGH COUNCIL,http://opendatacommunities.org/id/unitary-authority/warrington ,FWB,Care Purchase Central Team,54050,CP-Day Care-External,441100,24-Aug-16,1900207140,2198.00,Macintyre Care,104907
WARRINGTON BOROUGH COUNCIL,http://opendatacommunities.org/id/unitary-authority/warrington ,FWB,Care Purchase Budget,54490,Voids,515150,24-Aug-16,1900207140,3660.00,Macintyre Care,104907
WARRINGTON BOROUGH COUNCIL,http://opendatacommunities.org/id/unitary-authority/warrington ,EE0,Fair Trading & Investigations,41500,Legal Costs Incurred,440200,16-Aug-16,1900206818,1610.00,MAH Legal,113285
WARRINGTON BOROUGH COUNCIL,http://opendatacommunities.org/id/unitary-authority/warrington ,EE0,Local Licensing,41510,Legal Costs Incurred,440200,18-Aug-16,1900206908,1400.00,MAH Legal,113285
WARRINGTON BOROUGH COUNCIL,http://opendatacommunities.org/id/unitary-authority/warrington ,EE0,Hatters Row,43710,Rent Of Premises,220000,19-Aug-16,1900206952,23844.00,Manchester & Provincial Car Pks Ltd,104918
WARRINGTON BOROUGH COUNCIL,http://opendatacommunities.org/id/unitary-authority/warrington ,HOL,Single Billing Holding Account,91130,Specific Work,200200,19-Aug-16,1900206941,2478.00,Manchester Working Limited,105646
WARRINGTON BOROUGH COUNCIL,http://opendatacommunities.org/id/unitary-authority/warrington ,HOL,Single Billing Holding Account,91130,Non BMP General Repairs,200050,29-Jul-16,1900205469,1189.00,Manchester Working Limited,105646
WARRINGTON BOROUGH COUNCIL,http://opendatacommunities.org/id/unitary-authority/warrington ,HOL,Single Billing Holding Account,91130,Non BMP General Repairs,200050,29-Jul-16,1900205475,1030.00,Manchester Working Limited,105646
WARRINGTON BOROUGH COUNCIL,http://opendatacommunities.org/id/unitary-authority/warrington ,HOL,Single Billing Holding Account,91130,Non BMP General Repairs,200050,29-Jul-16,1900205468,1398.00,Manchester Working Limited,105646
WARRINGTON BOROUGH COUNCIL,http://opendatacommunities.org/id/unitary-authority/warrington ,HOL,Single Billing Holding Account,91130,Non BMP General Repairs,200050,29-Jul-16,1900205477,8168.00,Manchester Working Limited,105646
WARRINGTON BOROUGH COUNCIL,http://opendatacommunities.org/id/unitary-authority/warrington ,HOL,Single Billing Holding Account,91130,Non BMP General Repairs,200050,29-Jul-16,1900205471,3562.00,Manchester Working Limited,105646
WARRINGTON BOROUGH COUNCIL,http://opendatacommunities.org/id/unitary-authority/warrington ,HOL,Single Billing Holding Account,91130,Non BMP General Repairs,200050,29-Jul-16,1900205474,5269.00,Manchester Working Limited,105646
WARRINGTON BOROUGH COUNCIL,http://opendatacommunities.org/id/unitary-authority/warrington ,HOL,Single Billing Holding Account,91130,Non BMP General Repairs,200050,29-Jul-16,1900205473,10093.00,Manchester Working Limited,105646
WARRINGTON BOROUGH COUNCIL,http://opendatacommunities.org/id/unitary-authority/warrington ,HOL,Single Billing Holding Account,91130,Non BMP General Repairs,200050,05-Aug-16,1900205821,2478.00,Manchester Working Limited,105646
WARRINGTON BOROUGH COUNCIL,http://opendatacommunities.org/id/unitary-authority/warrington ,HOL,Single Billing Holding Account,91130,Specific Work,200200,19-Aug-16,1900206942,2478.00,Manchester Working Limited,105646
WARRINGTON BOROUGH COUNCIL,http://opendatacommunities.org/id/unitary-authority/warrington ,HOL,Single Billing Holding Account,91130,Non BMP General Repairs,200050,05-Aug-16,1900205823,1056.00,Manchester Working Limited,105646
WARRINGTON BOROUGH COUNCIL,http://opendatacommunities.org/id/unitary-authority/warrington ,HOL,Single Billing Holding Account,91130,Specific Work,200200,29-Jul-16,1900205470,5983.00,Manchester Working Limited,105646
WARRINGTON BOROUGH COUNCIL,http://opendatacommunities.org/id/unitary-authority/warrington ,HOL,Single Billing Holding Account,91130,Specific Work,200200,29-Jul-16,1900205476,2348.00,Manchester Working Limited,105646
WARRINGTON BOROUGH COUNCIL,http://opendatacommunities.org/id/unitary-authority/warrington ,HOL,Single Billing Holding Account,91130,Specific Work,200200,29-Jul-16,1900205494,1186.00,Manchester Working Limited,105646
WARRINGTON BOROUGH COUNCIL,http://opendatacommunities.org/id/unitary-authority/warrington ,HOL,Single Billing Holding Account,91130,Specific Work,200200,29-Jul-16,1900205467,3032.00,Manchester Working Limited,105646
WARRINGTON BOROUGH COUNCIL,http://opendatacommunities.org/id/unitary-authority/warrington ,HOL,Single Billing Holding Account,91130,Specific Work,200200,29-Jul-16,1900205493,6859.00,Manchester Working Limited,105646
WARRINGTON BOROUGH COUNCIL,http://opendatacommunities.org/id/unitary-authority/warrington ,HOL,Single Billing Holding Account,91130,Specific Work,200200,29-Jul-16,1900205472,5540.00,Manchester Working Limited,105646
WARRINGTON BOROUGH COUNCIL,http://opendatacommunities.org/id/unitary-authority/warrington ,HOL,Single Billing Holding Account,91130,Specific Work,200200,05-Aug-16,1900205824,2302.00,Manchester Working Limited,105646
WARRINGTON BOROUGH COUNCIL,http://opendatacommunities.org/id/unitary-authority/warrington ,HOL,Single Billing Holding Account,91130,Specific Work,200200,05-Aug-16,1900205822,1871.00,Manchester Working Limited,105646
WARRINGTON BOROUGH COUNCIL,http://opendatacommunities.org/id/unitary-authority/warrington ,HOL,Single Billing Holding Account,91130,Specific Work,200200,19-Aug-16,1900206944,1872.00,Manchester Working Limited,105646
WARRINGTON BOROUGH COUNCIL,http://opendatacommunities.org/id/unitary-authority/warrington ,FWB,Care Purchase East Team,54060,CP-LongStayExternal,441150,25-Aug-16,1900207229,3684.00,Manor Care Centre,103831
WARRINGTON BOROUGH COUNCIL,http://opendatacommunities.org/id/unitary-authority/warrington ,FWB,Care Purchase Central Team,54050,CP-Domicil.External,440950,25-Aug-16,1900207217,15774.00,Mayfield Home Care Agency,104928
WARRINGTON BOROUGH COUNCIL,http://opendatacommunities.org/id/unitary-authority/warrington ,FWB,Care Purchase South Team,54070,CP-Domicil.External,440950,25-Aug-16,1900207217,13276.00,Mayfield Home Care Agency,104928
WARRINGTON BOROUGH COUNCIL,http://opendatacommunities.org/id/unitary-authority/warrington ,FWB,Care Purchase West Team,54080,CP-Domicil.External,440950,25-Aug-16,1900207217,8755.00,Mayfield Home Care Agency,104928
WARRINGTON BOROUGH COUNCIL,http://opendatacommunities.org/id/unitary-authority/warrington ,FWB,Care Purchase East Team,54060,CP-Domicil.External,440950,25-Aug-16,1900207217,8464.00,Mayfield Home Care Agency,104928
WARRINGTON BOROUGH COUNCIL,http://opendatacommunities.org/id/unitary-authority/warrington ,FWB,Care Purchase East Team,54060,Supporting People - External,441250,25-Aug-16,1900207217,728.00,Mayfield Home Care Agency,104928
WARRINGTON BOROUGH COUNCIL,http://opendatacommunities.org/id/unitary-authority/warrington ,FWB,Care Purchase East Team,54060,CP-Domicil.External,440950,25-Aug-16,1900207218,684.00,Mayfield Home Care Agency,104928
WARRINGTON BOROUGH COUNCIL,http://opendatacommunities.org/id/unitary-authority/warrington ,RSC,Coroners Service,11100,Consult.& Prof. Serv,440000,24-Aug-16,1900207097,756.00,Mecrow Medical Services Ltd,115529
WARRINGTON BOROUGH COUNCIL,http://opendatacommunities.org/id/unitary-authority/warrington ,FWB,Care Purchase Central Team,54050,CP-LongStayExternal,441150,08-Aug-16,1900205875,7470.00,Mental Health Care UK Ltd,114128
WARRINGTON BOROUGH COUNCIL,http://opendatacommunities.org/id/unitary-authority/warrington ,FWB,Care Purchase East Team,54060,CP-LongStayExternal,441150,01-Aug-16,1900205579,6145.00,Mental Health Care UK Ltd,114128
WARRINGTON BOROUGH COUNCIL,http://opendatacommunities.org/id/unitary-authority/warrington ,FWB,Care Purchase East Team,54060,CP-LongStayExternal,441150,01-Aug-16,1900205577,12291.00,Mental Health Care UK Ltd,114128
WARRINGTON BOROUGH COUNCIL,http://opendatacommunities.org/id/unitary-authority/warrington ,FWB,Care Purchase East Team,54060,CP-LongStayExternal,441150,01-Aug-16,1900205576,12291.00,Mental Health Care UK Ltd,114128
WARRINGTON BOROUGH COUNCIL,http://opendatacommunities.org/id/unitary-authority/warrington ,FWB,Care Purchase East Team,54060,CP-LongStayExternal,441150,08-Aug-16,1900205874,12291.00,Mental Health Care UK Ltd,114128
WARRINGTON BOROUGH COUNCIL,http://opendatacommunities.org/id/unitary-authority/warrington ,CYP,Childrens & Young People,81000,ICT Comms - Equipment Purchase,450100,11-Aug-16,1900206556,6275.00,MGL,106315
WARRINGTON BOROUGH COUNCIL,http://opendatacommunities.org/id/unitary-authority/warrington ,RSC,Coroners Service,11100,Post Mortem Fees-Rep,440250,22-Jul-16,1900204948,2546.00,Mid Cheshire Hospitals,440149
WARRINGTON BOROUGH COUNCIL,http://opendatacommunities.org/id/unitary-authority/warrington ,RSC,Coroners Service,11100,Post Mortem Fees-Rep,440250,22-Jul-16,1900204948,2052.00,Mid Cheshire Hospitals,440149
WARRINGTON BOROUGH COUNCIL,http://opendatacommunities.org/id/unitary-authority/warrington ,RSC,Coroners Service,11100,Post Mortem Fees-Rep,440250,17-Aug-16,1900206862,1876.00,Mid Cheshire Hospitals,440149
WARRINGTON BOROUGH COUNCIL,http://opendatacommunities.org/id/unitary-authority/warrington ,RSC,Coroners Service,11100,Post Mortem Fees-Rep,440250,17-Aug-16,1900206862,1512.00,Mid Cheshire Hospitals,440149
WARRINGTON BOROUGH COUNCIL,http://opendatacommunities.org/id/unitary-authority/warrington ,FWB,Care Purchase East Team,54060,CP-Day Care-External,441100,01-Aug-16,1900205582,1620.00,Midstream West Lanc Ltd,108365
WARRINGTON BOROUGH COUNCIL,http://opendatacommunities.org/id/unitary-authority/warrington ,FWB,Care Purchase Budget,54490,CP ExternalOther Exp,440800,01-Aug-16,1900205583,15998.00,Minster Care Management Ltd,105179
WARRINGTON BOROUGH COUNCIL,http://opendatacommunities.org/id/unitary-authority/warrington ,FWB,Care Purchase Budget,54490,CP ExternalOther Exp,440800,16-Aug-16,1900206777,35000.00,Minster Care Management Ltd,105179
WARRINGTON BOROUGH COUNCIL,http://opendatacommunities.org/id/unitary-authority/warrington ,RSC,ICT Centralised Budget,23100,Computer Software - Maintenance,450850,22-Aug-16,1900206982,921.00,Mitrefinch Ltd,104942
WARRINGTON BOROUGH COUNCIL,http://opendatacommunities.org/id/unitary-authority/warrington ,ENO,Highways Other,82005,Consult.& Prof. Serv,440000,09-Aug-16,1900205980,2256.00,Mott Macdonald Ltd,104950
WARRINGTON BOROUGH COUNCIL,http://opendatacommunities.org/id/unitary-authority/warrington ,EE0,Warrington East Ph 2 - 4,40020,Consult.& Prof. Serv,440000,18-Aug-16,1900206905,40006.00,Mott Macdonald Ltd,104950
WARRINGTON BOROUGH COUNCIL,http://opendatacommunities.org/id/unitary-authority/warrington ,FWB,Care Purchase Central Team,54050,CP-Domicil.External,440950,19-Jul-16,1900204293,2393.00,M-Power Activity Services Ltd,102186
WARRINGTON BOROUGH COUNCIL,http://opendatacommunities.org/id/unitary-authority/warrington ,FWB,Care Purchase East Team,54060,CP-Domicil.External,440950,19-Jul-16,1900204293,1983.00,M-Power Activity Services Ltd,102186
WARRINGTON BOROUGH COUNCIL,http://opendatacommunities.org/id/unitary-authority/warrington ,FWB,Care Purchase South Team,54070,CP-Domicil.External,440950,19-Jul-16,1900204293,1719.00,M-Power Activity Services Ltd,102186
WARRINGTON BOROUGH COUNCIL,http://opendatacommunities.org/id/unitary-authority/warrington ,FWB,Care Purchase West Team,54080,CP-Domicil.External,440950,19-Jul-16,1900204293,1454.00,M-Power Activity Services Ltd,102186
WARRINGTON BOROUGH COUNCIL,http://opendatacommunities.org/id/unitary-authority/warrington ,NEO,Neighbourhood & Community Other,83002,Consult.& Prof. Serv,440000,03-Aug-16,1900205654,1062.00,Mpulse Ltd,101462
WARRINGTON BOROUGH COUNCIL,http://opendatacommunities.org/id/unitary-authority/warrington ,PIO,People & Improvement Other,85002,Consult.& Prof. Serv,440000,03-Aug-16,1900205653,5312.00,Mpulse Ltd,101462
WARRINGTON BOROUGH COUNCIL,http://opendatacommunities.org/id/unitary-authority/warrington ,EE0,Markets,43711,Resaleables,400600,03-Aug-16,1900205652,3113.00,National Express Ltd,104957
WARRINGTON BOROUGH COUNCIL,http://opendatacommunities.org/id/unitary-authority/warrington ,FWB,Care Purchase South Team,54070,CP-LongStayExternal,441150,12-Aug-16,1900206654,2000.00,Nethermoor House Ltd,114660
WARRINGTON BOROUGH COUNCIL,http://opendatacommunities.org/id/unitary-authority/warrington ,ENO,Highways Other,82005,Consult.& Prof. Serv,440000,24-Aug-16,1900207195,3784.00,Network Rail Infrastructure Ltd,101506
WARRINGTON BOROUGH COUNCIL,http://opendatacommunities.org/id/unitary-authority/warrington ,ENO,Highways Other,82005,Consult.& Prof. Serv,440000,24-Aug-16,1900207197,6542.00,Network Rail Infrastructure Ltd,101506
WARRINGTON BOROUGH COUNCIL,http://opendatacommunities.org/id/unitary-authority/warrington ,FWB,Care Purchase Central Team,54050,CP-Domicil.External,440950,08-Aug-16,1900205871,23079.00,Next Stage A Way Forward Ltd,101217
WARRINGTON BOROUGH COUNCIL,http://opendatacommunities.org/id/unitary-authority/warrington ,FWB,Care Purchase West Team,54080,CP-Domicil.External,440950,08-Aug-16,1900205871,12497.00,Next Stage A Way Forward Ltd,101217
WARRINGTON BOROUGH COUNCIL,http://opendatacommunities.org/id/unitary-authority/warrington ,FWB,Care Purchase East Team,54060,CP-Domicil.External,440950,08-Aug-16,1900205871,7666.00,Next Stage A Way Forward Ltd,101217
WARRINGTON BOROUGH COUNCIL,http://opendatacommunities.org/id/unitary-authority/warrington ,FWB,Care Purchase South Team,54070,CP-Domicil.External,440950,08-Aug-16,1900205871,647.00,Next Stage A Way Forward Ltd,101217
WARRINGTON BOROUGH COUNCIL,http://opendatacommunities.org/id/unitary-authority/warrington ,FWB,Care Purchase Budget,54490,CP - Cont Care - External,441350,08-Aug-16,1900205871,1437.00,Next Stage A Way Forward Ltd,101217
WARRINGTON BOROUGH COUNCIL,http://opendatacommunities.org/id/unitary-authority/warrington ,COR,Car Leasing Scheme - Salary Sacrifice,52126,Car Leasing Charges,350000,05-Aug-16,1900205805,2897.00,NHS Foundation Trust,110359
WARRINGTON BOROUGH COUNCIL,http://opendatacommunities.org/id/unitary-authority/warrington ,COR,Car Leasing Scheme - Salary Sacrifice,52126,Car Leasing Charges,350000,05-Aug-16,1900205805,820.00,NHS Foundation Trust,110359
WARRINGTON BOROUGH COUNCIL,http://opendatacommunities.org/id/unitary-authority/warrington ,COR,Car Leasing Scheme - Salary Sacrifice,52126,Car Leasing Charges,350000,05-Aug-16,1900205798,2510.00,NHS Foundation Trust,110359
WARRINGTON BOROUGH COUNCIL,http://opendatacommunities.org/id/unitary-authority/warrington ,COR,Car Leasing Scheme - Salary Sacrifice,52126,Car Leasing Charges,350000,05-Aug-16,1900205798,739.00,NHS Foundation Trust,110359
WARRINGTON BOROUGH COUNCIL,http://opendatacommunities.org/id/unitary-authority/warrington ,COR,Car Leasing Scheme - Salary Sacrifice,52126,Car Leasing Charges,350000,05-Aug-16,1900205797,2434.00,NHS Foundation Trust,110359
WARRINGTON BOROUGH COUNCIL,http://opendatacommunities.org/id/unitary-authority/warrington ,COR,Car Leasing Scheme - Salary Sacrifice,52126,Car Leasing Charges,350000,05-Aug-16,1900205797,739.00,NHS Foundation Trust,110359
WARRINGTON BOROUGH COUNCIL,http://opendatacommunities.org/id/unitary-authority/warrington ,COR,Car Leasing Scheme - Salary Sacrifice,52126,Car Leasing Charges,350000,05-Aug-16,1900205796,3635.00,NHS Foundation Trust,110359
WARRINGTON BOROUGH COUNCIL,http://opendatacommunities.org/id/unitary-authority/warrington ,COR,Car Leasing Scheme - Salary Sacrifice,52126,Car Leasing Charges,350000,05-Aug-16,1900205796,739.00,NHS Foundation Trust,110359
WARRINGTON BOROUGH COUNCIL,http://opendatacommunities.org/id/unitary-authority/warrington ,COR,Car Leasing Scheme - Salary Sacrifice,52126,Car Leasing Charges,350000,05-Aug-16,1900205795,3507.00,NHS Foundation Trust,110359
WARRINGTON BOROUGH COUNCIL,http://opendatacommunities.org/id/unitary-authority/warrington ,COR,Car Leasing Scheme - Salary Sacrifice,52126,Car Leasing Charges,350000,05-Aug-16,1900205795,739.00,NHS Foundation Trust,110359
WARRINGTON BOROUGH COUNCIL,http://opendatacommunities.org/id/unitary-authority/warrington ,COR,Car Leasing Scheme - Salary Sacrifice,52126,Car Leasing Charges,350000,05-Aug-16,1900205794,4528.00,NHS Foundation Trust,110359
WARRINGTON BOROUGH COUNCIL,http://opendatacommunities.org/id/unitary-authority/warrington ,COR,Car Leasing Scheme - Salary Sacrifice,52126,Car Leasing Charges,350000,05-Aug-16,1900205794,739.00,NHS Foundation Trust,110359
WARRINGTON BOROUGH COUNCIL,http://opendatacommunities.org/id/unitary-authority/warrington ,COR,Car Leasing Scheme - Salary Sacrifice,52126,Car Leasing Charges,350000,05-Aug-16,1900205793,2591.00,NHS Foundation Trust,110359
WARRINGTON BOROUGH COUNCIL,http://opendatacommunities.org/id/unitary-authority/warrington ,COR,Car Leasing Scheme - Salary Sacrifice,52126,Car Leasing Charges,350000,05-Aug-16,1900205793,739.00,NHS Foundation Trust,110359
WARRINGTON BOROUGH COUNCIL,http://opendatacommunities.org/id/unitary-authority/warrington ,COR,Car Leasing Scheme - Salary Sacrifice,52126,Car Leasing Charges,350000,05-Aug-16,1900205802,3721.00,NHS Foundation Trust,110359
WARRINGTON BOROUGH COUNCIL,http://opendatacommunities.org/id/unitary-authority/warrington ,COR,Car Leasing Scheme - Salary Sacrifice,52126,Car Leasing Charges,350000,05-Aug-16,1900205802,739.00,NHS Foundation Trust,110359
WARRINGTON BOROUGH COUNCIL,http://opendatacommunities.org/id/unitary-authority/warrington ,COR,Car Leasing Scheme - Salary Sacrifice,52126,Car Leasing Charges,350000,05-Aug-16,1900205801,3970.00,NHS Foundation Trust,110359
WARRINGTON BOROUGH COUNCIL,http://opendatacommunities.org/id/unitary-authority/warrington ,COR,Car Leasing Scheme - Salary Sacrifice,52126,Car Leasing Charges,350000,05-Aug-16,1900205801,739.00,NHS Foundation Trust,110359
WARRINGTON BOROUGH COUNCIL,http://opendatacommunities.org/id/unitary-authority/warrington ,COR,Car Leasing Scheme - Salary Sacrifice,52126,Car Leasing Charges,350000,05-Aug-16,1900205800,2937.00,NHS Foundation Trust,110359
WARRINGTON BOROUGH COUNCIL,http://opendatacommunities.org/id/unitary-authority/warrington ,COR,Car Leasing Scheme - Salary Sacrifice,52126,Car Leasing Charges,350000,05-Aug-16,1900205800,739.00,NHS Foundation Trust,110359
WARRINGTON BOROUGH COUNCIL,http://opendatacommunities.org/id/unitary-authority/warrington ,COR,Car Leasing Scheme - Salary Sacrifice,52126,Car Leasing Charges,350000,05-Aug-16,1900205799,4340.00,NHS Foundation Trust,110359
WARRINGTON BOROUGH COUNCIL,http://opendatacommunities.org/id/unitary-authority/warrington ,COR,Car Leasing Scheme - Salary Sacrifice,52126,Car Leasing Charges,350000,05-Aug-16,1900205799,739.00,NHS Foundation Trust,110359
WARRINGTON BOROUGH COUNCIL,http://opendatacommunities.org/id/unitary-authority/warrington ,COR,Car Leasing Scheme - Salary Sacrifice,52126,Car Leasing Charges,350000,05-Aug-16,1900205804,2871.00,NHS Foundation Trust,110359
WARRINGTON BOROUGH COUNCIL,http://opendatacommunities.org/id/unitary-authority/warrington ,COR,Car Leasing Scheme - Salary Sacrifice,52126,Car Leasing Charges,350000,05-Aug-16,1900205804,820.00,NHS Foundation Trust,110359
WARRINGTON BOROUGH COUNCIL,http://opendatacommunities.org/id/unitary-authority/warrington ,COR,Car Leasing Scheme - Salary Sacrifice,52126,Car Leasing Charges,350000,04-Aug-16,1900205748,2867.00,NHS Foundation Trust,110359
WARRINGTON BOROUGH COUNCIL,http://opendatacommunities.org/id/unitary-authority/warrington ,COR,Car Leasing Scheme - Salary Sacrifice,52126,Car Leasing Charges,350000,04-Aug-16,1900205748,820.00,NHS Foundation Trust,110359
WARRINGTON BOROUGH COUNCIL,http://opendatacommunities.org/id/unitary-authority/warrington ,COR,Car Leasing Scheme - Salary Sacrifice,52126,Car Leasing Charges,350000,16-Aug-16,1900206771,1705.00,NHS Foundation Trust,110359
WARRINGTON BOROUGH COUNCIL,http://opendatacommunities.org/id/unitary-authority/warrington ,COR,Car Leasing Scheme - Salary Sacrifice,52126,Car Leasing Charges,350000,16-Aug-16,1900206771,820.00,NHS Foundation Trust,110359
WARRINGTON BOROUGH COUNCIL,http://opendatacommunities.org/id/unitary-authority/warrington ,COR,Car Leasing Scheme - Salary Sacrifice,52126,Car Leasing Charges,350000,16-Aug-16,1900206734,3262.00,NHS Foundation Trust,110359
WARRINGTON BOROUGH COUNCIL,http://opendatacommunities.org/id/unitary-authority/warrington ,COR,Car Leasing Scheme - Salary Sacrifice,52126,Car Leasing Charges,350000,16-Aug-16,1900206734,820.00,NHS Foundation Trust,110359
WARRINGTON BOROUGH COUNCIL,http://opendatacommunities.org/id/unitary-authority/warrington ,COR,Car Leasing Scheme - Salary Sacrifice,52126,Car Leasing Charges,350000,18-Aug-16,1900206910,4954.00,NHS Foundation Trust,110359
WARRINGTON BOROUGH COUNCIL,http://opendatacommunities.org/id/unitary-authority/warrington ,COR,Car Leasing Scheme - Salary Sacrifice,52126,Car Leasing Charges,350000,18-Aug-16,1900206910,820.00,NHS Foundation Trust,110359
WARRINGTON BOROUGH COUNCIL,http://opendatacommunities.org/id/unitary-authority/warrington ,FWB,Child Disability,32212,CP-Domicil.External,440950,10-Aug-16,1900206473,21109.00,NHS Warrington CCG,113053
WARRINGTON BOROUGH COUNCIL,http://opendatacommunities.org/id/unitary-authority/warrington ,FWB,Care Purchase East Team,54060,CP-Domicil.External,440950,12-Aug-16,1900206655,12837.00,Nightingales Homecare Services Agen,104972
WARRINGTON BOROUGH COUNCIL,http://opendatacommunities.org/id/unitary-authority/warrington ,FWB,Care Purchase South Team,54070,CP-Domicil.External,440950,12-Aug-16,1900206655,11491.00,Nightingales Homecare Services Agen,104972
WARRINGTON BOROUGH COUNCIL,http://opendatacommunities.org/id/unitary-authority/warrington ,FWB,Care Purchase West Team,54080,CP-Domicil.External,440950,12-Aug-16,1900206655,7269.00,Nightingales Homecare Services Agen,104972
WARRINGTON BOROUGH COUNCIL,http://opendatacommunities.org/id/unitary-authority/warrington ,FWB,Care Purchase Central Team,54050,CP-Domicil.External,440950,12-Aug-16,1900206655,6682.00,Nightingales Homecare Services Agen,104972
WARRINGTON BOROUGH COUNCIL,http://opendatacommunities.org/id/unitary-authority/warrington ,FWB,DSG Inter Authority Recoupment,32009,Recoupment Charges,490700,30-Aug-16,1900207339,4598.00,North Ayrshire Coucil,109075
WARRINGTON BOROUGH COUNCIL,http://opendatacommunities.org/id/unitary-authority/warrington ,FWB,DSG Inter Authority Recoupment,32009,Recoupment Charges,490700,24-Aug-16,1900207211,4598.00,North Ayrshire Coucil,109075
WARRINGTON BOROUGH COUNCIL,http://opendatacommunities.org/id/unitary-authority/warrington ,FWB,DSG Inter Authority Recoupment,32009,Recoupment Charges,490700,26-Aug-16,1900207313,2897.00,North Ayrshire Coucil,109075
WARRINGTON BOROUGH COUNCIL,http://opendatacommunities.org/id/unitary-authority/warrington ,FWB,DSG Independent School Fees,32011,Independent School Fees,490200,11-Aug-16,1900206581,1413.00,North Cestrian Grammar School,102297
WARRINGTON BOROUGH COUNCIL,http://opendatacommunities.org/id/unitary-authority/warrington ,FWB,Asst Director - Int Hlth & Scl Cr Comm,53000,Training,190150,16-Aug-16,1900206764,950.00,North West Employers,102754
WARRINGTON BOROUGH COUNCIL,http://opendatacommunities.org/id/unitary-authority/warrington ,FWB,Halton Music Expenditure,32219,Consult.& Prof. Serv,440000,04-Aug-16,1900205772,1127.00,Northern Chamber Orchestra,103752
WARRINGTON BOROUGH COUNCIL,http://opendatacommunities.org/id/unitary-authority/warrington ,FWB,Music Education Grant,32220,Consult.& Prof. Serv,440000,04-Aug-16,1900205772,1127.00,Northern Chamber Orchestra,103752
WARRINGTON BOROUGH COUNCIL,http://opendatacommunities.org/id/unitary-authority/warrington ,HOL,Single Billing Holding Account,91130,Electricity,210000,02-Aug-16,1900205645,31586.00,Npower Electricity,101884
WARRINGTON BOROUGH COUNCIL,http://opendatacommunities.org/id/unitary-authority/warrington ,HOL,Single Billing Holding Account,91130,Electricity,210000,02-Aug-16,1900205645,13342.00,Npower Electricity,101884
WARRINGTON BOROUGH COUNCIL,http://opendatacommunities.org/id/unitary-authority/warrington ,HOL,Single Billing Holding Account,91130,Electricity,210000,29-Jul-16,1900205437,25047.00,Npower Electricity,101884
WARRINGTON BOROUGH COUNCIL,http://opendatacommunities.org/id/unitary-authority/warrington ,HOL,Single Billing Holding Account,91130,Electricity,210000,29-Jul-16,1900205437,4894.00,Npower Electricity,101884
WARRINGTON BOROUGH COUNCIL,http://opendatacommunities.org/id/unitary-authority/warrington ,HOL,Single Billing Holding Account,91130,Electricity,210000,18-Aug-16,1900206912,67884.00,Npower Electricity,101884
WARRINGTON BOROUGH COUNCIL,http://opendatacommunities.org/id/unitary-authority/warrington ,HOL,Single Billing Holding Account,91130,Electricity,210000,18-Aug-16,1900206912,13088.00,Npower Electricity,101884
WARRINGTON BOROUGH COUNCIL,http://opendatacommunities.org/id/unitary-authority/warrington ,HOL,Single Billing Holding Account,91130,Electricity,210000,19-Aug-16,1900206957,25378.00,Npower Electricity,101884
WARRINGTON BOROUGH COUNCIL,http://opendatacommunities.org/id/unitary-authority/warrington ,HOL,Single Billing Holding Account,91130,Electricity,210000,19-Aug-16,1900206957,3334.00,Npower Electricity,101884
WARRINGTON BOROUGH COUNCIL,http://opendatacommunities.org/id/unitary-authority/warrington ,HOL,Single Billing Holding Account,91130,Electricity,210000,19-Aug-16,1900206957,2200.00,Npower Electricity,101884
WARRINGTON BOROUGH COUNCIL,http://opendatacommunities.org/id/unitary-authority/warrington ,HOL,Single Billing Holding Account,91130,Electricity,210000,23-Aug-16,1900207011,47925.00,Npower Electricity,101884
WARRINGTON BOROUGH COUNCIL,http://opendatacommunities.org/id/unitary-authority/warrington ,HOL,Single Billing Holding Account,91130,Electricity,210000,23-Aug-16,1900207011,4893.00,Npower Electricity,101884
WARRINGTON BOROUGH COUNCIL,http://opendatacommunities.org/id/unitary-authority/warrington ,EE0,Finance Office Services,42110,Photocopier,430000,10-Aug-16,1900206528,632.00,Oce Uk Ltd Canon Group,111054
WARRINGTON BOROUGH COUNCIL,http://opendatacommunities.org/id/unitary-authority/warrington ,FWB,Care Purchase Budget,54490,CP ExternalOther Exp,440800,25-Aug-16,1900207228,14588.00,Old Rectory Private Nursing Home,104990
WARRINGTON BOROUGH COUNCIL,http://opendatacommunities.org/id/unitary-authority/warrington ,FWB,Care Purchase Budget,54490,CP ExternalOther Exp,440800,16-Aug-16,1900206785,15000.00,Old Rectory Private Nursing Home,104990
WARRINGTON BOROUGH COUNCIL,http://opendatacommunities.org/id/unitary-authority/warrington ,FWB,Care Purchase East Team,54060,CP-Nursing Care-External,441200,25-Aug-16,1900207246,3211.00,Olea Care Ltd (Fernlea),115034
WARRINGTON BOROUGH COUNCIL,http://opendatacommunities.org/id/unitary-authority/warrington ,FWB,Care Purchase South Team,54070,CP-Domicil.External,440950,01-Aug-16,1900205586,512.00,Olive Tree Domiciliary Services Ltd,114940
WARRINGTON BOROUGH COUNCIL,http://opendatacommunities.org/id/unitary-authority/warrington ,FWB,Care Purchase Central Team,54050,CP-LongStayExternal,441150,01-Aug-16,1900205589,1700.00,Orchard Care Homes,102524
WARRINGTON BOROUGH COUNCIL,http://opendatacommunities.org/id/unitary-authority/warrington ,FWB,Care Purchase Central Team,54050,CP-LongStayExternal,441150,25-Aug-16,1900207237,1700.00,Orchard Care Homes,102524
WARRINGTON BOROUGH COUNCIL,http://opendatacommunities.org/id/unitary-authority/warrington ,FWB,Care Purchase Budget,54490,CP ExternalOther Exp,440800,01-Aug-16,1900205590,21962.00,Orchard Care Homes Limited (Green P,114976
WARRINGTON BOROUGH COUNCIL,http://opendatacommunities.org/id/unitary-authority/warrington ,FWB,Care Purchase Budget,54490,CP ExternalOther Exp,440800,16-Aug-16,1900206770,58953.00,Orchard Care Homes Limited (Green P,114976
WARRINGTON BOROUGH COUNCIL,http://opendatacommunities.org/id/unitary-authority/warrington ,FWB,Care Purchase Budget,54490,CP ExternalOther Exp,440800,16-Aug-16,1900206762,130000.00,Orchard Care Homes Limited (Green P,114976
WARRINGTON BOROUGH COUNCIL,http://opendatacommunities.org/id/unitary-authority/warrington ,FWB,Care Purchase Budget,54490,CP ExternalOther Exp,440800,25-Aug-16,1900207227,30489.00,Orchard Care Homes Ltd (Three bridg,115239
WARRINGTON BOROUGH COUNCIL,http://opendatacommunities.org/id/unitary-authority/warrington ,FWB,Care Purchase Budget,54490,CP ExternalOther Exp,440800,16-Aug-16,1900206772,80000.00,Orchard Care Homes Ltd (Three bridg,115239
WARRINGTON BOROUGH COUNCIL,http://opendatacommunities.org/id/unitary-authority/warrington ,FWB,Care Purchase Central Team,54050,CP-LongStayExternal,441150,01-Aug-16,1900205587,1996.00,Orchard Care Homes.Com2 LTD,115255
WARRINGTON BOROUGH COUNCIL,http://opendatacommunities.org/id/unitary-authority/warrington ,FWB,Care Purchase Central Team,54050,CP-LongStayExternal,441150,25-Aug-16,1900207250,1996.00,Orchard Care Homes.Com2 LTD,115255
WARRINGTON BOROUGH COUNCIL,http://opendatacommunities.org/id/unitary-authority/warrington ,FWB,Care Purchase West Team,54080,CP-Domicil.External,440950,12-Aug-16,1900206674,650.00,P S S,105048
WARRINGTON BOROUGH COUNCIL,http://opendatacommunities.org/id/unitary-authority/warrington ,FWB,Contracts - SM Commissioning Team 2,55920,Public Health Contract Payments,540000,08-Aug-16,1900205911,2024.00,Park View Medical Practice,111956
WARRINGTON BOROUGH COUNCIL,http://opendatacommunities.org/id/unitary-authority/warrington ,FWB,Care Purchase Central Team,54050,CP-Nursing Care-External,441200,09-Aug-16,1900205935,4920.00,Partnerships In Care Ltd,103278
WARRINGTON BOROUGH COUNCIL,http://opendatacommunities.org/id/unitary-authority/warrington ,FWB,Care Purchase West Team,54080,CP-LongStayExternal,441150,01-Aug-16,1900205603,4200.00,Partnerships In Care Ltd,103278
WARRINGTON BOROUGH COUNCIL,http://opendatacommunities.org/id/unitary-authority/warrington ,FWB,Care Purchase South Team,54070,CP-Nursing Care-External,441200,01-Aug-16,1900205601,6000.00,Partnerships In Care Ltd,103278
WARRINGTON BOROUGH COUNCIL,http://opendatacommunities.org/id/unitary-authority/warrington ,FWB,Care Purchase South Team,54070,CP-Domicil.External,440950,01-Aug-16,1900205595,2400.00,Partnerships In Care Ltd,103278
WARRINGTON BOROUGH COUNCIL,http://opendatacommunities.org/id/unitary-authority/warrington ,FWB,Care Purchase South Team,54070,CP-Nursing Care-External,441200,01-Aug-16,1900205595,4800.00,Partnerships In Care Ltd,103278
WARRINGTON BOROUGH COUNCIL,http://opendatacommunities.org/id/unitary-authority/warrington ,FWB,Care Purchase West Team,54080,CP-Nursing Care-External,441200,01-Aug-16,1900205598,4800.00,Partnerships In Care Ltd,103278
WARRINGTON BOROUGH COUNCIL,http://opendatacommunities.org/id/unitary-authority/warrington ,FWB,Care Purchase West Team,54080,CP-Nursing Care-External,441200,01-Aug-16,1900205610,4200.00,Partnerships In Care Ltd,103278
WARRINGTON BOROUGH COUNCIL,http://opendatacommunities.org/id/unitary-authority/warrington ,FWB,Care Purchase West Team,54080,CP-Nursing Care-External,441200,01-Aug-16,1900205600,4200.00,Partnerships In Care Ltd,103278
WARRINGTON BOROUGH COUNCIL,http://opendatacommunities.org/id/unitary-authority/warrington ,FWB,Care Purchase Central Team,54050,CP-Nursing Care-External,441200,01-Aug-16,1900205592,9240.00,Partnerships In Care Ltd,103278
WARRINGTON BOROUGH COUNCIL,http://opendatacommunities.org/id/unitary-authority/warrington ,FWB,Care Purchase Central Team,54050,CP-Nursing Care-External,441200,01-Aug-16,1900205597,6600.00,Partnerships In Care Ltd,103278
WARRINGTON BOROUGH COUNCIL,http://opendatacommunities.org/id/unitary-authority/warrington ,FWB,Care Purchase Central Team,54050,CP-Nursing Care-External,441200,01-Aug-16,1900205591,4800.00,Partnerships In Care Ltd,103278
WARRINGTON BOROUGH COUNCIL,http://opendatacommunities.org/id/unitary-authority/warrington ,FWB,Care Purchase East Team,54060,CP-Nursing Care-External,441200,01-Aug-16,1900205594,4200.00,Partnerships In Care Ltd,103278
WARRINGTON BOROUGH COUNCIL,http://opendatacommunities.org/id/unitary-authority/warrington ,FWB,Care Purchase South Team,54070,CP-Nursing Care-External,441200,25-Aug-16,1900207235,6000.00,Partnerships In Care Ltd,103278
WARRINGTON BOROUGH COUNCIL,http://opendatacommunities.org/id/unitary-authority/warrington ,FWB,Care Purchase South Team,54070,CP-Domicil.External,440950,25-Aug-16,1900207234,2400.00,Partnerships In Care Ltd,103278
WARRINGTON BOROUGH COUNCIL,http://opendatacommunities.org/id/unitary-authority/warrington ,FWB,Care Purchase South Team,54070,CP-Nursing Care-External,441200,25-Aug-16,1900207234,4800.00,Partnerships In Care Ltd,103278
WARRINGTON BOROUGH COUNCIL,http://opendatacommunities.org/id/unitary-authority/warrington ,FWB,Care Purchase West Team,54080,CP-Nursing Care-External,441200,25-Aug-16,1900207231,4800.00,Partnerships In Care Ltd,103278
WARRINGTON BOROUGH COUNCIL,http://opendatacommunities.org/id/unitary-authority/warrington ,FWB,Care Purchase West Team,54080,CP-Nursing Care-External,441200,25-Aug-16,1900207232,4200.00,Partnerships In Care Ltd,103278
WARRINGTON BOROUGH COUNCIL,http://opendatacommunities.org/id/unitary-authority/warrington ,FWB,Care Purchase West Team,54080,CP-Nursing Care-External,441200,25-Aug-16,1900207255,4200.00,Partnerships In Care Ltd,103278
WARRINGTON BOROUGH COUNCIL,http://opendatacommunities.org/id/unitary-authority/warrington ,FWB,Care Purchase Central Team,54050,CP-Nursing Care-External,441200,25-Aug-16,1900207254,9240.00,Partnerships In Care Ltd,103278
WARRINGTON BOROUGH COUNCIL,http://opendatacommunities.org/id/unitary-authority/warrington ,FWB,Care Purchase Central Team,54050,CP-Nursing Care-External,441200,25-Aug-16,1900207256,6600.00,Partnerships In Care Ltd,103278
WARRINGTON BOROUGH COUNCIL,http://opendatacommunities.org/id/unitary-authority/warrington ,FWB,Care Purchase Central Team,54050,CP-Nursing Care-External,441200,25-Aug-16,1900207236,4800.00,Partnerships In Care Ltd,103278
WARRINGTON BOROUGH COUNCIL,http://opendatacommunities.org/id/unitary-authority/warrington ,FWB,Care Purchase East Team,54060,CP-Nursing Care-External,441200,25-Aug-16,1900207233,4200.00,Partnerships In Care Ltd,103278
WARRINGTON BOROUGH COUNCIL,http://opendatacommunities.org/id/unitary-authority/warrington ,FWB,Care Purchase Central Team,54050,CP-Nursing Care-External,441200,09-Aug-16,1900205937,5974.00,Partnerships In Care Ltd,103278
WARRINGTON BOROUGH COUNCIL,http://opendatacommunities.org/id/unitary-authority/warrington ,CYP,Childrens Other,81004,DFC-Capital ICT Expenditure (Schools),451100,11-Aug-16,1900206548,2250.00,Pc World Currys Warrington,100216
WARRINGTON BOROUGH COUNCIL,http://opendatacommunities.org/id/unitary-authority/warrington ,CYP,Childrens Other,81004,Consumables - Curriculum,451000,11-Aug-16,1900206550,2520.00,Pc World Currys Warrington,100216
WARRINGTON BOROUGH COUNCIL,http://opendatacommunities.org/id/unitary-authority/warrington ,FWB,Care Purchase West Team,54080,CP-LongStayExternal,441150,25-Aug-16,1900207251,2400.00,Peel Moat Harbour Healthcare,114680
WARRINGTON BOROUGH COUNCIL,http://opendatacommunities.org/id/unitary-authority/warrington ,FWB,Care Purchase East Team,54060,CP-LongStayExternal,441150,25-Aug-16,1900207212,9156.00,Penarth Group,101958
WARRINGTON BOROUGH COUNCIL,http://opendatacommunities.org/id/unitary-authority/warrington ,FWB,Care Purchase West Team,54080,CP-LongStayExternal,441150,01-Aug-16,1900205611,10471.00,Pendleton Care Limited,101213
WARRINGTON BOROUGH COUNCIL,http://opendatacommunities.org/id/unitary-authority/warrington ,FWB,Private Sector Hsg.,43660,Postages,450000,19-Aug-16,1900206932,610.00,Pitney Bowes Postage By Phone,101079
WARRINGTON BOROUGH COUNCIL,http://opendatacommunities.org/id/unitary-authority/warrington ,RSC,Building Safer Communities,16000,Security Systems,250000,12-Aug-16,1900206595,131098.00,Police and Crime Commissioner Chesh,104596
WARRINGTON BOROUGH COUNCIL,http://opendatacommunities.org/id/unitary-authority/warrington ,ENO,Housing Projects,82008,Disabled Persons Grant 1996,554000,04-Aug-16,1900205765,13773.00,Pollock Lifts,113504
WARRINGTON BOROUGH COUNCIL,http://opendatacommunities.org/id/unitary-authority/warrington ,FWB,Neighbourhood Co-o Central,51309,Payment of Grants,470050,23-Aug-16,1900206999,1561.00,Poplars and Hulme Community events,420729
WARRINGTON BOROUGH COUNCIL,http://opendatacommunities.org/id/unitary-authority/warrington ,EE0,Transport Holding Account,41311,Road Fund Licences,300200,16-Aug-16,1900206822,4090.00,Post Office Counters Ltd,100004
WARRINGTON BOROUGH COUNCIL,http://opendatacommunities.org/id/unitary-authority/warrington ,FWB,Care Purchase East Team,54060,CP-LongStayExternal,441150,12-Aug-16,1900206657,3508.00,Potens Ltd TA Heath Lodge,102481
WARRINGTON BOROUGH COUNCIL,http://opendatacommunities.org/id/unitary-authority/warrington ,FWB,Care Purchase West Team,54080,CP-Domicil.External,440950,12-Aug-16,1900206667,1889.00,Potens Ltd TA Heath Lodge,102481
WARRINGTON BOROUGH COUNCIL,http://opendatacommunities.org/id/unitary-authority/warrington ,FWB,Care Purchase East Team,54060,CP-LongStayExternal,441150,12-Aug-16,1900206661,5500.00,Potens Ltd TA Heath Lodge,102481
WARRINGTON BOROUGH COUNCIL,http://opendatacommunities.org/id/unitary-authority/warrington ,FWB,Care Purchase West Team,54080,CP-Domicil.External,440950,12-Aug-16,1900206671,1820.00,Potens Ltd TA Heath Lodge,102481
WARRINGTON BOROUGH COUNCIL,http://opendatacommunities.org/id/unitary-authority/warrington ,FWB,Care Purchase West Team,54080,CP-LongStayExternal,441150,12-Aug-16,1900206671,2580.00,Potens Ltd TA Heath Lodge,102481
WARRINGTON BOROUGH COUNCIL,http://opendatacommunities.org/id/unitary-authority/warrington ,FWB,Care Purchase Central Team,54050,CP-Domicil.External,440950,25-Aug-16,1900207225,1900.00,Premier Care Cheshire Ltd,105142
WARRINGTON BOROUGH COUNCIL,http://opendatacommunities.org/id/unitary-authority/warrington ,FWB,Care Purchase South Team,54070,CP-Domicil.External,440950,25-Aug-16,1900207225,1427.00,Premier Care Cheshire Ltd,105142
WARRINGTON BOROUGH COUNCIL,http://opendatacommunities.org/id/unitary-authority/warrington ,FWB,Care Purchase Central Team,54050,CP-Domicil.External,440950,16-Aug-16,1900206786,26684.00,Premier Care Cheshire Ltd,105142
WARRINGTON BOROUGH COUNCIL,http://opendatacommunities.org/id/unitary-authority/warrington ,FWB,Care Purchase South Team,54070,CP-Domicil.External,440950,16-Aug-16,1900206786,20253.00,Premier Care Cheshire Ltd,105142
WARRINGTON BOROUGH COUNCIL,http://opendatacommunities.org/id/unitary-authority/warrington ,FWB,Care Purchase East Team,54060,CP-Domicil.External,440950,16-Aug-16,1900206786,8663.00,Premier Care Cheshire Ltd,105142
WARRINGTON BOROUGH COUNCIL,http://opendatacommunities.org/id/unitary-authority/warrington ,FWB,Care Purchase West Team,54080,CP-Domicil.External,440950,16-Aug-16,1900206786,6771.00,Premier Care Cheshire Ltd,105142
WARRINGTON BOROUGH COUNCIL,http://opendatacommunities.org/id/unitary-authority/warrington ,FWB,Care Purchase East Team,54060,CP-LongStayExternal,441150,25-Aug-16,1900207226,11238.00,Priory Group Fernleigh & Lynbrook,115368
WARRINGTON BOROUGH COUNCIL,http://opendatacommunities.org/id/unitary-authority/warrington ,FWB,Care Purchase South Team,54070,CP-LongStayExternal,441150,01-Aug-16,1900205609,11895.00,Progress Care and Education Ltd,108888
WARRINGTON BOROUGH COUNCIL,http://opendatacommunities.org/id/unitary-authority/warrington ,FWB,Care Purchase East Team,54060,CP-Domicil.External,440950,01-Aug-16,1900205608,3325.00,Progress Care and Education Ltd,108888
WARRINGTON BOROUGH COUNCIL,http://opendatacommunities.org/id/unitary-authority/warrington ,FWB,Care Purchase East Team,54060,CP-LongStayExternal,441150,01-Aug-16,1900205608,11238.00,Progress Care and Education Ltd,108888
WARRINGTON BOROUGH COUNCIL,http://opendatacommunities.org/id/unitary-authority/warrington ,FWB,Care Purchase Budget,54490,CP - Cont Care - External,441350,01-Aug-16,1900205605,1195.00,Pulse Healthcare Limited,114083
WARRINGTON BOROUGH COUNCIL,http://opendatacommunities.org/id/unitary-authority/warrington ,FWB,Care Purchase Budget,54490,Audit Comm-Fee,441550,01-Aug-16,1900205607,1195.00,Pulse Healthcare Limited,114083
WARRINGTON BOROUGH COUNCIL,http://opendatacommunities.org/id/unitary-authority/warrington ,FWB,Care Purchase Budget,54490,CP - Cont Care - External,441350,01-Aug-16,1900205606,1195.00,Pulse Healthcare Limited,114083
WARRINGTON BOROUGH COUNCIL,http://opendatacommunities.org/id/unitary-authority/warrington ,FWB,Care Purchase Budget,54490,CP - Cont Care - External,441350,12-Aug-16,1900206675,1195.00,Pulse Healthcare Limited,114083
WARRINGTON BOROUGH COUNCIL,http://opendatacommunities.org/id/unitary-authority/warrington ,EE0,B.U.M Transport Services Staffing,44480,Consult.& Prof. Serv,440000,10-Aug-16,1900206526,6561.00,Rafman Consulting Limited,115207
WARRINGTON BOROUGH COUNCIL,http://opendatacommunities.org/id/unitary-authority/warrington ,CYP,Childrens Other,81004,Specific Work,200200,01-Aug-16,1900205505,5115.00,REDACTED PERSONAL DATA,111347
WARRINGTON BOROUGH COUNCIL,http://opendatacommunities.org/id/unitary-authority/warrington ,FWB,North Community Team,54332,Legal Costs Incurred,440200,11-Aug-16,1900206583,1950.00,REDACTED PERSONAL DATA,420860
WARRINGTON BOROUGH COUNCIL,http://opendatacommunities.org/id/unitary-authority/warrington ,FWB,Children with Disabilities,31005,Transport SLA,300400,08-Aug-16,1900205929,520.00,REDACTED PERSONAL DATA,420001
WARRINGTON BOROUGH COUNCIL,http://opendatacommunities.org/id/unitary-authority/warrington ,FWB,Foster Allowances,31106,Fostering Allowance,550050,23-Aug-16,1900207003,820.00,REDACTED PERSONAL DATA,461398
WARRINGTON BOROUGH COUNCIL,http://opendatacommunities.org/id/unitary-authority/warrington ,FWB,Legal Fees - Safeguarding,30100,Legal Costs Incurred,440200,17-Aug-16,1900206869,1125.00,REDACTED PERSONAL DATA,115525
WARRINGTON BOROUGH COUNCIL,http://opendatacommunities.org/id/unitary-authority/warrington ,FWB,Legal Fees - Safeguarding,30100,Legal Costs Incurred,440200,16-Aug-16,1900206825,600.00,REDACTED PERSONAL DATA,115458
WARRINGTON BOROUGH COUNCIL,http://opendatacommunities.org/id/unitary-authority/warrington ,COR,Debt Management Expenses,62080,Consult.& Prof. Serv,440000,16-Aug-16,1900206803,1895.00,REDACTED PERSONAL DATA,102113
WARRINGTON BOROUGH COUNCIL,http://opendatacommunities.org/id/unitary-authority/warrington ,FWB,Care Purchase West Team,54080,CP-LongStayExternal,441150,24-Aug-16,1900207181,8792.00,REDACTED PERSONAL DATA,110433
WARRINGTON BOROUGH COUNCIL,http://opendatacommunities.org/id/unitary-authority/warrington ,FWB,Halton Music Expenditure,32219,Consult.& Prof. Serv,440000,09-Aug-16,1900205978,755.00,REDACTED PERSONAL DATA,114123
WARRINGTON BOROUGH COUNCIL,http://opendatacommunities.org/id/unitary-authority/warrington ,FWB,Reablement/ WP/ ASC Grant c/f,53700,Consult.& Prof. Serv,440000,24-Aug-16,1900207194,1350.00,REDACTED PERSONAL DATA,111505
WARRINGTON BOROUGH COUNCIL,http://opendatacommunities.org/id/unitary-authority/warrington ,FWB,Foster Allowances,31106,Fostering Allowance,550050,03-Aug-16,1900205691,969.00,REDACTED PERSONAL DATA,460008
WARRINGTON BOROUGH COUNCIL,http://opendatacommunities.org/id/unitary-authority/warrington ,FWB,Foster Allowances,31106,Travel Allowance,550250,26-Aug-16,1900207330,526.00,REDACTED PERSONAL DATA,461019
WARRINGTON BOROUGH COUNCIL,http://opendatacommunities.org/id/unitary-authority/warrington ,FWB,Safeguarding Team 2,31002,Consult.& Prof. Serv,440000,16-Aug-16,1900206784,1499.00,REDACTED PERSONAL DATA,461391
WARRINGTON BOROUGH COUNCIL,http://opendatacommunities.org/id/unitary-authority/warrington ,FWB,Foster Allowances,31106,Fostering Allowance,550050,26-Aug-16,1900207295,1078.00,REDACTED PERSONAL DATA,461379
WARRINGTON BOROUGH COUNCIL,http://opendatacommunities.org/id/unitary-authority/warrington ,FWB,Foster Allowances,31106,Fostering Allowance,550050,21-Jul-16,1900204862,600.00,REDACTED PERSONAL DATA,460794
WARRINGTON BOROUGH COUNCIL,http://opendatacommunities.org/id/unitary-authority/warrington ,FWB,Foster Allowances,31106,Fostering Allowance,550050,22-Aug-16,1900206967,1191.00,REDACTED PERSONAL DATA,461123
WARRINGTON BOROUGH COUNCIL,http://opendatacommunities.org/id/unitary-authority/warrington ,FWB,Foster Allowances,31106,Fostering Allowance,550050,03-Aug-16,1900205678,576.00,REDACTED PERSONAL DATA,460968
WARRINGTON BOROUGH COUNCIL,http://opendatacommunities.org/id/unitary-authority/warrington ,FWB,Foster Allowances,31106,Fostering Allowance,550050,03-Aug-16,1900205665,548.00,REDACTED PERSONAL DATA,460968
WARRINGTON BOROUGH COUNCIL,http://opendatacommunities.org/id/unitary-authority/warrington ,FWB,Child Arrangement Orders,31114,Residence Orders,550350,03-Aug-16,1900205729,1242.00,REDACTED PERSONAL DATA,461388
WARRINGTON BOROUGH COUNCIL,http://opendatacommunities.org/id/unitary-authority/warrington ,FWB,Foster Allowances,31106,Fostering Allowance,550050,29-Jul-16,1900205465,2500.00,REDACTED PERSONAL DATA,461000
WARRINGTON BOROUGH COUNCIL,http://opendatacommunities.org/id/unitary-authority/warrington ,FWB,Adoption Allowances,31108,Personal Needs Allowance,550400,19-Aug-16,1900206926,650.00,REDACTED PERSONAL DATA,461238
WARRINGTON BOROUGH COUNCIL,http://opendatacommunities.org/id/unitary-authority/warrington ,FWB,Foster Allowances,31106,Fostering Allowance,550050,03-Aug-16,1900205688,1517.00,REDACTED PERSONAL DATA,460750
WARRINGTON BOROUGH COUNCIL,http://opendatacommunities.org/id/unitary-authority/warrington ,FWB,Foster Allowances,31106,Fostering Allowance,550050,11-Aug-16,1900206532,969.00,REDACTED PERSONAL DATA,460008
WARRINGTON BOROUGH COUNCIL,http://opendatacommunities.org/id/unitary-authority/warrington ,FWB,Foster Allowances,31106,Fostering Allowance,550050,03-Aug-16,1900205664,706.00,REDACTED PERSONAL DATA,460023
WARRINGTON BOROUGH COUNCIL,http://opendatacommunities.org/id/unitary-authority/warrington ,RSC,Land Charges - Gazetteer Services,12120,Consult.& Prof. Serv,440000,01-Aug-16,1900205635,24855.00,REDACTED PERSONAL DATA,102113
WARRINGTON BOROUGH COUNCIL,http://opendatacommunities.org/id/unitary-authority/warrington ,FWB,Child Arrangement Orders,31114,Residence Orders,550350,04-Aug-16,1900205755,1020.00,REDACTED PERSONAL DATA,461083
WARRINGTON BOROUGH COUNCIL,http://opendatacommunities.org/id/unitary-authority/warrington ,FWB,Child Disability,32212,Direct Payments,552000,03-Aug-16,1900205667,840.00,REDACTED PERSONAL DATA,107592
WARRINGTON BOROUGH COUNCIL,http://opendatacommunities.org/id/unitary-authority/warrington ,FWB,Care Purchase West Team,54080,Direct Payments,552000,03-Aug-16,1900205668,502.00,REDACTED PERSONAL DATA,460279
WARRINGTON BOROUGH COUNCIL,http://opendatacommunities.org/id/unitary-authority/warrington ,FWB,Care Purchase South Team,54070,Direct Payments,552000,10-Aug-16,1900206483,941.00,REDACTED PERSONAL DATA,105740
WARRINGTON BOROUGH COUNCIL,http://opendatacommunities.org/id/unitary-authority/warrington ,FWB,Care Purchase West Team,54080,Direct Payments,552000,10-Aug-16,1900206316,834.00,REDACTED PERSONAL DATA,460703
WARRINGTON BOROUGH COUNCIL,http://opendatacommunities.org/id/unitary-authority/warrington ,FWB,Care Purchase Central Team,54050,Direct Payments,552000,10-Aug-16,1900206225,1081.00,REDACTED PERSONAL DATA,460238
WARRINGTON BOROUGH COUNCIL,http://opendatacommunities.org/id/unitary-authority/warrington ,FWB,Care Purchase Central Team,54050,Direct Payments,552000,10-Aug-16,1900206388,560.00,REDACTED PERSONAL DATA,461113
WARRINGTON BOROUGH COUNCIL,http://opendatacommunities.org/id/unitary-authority/warrington ,FWB,Care Purchase South Team,54070,Direct Payments,552000,10-Aug-16,1900206062,2290.00,REDACTED PERSONAL DATA,101686
WARRINGTON BOROUGH COUNCIL,http://opendatacommunities.org/id/unitary-authority/warrington ,FWB,Care Purchase South Team,54070,Direct Payments,552000,10-Aug-16,1900206423,679.00,REDACTED PERSONAL DATA,461245
WARRINGTON BOROUGH COUNCIL,http://opendatacommunities.org/id/unitary-authority/warrington ,FWB,Care Purchase Central Team,54050,Direct Payments,552000,10-Aug-16,1900206240,2249.00,REDACTED PERSONAL DATA,460269
WARRINGTON BOROUGH COUNCIL,http://opendatacommunities.org/id/unitary-authority/warrington ,FWB,Care Purchase West Team,54080,Direct Payments,552000,10-Aug-16,1900206448,3393.00,REDACTED PERSONAL DATA,461330
WARRINGTON BOROUGH COUNCIL,http://opendatacommunities.org/id/unitary-authority/warrington ,FWB,Care Purchase Central Team,54050,CP - Cont Care - External,441350,10-Aug-16,1900206352,772.00,REDACTED PERSONAL DATA,460918
WARRINGTON BOROUGH COUNCIL,http://opendatacommunities.org/id/unitary-authority/warrington ,FWB,Care Purchase Central Team,54050,Direct Payments,552000,10-Aug-16,1900206352,772.00,REDACTED PERSONAL DATA,460918
WARRINGTON BOROUGH COUNCIL,http://opendatacommunities.org/id/unitary-authority/warrington ,FWB,Care Purchase South Team,54070,Direct Payments,552000,10-Aug-16,1900206163,606.00,REDACTED PERSONAL DATA,107299
WARRINGTON BOROUGH COUNCIL,http://opendatacommunities.org/id/unitary-authority/warrington ,FWB,Care Purchase Central Team,54050,Direct Payments,552000,10-Aug-16,1900206018,851.00,REDACTED PERSONAL DATA,100766
WARRINGTON BOROUGH COUNCIL,http://opendatacommunities.org/id/unitary-authority/warrington ,FWB,Care Purchase West Team,54080,Direct Payments,552000,10-Aug-16,1900206374,753.00,REDACTED PERSONAL DATA,461033
WARRINGTON BOROUGH COUNCIL,http://opendatacommunities.org/id/unitary-authority/warrington ,FWB,Care Purchase West Team,54080,Direct Payments,552000,10-Aug-16,1900206428,652.00,REDACTED PERSONAL DATA,461263
WARRINGTON BOROUGH COUNCIL,http://opendatacommunities.org/id/unitary-authority/warrington ,FWB,Care Purchase South Team,54070,CP - Cont Care - External,441350,10-Aug-16,1900206094,1584.00,REDACTED PERSONAL DATA,103372
WARRINGTON BOROUGH COUNCIL,http://opendatacommunities.org/id/unitary-authority/warrington ,FWB,Care Purchase South Team,54070,Direct Payments,552000,10-Aug-16,1900206094,3822.00,REDACTED PERSONAL DATA,103372
WARRINGTON BOROUGH COUNCIL,http://opendatacommunities.org/id/unitary-authority/warrington ,FWB,Care Purchase East Team,54060,Supporting People - External,441250,10-Aug-16,1900206115,849.00,REDACTED PERSONAL DATA,103794
WARRINGTON BOROUGH COUNCIL,http://opendatacommunities.org/id/unitary-authority/warrington ,FWB,Care Purchase Central Team,54050,Direct Payments,552000,10-Aug-16,1900206184,1249.00,REDACTED PERSONAL DATA,114446
WARRINGTON BOROUGH COUNCIL,http://opendatacommunities.org/id/unitary-authority/warrington ,FWB,Care Purchase West Team,54080,Direct Payments,552000,10-Aug-16,1900206028,849.00,REDACTED PERSONAL DATA,101045
WARRINGTON BOROUGH COUNCIL,http://opendatacommunities.org/id/unitary-authority/warrington ,FWB,Care Purchase Central Team,54050,Direct Payments,552000,10-Aug-16,1900206027,855.00,REDACTED PERSONAL DATA,101030
WARRINGTON BOROUGH COUNCIL,http://opendatacommunities.org/id/unitary-authority/warrington ,FWB,Care Purchase Central Team,54050,Supporting People - External,441250,10-Aug-16,1900206114,810.00,REDACTED PERSONAL DATA,103771
WARRINGTON BOROUGH COUNCIL,http://opendatacommunities.org/id/unitary-authority/warrington ,FWB,Care Purchase Central Team,54050,Direct Payments,552000,10-Aug-16,1900206114,11157.00,REDACTED PERSONAL DATA,103771
WARRINGTON BOROUGH COUNCIL,http://opendatacommunities.org/id/unitary-authority/warrington ,FWB,Care Purchase West Team,54080,Direct Payments,552000,10-Aug-16,1900206123,1830.00,REDACTED PERSONAL DATA,104205
WARRINGTON BOROUGH COUNCIL,http://opendatacommunities.org/id/unitary-authority/warrington ,FWB,Care Purchase Central Team,54050,Direct Payments,552000,10-Aug-16,1900206222,817.00,REDACTED PERSONAL DATA,460226
WARRINGTON BOROUGH COUNCIL,http://opendatacommunities.org/id/unitary-authority/warrington ,FWB,Care Purchase Central Team,54050,Direct Payments,552000,10-Aug-16,1900206296,997.00,REDACTED PERSONAL DATA,460581
WARRINGTON BOROUGH COUNCIL,http://opendatacommunities.org/id/unitary-authority/warrington ,FWB,Care Purchase Central Team,54050,Direct Payments,552000,10-Aug-16,1900206319,866.00,REDACTED PERSONAL DATA,460726
WARRINGTON BOROUGH COUNCIL,http://opendatacommunities.org/id/unitary-authority/warrington ,FWB,Care Purchase Central Team,54050,Direct Payments,552000,10-Aug-16,1900206307,902.00,REDACTED PERSONAL DATA,460638
WARRINGTON BOROUGH COUNCIL,http://opendatacommunities.org/id/unitary-authority/warrington ,FWB,Care Purchase West Team,54080,Direct Payments,552000,10-Aug-16,1900206227,1682.00,REDACTED PERSONAL DATA,460243
WARRINGTON BOROUGH COUNCIL,http://opendatacommunities.org/id/unitary-authority/warrington ,FWB,Care Purchase South Team,54070,Direct Payments,552000,10-Aug-16,1900206371,840.00,REDACTED PERSONAL DATA,461016
WARRINGTON BOROUGH COUNCIL,http://opendatacommunities.org/id/unitary-authority/warrington ,FWB,Care Purchase West Team,54080,Direct Payments,552000,10-Aug-16,1900206333,704.00,REDACTED PERSONAL DATA,460785
WARRINGTON BOROUGH COUNCIL,http://opendatacommunities.org/id/unitary-authority/warrington ,FWB,Care Purchase West Team,54080,Direct Payments,552000,10-Aug-16,1900206269,774.00,REDACTED PERSONAL DATA,460454
WARRINGTON BOROUGH COUNCIL,http://opendatacommunities.org/id/unitary-authority/warrington ,FWB,Care Purchase Central Team,54050,Direct Payments,552000,10-Aug-16,1900206271,798.00,REDACTED PERSONAL DATA,460457
WARRINGTON BOROUGH COUNCIL,http://opendatacommunities.org/id/unitary-authority/warrington ,FWB,Care Purchase South Team,54070,Direct Payments,552000,10-Aug-16,1900206147,637.00,REDACTED PERSONAL DATA,106066
WARRINGTON BOROUGH COUNCIL,http://opendatacommunities.org/id/unitary-authority/warrington ,FWB,Care Purchase East Team,54060,Direct Payments,552000,10-Aug-16,1900206435,583.00,REDACTED PERSONAL DATA,461283
WARRINGTON BOROUGH COUNCIL,http://opendatacommunities.org/id/unitary-authority/warrington ,FWB,Care Purchase South Team,54070,Direct Payments,552000,10-Aug-16,1900206263,594.00,REDACTED PERSONAL DATA,460426
WARRINGTON BOROUGH COUNCIL,http://opendatacommunities.org/id/unitary-authority/warrington ,FWB,Care Purchase Central Team,54050,Direct Payments,552000,10-Aug-16,1900206084,748.00,REDACTED PERSONAL DATA,102667
WARRINGTON BOROUGH COUNCIL,http://opendatacommunities.org/id/unitary-authority/warrington ,FWB,Care Purchase East Team,54060,Direct Payments,552000,10-Aug-16,1900206426,849.00,REDACTED PERSONAL DATA,461259
WARRINGTON BOROUGH COUNCIL,http://opendatacommunities.org/id/unitary-authority/warrington ,FWB,Care Purchase South Team,54070,Direct Payments,552000,10-Aug-16,1900206205,2795.00,REDACTED PERSONAL DATA,460172
WARRINGTON BOROUGH COUNCIL,http://opendatacommunities.org/id/unitary-authority/warrington ,FWB,Care Purchase West Team,54080,Direct Payments,552000,10-Aug-16,1900206127,956.00,REDACTED PERSONAL DATA,105621
WARRINGTON BOROUGH COUNCIL,http://opendatacommunities.org/id/unitary-authority/warrington ,FWB,Care Purchase East Team,54060,Direct Payments,552000,10-Aug-16,1900206142,849.00,REDACTED PERSONAL DATA,105758
WARRINGTON BOROUGH COUNCIL,http://opendatacommunities.org/id/unitary-authority/warrington ,FWB,Care Purchase West Team,54080,Direct Payments,552000,10-Aug-16,1900206356,1388.00,REDACTED PERSONAL DATA,460933
WARRINGTON BOROUGH COUNCIL,http://opendatacommunities.org/id/unitary-authority/warrington ,FWB,Child Disability,32212,Direct Payments,552000,10-Aug-16,1900206385,640.00,REDACTED PERSONAL DATA,461094
WARRINGTON BOROUGH COUNCIL,http://opendatacommunities.org/id/unitary-authority/warrington ,FWB,Care Purchase South Team,54070,Direct Payments,552000,10-Aug-16,1900206047,2401.00,REDACTED PERSONAL DATA,101516
WARRINGTON BOROUGH COUNCIL,http://opendatacommunities.org/id/unitary-authority/warrington ,FWB,Care Purchase Central Team,54050,Direct Payments,552000,10-Aug-16,1900206244,921.00,REDACTED PERSONAL DATA,460281
WARRINGTON BOROUGH COUNCIL,http://opendatacommunities.org/id/unitary-authority/warrington ,FWB,Care Purchase East Team,54060,Direct Payments,552000,10-Aug-16,1900206038,1358.00,REDACTED PERSONAL DATA,101336
WARRINGTON BOROUGH COUNCIL,http://opendatacommunities.org/id/unitary-authority/warrington ,FWB,Care Purchase Central Team,54050,Direct Payments,552000,10-Aug-16,1900206282,1141.00,REDACTED PERSONAL DATA,460518
WARRINGTON BOROUGH COUNCIL,http://opendatacommunities.org/id/unitary-authority/warrington ,FWB,Care Purchase West Team,54080,Direct Payments,552000,10-Aug-16,1900206165,1414.00,REDACTED PERSONAL DATA,107437
WARRINGTON BOROUGH COUNCIL,http://opendatacommunities.org/id/unitary-authority/warrington ,FWB,Care Purchase West Team,54080,Direct Payments,552000,10-Aug-16,1900206136,597.00,REDACTED PERSONAL DATA,105665
WARRINGTON BOROUGH COUNCIL,http://opendatacommunities.org/id/unitary-authority/warrington ,FWB,Care Purchase East Team,54060,Direct Payments,552000,10-Aug-16,1900206180,999.00,REDACTED PERSONAL DATA,112510
WARRINGTON BOROUGH COUNCIL,http://opendatacommunities.org/id/unitary-authority/warrington ,FWB,Care Purchase East Team,54060,Direct Payments,552000,10-Aug-16,1900206020,1351.00,REDACTED PERSONAL DATA,100907
WARRINGTON BOROUGH COUNCIL,http://opendatacommunities.org/id/unitary-authority/warrington ,FWB,Care Purchase South Team,54070,CP - Cont Care - External,441350,10-Aug-16,1900206130,638.00,REDACTED PERSONAL DATA,105625
WARRINGTON BOROUGH COUNCIL,http://opendatacommunities.org/id/unitary-authority/warrington ,FWB,Care Purchase Central Team,54050,Direct Payments,552000,10-Aug-16,1900206012,720.00,REDACTED PERSONAL DATA,100452
WARRINGTON BOROUGH COUNCIL,http://opendatacommunities.org/id/unitary-authority/warrington ,FWB,Care Purchase Central Team,54050,CP - Cont Care - External,441350,10-Aug-16,1900206211,1660.00,REDACTED PERSONAL DATA,460191
WARRINGTON BOROUGH COUNCIL,http://opendatacommunities.org/id/unitary-authority/warrington ,FWB,Care Purchase Central Team,54050,Direct Payments,552000,10-Aug-16,1900206211,1660.00,REDACTED PERSONAL DATA,460191
WARRINGTON BOROUGH COUNCIL,http://opendatacommunities.org/id/unitary-authority/warrington ,FWB,Care Purchase Central Team,54050,Direct Payments,552000,10-Aug-16,1900206341,976.00,REDACTED PERSONAL DATA,460850
WARRINGTON BOROUGH COUNCIL,http://opendatacommunities.org/id/unitary-authority/warrington ,FWB,Child Disability,32212,Direct Payments,552000,10-Aug-16,1900206036,666.00,REDACTED PERSONAL DATA,101322
WARRINGTON BOROUGH COUNCIL,http://opendatacommunities.org/id/unitary-authority/warrington ,FWB,Care Purchase East Team,54060,Direct Payments,552000,10-Aug-16,1900206387,764.00,REDACTED PERSONAL DATA,461109
WARRINGTON BOROUGH COUNCIL,http://opendatacommunities.org/id/unitary-authority/warrington ,FWB,Care Purchase West Team,54080,Direct Payments,552000,10-Aug-16,1900206050,1019.00,REDACTED PERSONAL DATA,101547
WARRINGTON BOROUGH COUNCIL,http://opendatacommunities.org/id/unitary-authority/warrington ,FWB,Care Purchase South Team,54070,Direct Payments,552000,10-Aug-16,1900206299,552.00,REDACTED PERSONAL DATA,460587
WARRINGTON BOROUGH COUNCIL,http://opendatacommunities.org/id/unitary-authority/warrington ,FWB,Care Purchase East Team,54060,Direct Payments,552000,10-Aug-16,1900206085,1273.00,REDACTED PERSONAL DATA,102710
WARRINGTON BOROUGH COUNCIL,http://opendatacommunities.org/id/unitary-authority/warrington ,FWB,Care Purchase East Team,54060,Direct Payments,552000,10-Aug-16,1900206023,3353.00,REDACTED PERSONAL DATA,100954
WARRINGTON BOROUGH COUNCIL,http://opendatacommunities.org/id/unitary-authority/warrington ,FWB,Care Purchase South Team,54070,Direct Payments,552000,10-Aug-16,1900206190,560.00,REDACTED PERSONAL DATA,460066
WARRINGTON BOROUGH COUNCIL,http://opendatacommunities.org/id/unitary-authority/warrington ,FWB,Care Purchase East Team,54060,Direct Payments,552000,10-Aug-16,1900206022,2817.00,REDACTED PERSONAL DATA,100945
WARRINGTON BOROUGH COUNCIL,http://opendatacommunities.org/id/unitary-authority/warrington ,FWB,Care Purchase Central Team,54050,Direct Payments,552000,10-Aug-16,1900206412,976.00,REDACTED PERSONAL DATA,461182
WARRINGTON BOROUGH COUNCIL,http://opendatacommunities.org/id/unitary-authority/warrington ,FWB,Care Purchase Central Team,54050,Direct Payments,552000,10-Aug-16,1900206359,764.00,REDACTED PERSONAL DATA,460951
WARRINGTON BOROUGH COUNCIL,http://opendatacommunities.org/id/unitary-authority/warrington ,FWB,Care Purchase Central Team,54050,Direct Payments,552000,10-Aug-16,1900206212,539.00,REDACTED PERSONAL DATA,460192
WARRINGTON BOROUGH COUNCIL,http://opendatacommunities.org/id/unitary-authority/warrington ,FWB,Care Purchase South Team,54070,Direct Payments,552000,10-Aug-16,1900206321,980.00,REDACTED PERSONAL DATA,460737
WARRINGTON BOROUGH COUNCIL,http://opendatacommunities.org/id/unitary-authority/warrington ,FWB,Care Purchase West Team,54080,Direct Payments,552000,10-Aug-16,1900206125,797.00,REDACTED PERSONAL DATA,104327
WARRINGTON BOROUGH COUNCIL,http://opendatacommunities.org/id/unitary-authority/warrington ,FWB,Care Purchase East Team,54060,Direct Payments,552000,10-Aug-16,1900206185,1071.00,REDACTED PERSONAL DATA,114527
WARRINGTON BOROUGH COUNCIL,http://opendatacommunities.org/id/unitary-authority/warrington ,FWB,Care Purchase East Team,54060,Direct Payments,552000,10-Aug-16,1900206218,915.00,REDACTED PERSONAL DATA,460214
WARRINGTON BOROUGH COUNCIL,http://opendatacommunities.org/id/unitary-authority/warrington ,FWB,Care Purchase East Team,54060,Direct Payments,552000,10-Aug-16,1900206383,625.00,REDACTED PERSONAL DATA,461089
WARRINGTON BOROUGH COUNCIL,http://opendatacommunities.org/id/unitary-authority/warrington ,FWB,Care Purchase East Team,54060,CP - Cont Care - External,441350,10-Aug-16,1900206095,918.00,REDACTED PERSONAL DATA,103404
WARRINGTON BOROUGH COUNCIL,http://opendatacommunities.org/id/unitary-authority/warrington ,FWB,Care Purchase East Team,54060,Direct Payments,552000,10-Aug-16,1900206095,918.00,REDACTED PERSONAL DATA,103404
WARRINGTON BOROUGH COUNCIL,http://opendatacommunities.org/id/unitary-authority/warrington ,FWB,Care Purchase South Team,54070,Direct Payments,552000,10-Aug-16,1900206108,1378.00,REDACTED PERSONAL DATA,103697
WARRINGTON BOROUGH COUNCIL,http://opendatacommunities.org/id/unitary-authority/warrington ,FWB,Care Purchase Central Team,54050,Direct Payments,552000,10-Aug-16,1900206453,1097.00,REDACTED PERSONAL DATA,461344
WARRINGTON BOROUGH COUNCIL,http://opendatacommunities.org/id/unitary-authority/warrington ,FWB,Care Purchase South Team,54070,Direct Payments,552000,10-Aug-16,1900206103,1401.00,REDACTED PERSONAL DATA,103614
WARRINGTON BOROUGH COUNCIL,http://opendatacommunities.org/id/unitary-authority/warrington ,FWB,Care Purchase South Team,54070,Direct Payments,552000,10-Aug-16,1900206058,1019.00,REDACTED PERSONAL DATA,101625
WARRINGTON BOROUGH COUNCIL,http://opendatacommunities.org/id/unitary-authority/warrington ,FWB,Care Purchase Central Team,54050,Direct Payments,552000,10-Aug-16,1900206076,678.00,REDACTED PERSONAL DATA,102183
WARRINGTON BOROUGH COUNCIL,http://opendatacommunities.org/id/unitary-authority/warrington ,FWB,Care Purchase West Team,54080,Direct Payments,552000,10-Aug-16,1900206102,1594.00,REDACTED PERSONAL DATA,103613
WARRINGTON BOROUGH COUNCIL,http://opendatacommunities.org/id/unitary-authority/warrington ,FWB,Care Purchase East Team,54060,Direct Payments,552000,10-Aug-16,1900206471,1751.00,REDACTED PERSONAL DATA,461395
WARRINGTON BOROUGH COUNCIL,http://opendatacommunities.org/id/unitary-authority/warrington ,FWB,Care Purchase East Team,54060,Direct Payments,552000,10-Aug-16,1900206400,509.00,REDACTED PERSONAL DATA,461145
WARRINGTON BOROUGH COUNCIL,http://opendatacommunities.org/id/unitary-authority/warrington ,FWB,Care Purchase East Team,54060,Direct Payments,552000,10-Aug-16,1900206318,11453.00,REDACTED PERSONAL DATA,460725
WARRINGTON BOROUGH COUNCIL,http://opendatacommunities.org/id/unitary-authority/warrington ,FWB,Care Purchase South Team,54070,Direct Payments,552000,10-Aug-16,1900206183,908.00,REDACTED PERSONAL DATA,114340
WARRINGTON BOROUGH COUNCIL,http://opendatacommunities.org/id/unitary-authority/warrington ,FWB,Child Disability,32212,Direct Payments,552000,10-Aug-16,1900206349,560.00,REDACTED PERSONAL DATA,460905
WARRINGTON BOROUGH COUNCIL,http://opendatacommunities.org/id/unitary-authority/warrington ,FWB,Care Purchase Central Team,54050,Direct Payments,552000,10-Aug-16,1900206376,919.00,REDACTED PERSONAL DATA,461050
WARRINGTON BOROUGH COUNCIL,http://opendatacommunities.org/id/unitary-authority/warrington ,FWB,Care Purchase East Team,54060,Direct Payments,552000,10-Aug-16,1900206107,3862.00,REDACTED PERSONAL DATA,103696
WARRINGTON BOROUGH COUNCIL,http://opendatacommunities.org/id/unitary-authority/warrington ,FWB,Care Purchase Central Team,54050,Direct Payments,552000,10-Aug-16,1900206362,1347.00,REDACTED PERSONAL DATA,460973
WARRINGTON BOROUGH COUNCIL,http://opendatacommunities.org/id/unitary-authority/warrington ,FWB,Care Purchase East Team,54060,Direct Payments,552000,10-Aug-16,1900206077,542.00,REDACTED PERSONAL DATA,102225
WARRINGTON BOROUGH COUNCIL,http://opendatacommunities.org/id/unitary-authority/warrington ,FWB,Care Purchase West Team,54080,Direct Payments,552000,10-Aug-16,1900206065,630.00,REDACTED PERSONAL DATA,101748
WARRINGTON BOROUGH COUNCIL,http://opendatacommunities.org/id/unitary-authority/warrington ,FWB,Care Purchase West Team,54080,Direct Payments,552000,10-Aug-16,1900206421,976.00,REDACTED PERSONAL DATA,461242
WARRINGTON BOROUGH COUNCIL,http://opendatacommunities.org/id/unitary-authority/warrington ,FWB,Care Purchase West Team,54080,Supporting People - External,441250,10-Aug-16,1900206024,1485.00,REDACTED PERSONAL DATA,100959
WARRINGTON BOROUGH COUNCIL,http://opendatacommunities.org/id/unitary-authority/warrington ,FWB,Care Purchase West Team,54080,Direct Payments,552000,10-Aug-16,1900206024,3835.00,REDACTED PERSONAL DATA,100959
WARRINGTON BOROUGH COUNCIL,http://opendatacommunities.org/id/unitary-authority/warrington ,FWB,Care Purchase Central Team,54050,Direct Payments,552000,10-Aug-16,1900206407,1358.00,REDACTED PERSONAL DATA,461164
WARRINGTON BOROUGH COUNCIL,http://opendatacommunities.org/id/unitary-authority/warrington ,FWB,Care Purchase East Team,54060,Direct Payments,552000,10-Aug-16,1900206063,3533.00,REDACTED PERSONAL DATA,101701
WARRINGTON BOROUGH COUNCIL,http://opendatacommunities.org/id/unitary-authority/warrington ,FWB,Child Disability,32212,Direct Payments,552000,10-Aug-16,1900206228,680.00,REDACTED PERSONAL DATA,460248
WARRINGTON BOROUGH COUNCIL,http://opendatacommunities.org/id/unitary-authority/warrington ,FWB,Care Purchase Central Team,54050,Direct Payments,552000,10-Aug-16,1900206013,1764.00,REDACTED PERSONAL DATA,100508
WARRINGTON BOROUGH COUNCIL,http://opendatacommunities.org/id/unitary-authority/warrington ,FWB,Care Purchase East Team,54060,Direct Payments,552000,10-Aug-16,1900206458,535.00,REDACTED PERSONAL DATA,461353
WARRINGTON BOROUGH COUNCIL,http://opendatacommunities.org/id/unitary-authority/warrington ,FWB,Care Purchase East Team,54060,Direct Payments,552000,10-Aug-16,1900206406,764.00,REDACTED PERSONAL DATA,461158
WARRINGTON BOROUGH COUNCIL,http://opendatacommunities.org/id/unitary-authority/warrington ,FWB,Care Purchase Central Team,54050,Direct Payments,552000,10-Aug-16,1900206310,806.00,REDACTED PERSONAL DATA,460681
WARRINGTON BOROUGH COUNCIL,http://opendatacommunities.org/id/unitary-authority/warrington ,FWB,Child Disability,32212,Direct Payments,552000,10-Aug-16,1900206232,540.00,REDACTED PERSONAL DATA,460256
WARRINGTON BOROUGH COUNCIL,http://opendatacommunities.org/id/unitary-authority/warrington ,FWB,Child Disability,32212,Direct Payments,552000,10-Aug-16,1900206194,977.00,REDACTED PERSONAL DATA,460112
WARRINGTON BOROUGH COUNCIL,http://opendatacommunities.org/id/unitary-authority/warrington ,FWB,Care Purchase East Team,54060,Direct Payments,552000,10-Aug-16,1900206006,4343.00,REDACTED PERSONAL DATA,100049
WARRINGTON BOROUGH COUNCIL,http://opendatacommunities.org/id/unitary-authority/warrington ,FWB,Child Disability,32212,Direct Payments,552000,10-Aug-16,1900206154,687.00,REDACTED PERSONAL DATA,106708
WARRINGTON BOROUGH COUNCIL,http://opendatacommunities.org/id/unitary-authority/warrington ,FWB,Care Purchase West Team,54080,Direct Payments,552000,10-Aug-16,1900206039,4063.00,REDACTED PERSONAL DATA,101341
WARRINGTON BOROUGH COUNCIL,http://opendatacommunities.org/id/unitary-authority/warrington ,FWB,Care Purchase Central Team,54050,Direct Payments,552000,10-Aug-16,1900206396,5658.00,REDACTED PERSONAL DATA,461139
WARRINGTON BOROUGH COUNCIL,http://opendatacommunities.org/id/unitary-authority/warrington ,FWB,Care Purchase West Team,54080,Direct Payments,552000,10-Aug-16,1900206040,3154.00,REDACTED PERSONAL DATA,101354
WARRINGTON BOROUGH COUNCIL,http://opendatacommunities.org/id/unitary-authority/warrington ,FWB,Care Purchase East Team,54060,Direct Payments,552000,10-Aug-16,1900206304,976.00,REDACTED PERSONAL DATA,460623
WARRINGTON BOROUGH COUNCIL,http://opendatacommunities.org/id/unitary-authority/warrington ,FWB,Care Purchase South Team,54070,Direct Payments,552000,10-Aug-16,1900206031,1873.00,REDACTED PERSONAL DATA,101147
WARRINGTON BOROUGH COUNCIL,http://opendatacommunities.org/id/unitary-authority/warrington ,FWB,Care Purchase West Team,54080,Direct Payments,552000,10-Aug-16,1900206034,721.00,REDACTED PERSONAL DATA,101261
WARRINGTON BOROUGH COUNCIL,http://opendatacommunities.org/id/unitary-authority/warrington ,FWB,Care Purchase West Team,54080,Direct Payments,552000,10-Aug-16,1900206037,594.00,REDACTED PERSONAL DATA,101323
WARRINGTON BOROUGH COUNCIL,http://opendatacommunities.org/id/unitary-authority/warrington ,FWB,Care Purchase West Team,54080,Direct Payments,552000,10-Aug-16,1900206243,1061.00,REDACTED PERSONAL DATA,460279
WARRINGTON BOROUGH COUNCIL,http://opendatacommunities.org/id/unitary-authority/warrington ,FWB,Care Purchase West Team,54080,Direct Payments,552000,10-Aug-16,1900206272,1040.00,REDACTED PERSONAL DATA,460465
WARRINGTON BOROUGH COUNCIL,http://opendatacommunities.org/id/unitary-authority/warrington ,FWB,Care Purchase East Team,54060,CP - Cont Care - External,441350,10-Aug-16,1900206035,1797.00,REDACTED PERSONAL DATA,101276
WARRINGTON BOROUGH COUNCIL,http://opendatacommunities.org/id/unitary-authority/warrington ,FWB,Care Purchase East Team,54060,Direct Payments,552000,10-Aug-16,1900206035,1797.00,REDACTED PERSONAL DATA,101276
WARRINGTON BOROUGH COUNCIL,http://opendatacommunities.org/id/unitary-authority/warrington ,FWB,Care Purchase East Team,54060,Direct Payments,552000,10-Aug-16,1900206472,737.00,REDACTED PERSONAL DATA,461397
WARRINGTON BOROUGH COUNCIL,http://opendatacommunities.org/id/unitary-authority/warrington ,FWB,Care Purchase South Team,54070,Direct Payments,552000,10-Aug-16,1900206021,1492.00,REDACTED PERSONAL DATA,100934
WARRINGTON BOROUGH COUNCIL,http://opendatacommunities.org/id/unitary-authority/warrington ,FWB,Care Purchase East Team,54060,Direct Payments,552000,10-Aug-16,1900206152,855.00,REDACTED PERSONAL DATA,106630
WARRINGTON BOROUGH COUNCIL,http://opendatacommunities.org/id/unitary-authority/warrington ,FWB,Care Purchase West Team,54080,Direct Payments,552000,10-Aug-16,1900206410,607.00,REDACTED PERSONAL DATA,461180
WARRINGTON BOROUGH COUNCIL,http://opendatacommunities.org/id/unitary-authority/warrington ,FWB,Care Purchase South Team,54070,Direct Payments,552000,10-Aug-16,1900206384,1177.00,REDACTED PERSONAL DATA,461090
WARRINGTON BOROUGH COUNCIL,http://opendatacommunities.org/id/unitary-authority/warrington ,FWB,Care Purchase Central Team,54050,Direct Payments,552000,10-Aug-16,1900206157,668.00,REDACTED PERSONAL DATA,106866
WARRINGTON BOROUGH COUNCIL,http://opendatacommunities.org/id/unitary-authority/warrington ,FWB,Care Purchase South Team,54070,Direct Payments,552000,10-Aug-16,1900206122,533.00,REDACTED PERSONAL DATA,104033
WARRINGTON BOROUGH COUNCIL,http://opendatacommunities.org/id/unitary-authority/warrington ,FWB,Care Purchase West Team,54080,Direct Payments,552000,10-Aug-16,1900206189,697.00,REDACTED PERSONAL DATA,460054
WARRINGTON BOROUGH COUNCIL,http://opendatacommunities.org/id/unitary-authority/warrington ,FWB,Care Purchase East Team,54060,Direct Payments,552000,10-Aug-16,1900206135,726.00,REDACTED PERSONAL DATA,105641
WARRINGTON BOROUGH COUNCIL,http://opendatacommunities.org/id/unitary-authority/warrington ,FWB,Care Purchase Central Team,54050,Direct Payments,552000,10-Aug-16,1900206010,1401.00,REDACTED PERSONAL DATA,100340
WARRINGTON BOROUGH COUNCIL,http://opendatacommunities.org/id/unitary-authority/warrington ,FWB,Child Disability,32212,Direct Payments,552000,10-Aug-16,1900206344,646.00,REDACTED PERSONAL DATA,460863
WARRINGTON BOROUGH COUNCIL,http://opendatacommunities.org/id/unitary-authority/warrington ,FWB,Care Purchase Central Team,54050,Direct Payments,552000,10-Aug-16,1900206235,5131.00,REDACTED PERSONAL DATA,460263
WARRINGTON BOROUGH COUNCIL,http://opendatacommunities.org/id/unitary-authority/warrington ,FWB,Care Purchase Central Team,54050,Direct Payments,552000,10-Aug-16,1900206325,2056.00,REDACTED PERSONAL DATA,460754
WARRINGTON BOROUGH COUNCIL,http://opendatacommunities.org/id/unitary-authority/warrington ,FWB,Care Purchase West Team,54080,Direct Payments,552000,10-Aug-16,1900206150,706.00,REDACTED PERSONAL DATA,106441
WARRINGTON BOROUGH COUNCIL,http://opendatacommunities.org/id/unitary-authority/warrington ,FWB,Care Purchase West Team,54080,Direct Payments,552000,10-Aug-16,1900206052,509.00,REDACTED PERSONAL DATA,101558
WARRINGTON BOROUGH COUNCIL,http://opendatacommunities.org/id/unitary-authority/warrington ,FWB,Care Purchase West Team,54080,CP - Cont Care - External,441350,10-Aug-16,1900206391,2016.00,REDACTED PERSONAL DATA,461124
WARRINGTON BOROUGH COUNCIL,http://opendatacommunities.org/id/unitary-authority/warrington ,FWB,Care Purchase West Team,54080,Direct Payments,552000,10-Aug-16,1900206391,2016.00,REDACTED PERSONAL DATA,461124
WARRINGTON BOROUGH COUNCIL,http://opendatacommunities.org/id/unitary-authority/warrington ,FWB,Care Purchase West Team,54080,Direct Payments,552000,10-Aug-16,1900206364,637.00,REDACTED PERSONAL DATA,460975
WARRINGTON BOROUGH COUNCIL,http://opendatacommunities.org/id/unitary-authority/warrington ,FWB,Care Purchase Central Team,54050,Direct Payments,552000,10-Aug-16,1900206233,2918.00,REDACTED PERSONAL DATA,460257
WARRINGTON BOROUGH COUNCIL,http://opendatacommunities.org/id/unitary-authority/warrington ,FWB,Care Purchase South Team,54070,Direct Payments,552000,10-Aug-16,1900206041,800.00,REDACTED PERSONAL DATA,101396
WARRINGTON BOROUGH COUNCIL,http://opendatacommunities.org/id/unitary-authority/warrington ,FWB,Care Purchase West Team,54080,Direct Payments,552000,10-Aug-16,1900206215,520.00,REDACTED PERSONAL DATA,460202
WARRINGTON BOROUGH COUNCIL,http://opendatacommunities.org/id/unitary-authority/warrington ,FWB,Care Purchase Central Team,54050,Direct Payments,552000,10-Aug-16,1900206455,581.00,REDACTED PERSONAL DATA,461348
WARRINGTON BOROUGH COUNCIL,http://opendatacommunities.org/id/unitary-authority/warrington ,FWB,Care Purchase Central Team,54050,Direct Payments,552000,10-Aug-16,1900206397,1428.00,REDACTED PERSONAL DATA,461140
WARRINGTON BOROUGH COUNCIL,http://opendatacommunities.org/id/unitary-authority/warrington ,FWB,Care Purchase West Team,54080,CP - Cont Care - External,441350,10-Aug-16,1900206016,887.00,REDACTED PERSONAL DATA,100666
WARRINGTON BOROUGH COUNCIL,http://opendatacommunities.org/id/unitary-authority/warrington ,FWB,Care Purchase West Team,54080,Direct Payments,552000,10-Aug-16,1900206016,887.00,REDACTED PERSONAL DATA,100666
WARRINGTON BOROUGH COUNCIL,http://opendatacommunities.org/id/unitary-authority/warrington ,FWB,Care Purchase Central Team,54050,Direct Payments,552000,10-Aug-16,1900206242,849.00,REDACTED PERSONAL DATA,460278
WARRINGTON BOROUGH COUNCIL,http://opendatacommunities.org/id/unitary-authority/warrington ,FWB,Care Purchase West Team,54080,Direct Payments,552000,10-Aug-16,1900206281,1616.00,REDACTED PERSONAL DATA,460514
WARRINGTON BOROUGH COUNCIL,http://opendatacommunities.org/id/unitary-authority/warrington ,FWB,Care Purchase Central Team,54050,Direct Payments,552000,10-Aug-16,1900206283,1188.00,REDACTED PERSONAL DATA,460519
WARRINGTON BOROUGH COUNCIL,http://opendatacommunities.org/id/unitary-authority/warrington ,FWB,Care Purchase West Team,54080,Direct Payments,552000,10-Aug-16,1900206009,5092.00,REDACTED PERSONAL DATA,100338
WARRINGTON BOROUGH COUNCIL,http://opendatacommunities.org/id/unitary-authority/warrington ,FWB,Care Purchase South Team,54070,Direct Payments,552000,10-Aug-16,1900206105,2515.00,REDACTED PERSONAL DATA,103660
WARRINGTON BOROUGH COUNCIL,http://opendatacommunities.org/id/unitary-authority/warrington ,FWB,Care Purchase East Team,54060,Direct Payments,552000,10-Aug-16,1900206247,1232.00,REDACTED PERSONAL DATA,460286
WARRINGTON BOROUGH COUNCIL,http://opendatacommunities.org/id/unitary-authority/warrington ,FWB,Care Purchase West Team,54080,Direct Payments,552000,10-Aug-16,1900206331,1629.00,REDACTED PERSONAL DATA,460779
WARRINGTON BOROUGH COUNCIL,http://opendatacommunities.org/id/unitary-authority/warrington ,FWB,Care Purchase South Team,54070,Direct Payments,552000,10-Aug-16,1900206186,1122.00,REDACTED PERSONAL DATA,114697
WARRINGTON BOROUGH COUNCIL,http://opendatacommunities.org/id/unitary-authority/warrington ,FWB,Care Purchase South Team,54070,Direct Payments,552000,10-Aug-16,1900206347,1875.00,REDACTED PERSONAL DATA,460879
WARRINGTON BOROUGH COUNCIL,http://opendatacommunities.org/id/unitary-authority/warrington ,FWB,Care Purchase West Team,54080,Direct Payments,552000,10-Aug-16,1900206250,1273.00,REDACTED PERSONAL DATA,460295
WARRINGTON BOROUGH COUNCIL,http://opendatacommunities.org/id/unitary-authority/warrington ,FWB,Care Purchase West Team,54080,Direct Payments,552000,10-Aug-16,1900206014,637.00,REDACTED PERSONAL DATA,100607
WARRINGTON BOROUGH COUNCIL,http://opendatacommunities.org/id/unitary-authority/warrington ,FWB,Care Purchase East Team,54060,Direct Payments,552000,10-Aug-16,1900206064,3533.00,REDACTED PERSONAL DATA,101704
WARRINGTON BOROUGH COUNCIL,http://opendatacommunities.org/id/unitary-authority/warrington ,FWB,Care Purchase East Team,54060,Direct Payments,552000,10-Aug-16,1900206273,668.00,REDACTED PERSONAL DATA,460468
WARRINGTON BOROUGH COUNCIL,http://opendatacommunities.org/id/unitary-authority/warrington ,FWB,Care Purchase West Team,54080,Direct Payments,552000,10-Aug-16,1900206330,2485.00,REDACTED PERSONAL DATA,460765
WARRINGTON BOROUGH COUNCIL,http://opendatacommunities.org/id/unitary-authority/warrington ,FWB,Child Disability,32212,Direct Payments,552000,10-Aug-16,1900206394,792.00,REDACTED PERSONAL DATA,461127
WARRINGTON BOROUGH COUNCIL,http://opendatacommunities.org/id/unitary-authority/warrington ,FWB,Care Purchase East Team,54060,Direct Payments,552000,10-Aug-16,1900206033,4173.00,REDACTED PERSONAL DATA,101246
WARRINGTON BOROUGH COUNCIL,http://opendatacommunities.org/id/unitary-authority/warrington ,FWB,Care Purchase East Team,54060,Direct Payments,552000,10-Aug-16,1900206093,935.00,REDACTED PERSONAL DATA,103320
WARRINGTON BOROUGH COUNCIL,http://opendatacommunities.org/id/unitary-authority/warrington ,FWB,Care Purchase Central Team,54050,Direct Payments,552000,10-Aug-16,1900206403,1897.00,REDACTED PERSONAL DATA,461149
WARRINGTON BOROUGH COUNCIL,http://opendatacommunities.org/id/unitary-authority/warrington ,FWB,Care Purchase Central Team,54050,Direct Payments,552000,10-Aug-16,1900206345,679.00,REDACTED PERSONAL DATA,460867
WARRINGTON BOROUGH COUNCIL,http://opendatacommunities.org/id/unitary-authority/warrington ,FWB,Child Disability,32212,Direct Payments,552000,10-Aug-16,1900206060,640.00,REDACTED PERSONAL DATA,101669
WARRINGTON BOROUGH COUNCIL,http://opendatacommunities.org/id/unitary-authority/warrington ,FWB,Care Purchase East Team,54060,Direct Payments,552000,10-Aug-16,1900206437,572.00,REDACTED PERSONAL DATA,461288
WARRINGTON BOROUGH COUNCIL,http://opendatacommunities.org/id/unitary-authority/warrington ,FWB,Care Purchase Central Team,54050,Direct Payments,552000,10-Aug-16,1900206237,661.00,REDACTED PERSONAL DATA,460265
WARRINGTON BOROUGH COUNCIL,http://opendatacommunities.org/id/unitary-authority/warrington ,FWB,Care Purchase Central Team,54050,Direct Payments,552000,10-Aug-16,1900206393,646.00,REDACTED PERSONAL DATA,461126
WARRINGTON BOROUGH COUNCIL,http://opendatacommunities.org/id/unitary-authority/warrington ,FWB,Care Purchase West Team,54080,Direct Payments,552000,10-Aug-16,1900206447,1782.00,REDACTED PERSONAL DATA,461326
WARRINGTON BOROUGH COUNCIL,http://opendatacommunities.org/id/unitary-authority/warrington ,FWB,Care Purchase Central Team,54050,Direct Payments,552000,10-Aug-16,1900206367,1035.00,REDACTED PERSONAL DATA,460993
WARRINGTON BOROUGH COUNCIL,http://opendatacommunities.org/id/unitary-authority/warrington ,FWB,Care Purchase West Team,54080,Direct Payments,552000,10-Aug-16,1900206395,1000.00,REDACTED PERSONAL DATA,461134
WARRINGTON BOROUGH COUNCIL,http://opendatacommunities.org/id/unitary-authority/warrington ,FWB,Care Purchase West Team,54080,Direct Payments,552000,10-Aug-16,1900206372,4809.00,REDACTED PERSONAL DATA,461031
WARRINGTON BOROUGH COUNCIL,http://opendatacommunities.org/id/unitary-authority/warrington ,FWB,Care Purchase West Team,54080,Direct Payments,552000,10-Aug-16,1900206042,1370.00,REDACTED PERSONAL DATA,101420
WARRINGTON BOROUGH COUNCIL,http://opendatacommunities.org/id/unitary-authority/warrington ,FWB,Care Purchase South Team,54070,Direct Payments,552000,10-Aug-16,1900206245,1304.00,REDACTED PERSONAL DATA,460283
WARRINGTON BOROUGH COUNCIL,http://opendatacommunities.org/id/unitary-authority/warrington ,FWB,Child Disability,32212,Direct Payments,552000,10-Aug-16,1900206201,666.00,REDACTED PERSONAL DATA,460160
WARRINGTON BOROUGH COUNCIL,http://opendatacommunities.org/id/unitary-authority/warrington ,FWB,Care Purchase South Team,54070,Direct Payments,552000,10-Aug-16,1900206106,721.00,REDACTED PERSONAL DATA,103674
WARRINGTON BOROUGH COUNCIL,http://opendatacommunities.org/id/unitary-authority/warrington ,FWB,Care Purchase South Team,54070,Direct Payments,552000,10-Aug-16,1900206046,729.00,REDACTED PERSONAL DATA,101515
WARRINGTON BOROUGH COUNCIL,http://opendatacommunities.org/id/unitary-authority/warrington ,FWB,Child Disability,32212,Direct Payments,552000,10-Aug-16,1900206197,3670.00,REDACTED PERSONAL DATA,460139
WARRINGTON BOROUGH COUNCIL,http://opendatacommunities.org/id/unitary-authority/warrington ,FWB,Care Purchase East Team,54060,Direct Payments,552000,10-Aug-16,1900206026,5450.00,REDACTED PERSONAL DATA,101016
WARRINGTON BOROUGH COUNCIL,http://opendatacommunities.org/id/unitary-authority/warrington ,FWB,Care Purchase West Team,54080,Direct Payments,552000,10-Aug-16,1900206262,1715.00,REDACTED PERSONAL DATA,460425
